Local authority department which incurred the expenditure,Service Division,Cost Centre,Summary of the Purpose of Expenditure,Expense Type,Expense Code,Detailed Expense Type,Date of Transaction,Transaction Number,Beneficiary,Merchant Category Number,Merchant Category,Gross Amount,VAT,Net Amount
Children and Young Peoples Services,Head of Childrens Social Care,085334,West Rainton Satelite Home,Supplies and Services,304259,Equipment and Materials,01-Apr-2018,000007198838283,PP INFINITE AIR,5941,Equipment-purchase and rental,35.85,5.98,29.87
Children and Young Peoples Services,Head of Childrens Social Care,085334,West Rainton Satelite Home,Supplies and Services,304259,Equipment and Materials,01-Apr-2018,000007198838285,PP INFINITE AIR,5941,Equipment-purchase and rental,15.00,2.50,12.50
Regeneration and Local Services,Economic Development and Housing,030699,Business Growth and Innovation General,Supplies and Services,312011,Newspapers books and periodicals E312,02-Apr-2018,000007198838229,FASTHOSTS INTERNET,4816,Books-school library,59.99,10.00,49.99
Regeneration and Local Services,Spatial Policy Planning Assets & Environment,031221,North Pennines - Bowlees,Supplies and Services,304259,Equipment and Materials,02-Apr-2018,000007198838305,B & Q 1007,5211,Equipment-purchase and rental,3.86,0.00,3.86
Regeneration and Local Services,Spatial Policy Planning Assets & Environment,031221,North Pennines - Bowlees,Supplies and Services,304259,Equipment and Materials,02-Apr-2018,000007198838307,TYNEVALLEY NURSERY,5261,Equipment-purchase and rental,6.00,1.00,5.00
Regeneration and Local Services,Spatial Policy Planning Assets & Environment,031221,North Pennines - Bowlees,Supplies and Services,304259,Equipment and Materials,02-Apr-2018,000007198838307 - 1,TYNEVALLEY NURSERY,5261,Equipment-purchase and rental,2.96,,2.96
Regeneration and Local Services,Culture & Sport,054813,Gala Theatre - Technical,Supplies and Services,324117,Provisions E324,02-Apr-2018,000007198838327,TESCO STORES 2971,5411,Catering costs - provisions,20.35,0.00,20.35
Children and Young Peoples Services,Head of Childrens Social Care,085342,9 Cedar Drive Aycliffe,Supplies and Services,348037,Subsistence E348,02-Apr-2018,000007198838461,MCDONALD`S,5812,Subsistence,11.78,0.00,11.78
Children and Young Peoples Services,"Head of Early Help, Inclusion and Vulnerable Children",085962,Durham,Supplies and Services,324117,Provisions E324,02-Apr-2018,000007198838501,TESCO STORES 6329,5411,Catering costs - provisions,114.95,0.00,114.95
Children and Young Peoples Services,Head of Childrens Social Care,085333,Coxhoe Satelite Home,Supplies and Services,312011,Newspapers books and periodicals E312,02-Apr-2018,000007198838533,Amazon UK Marketplace,5942,Books-school library,12.58,0.00,12.58
Children and Young Peoples Services,Head of Childrens Social Care,085333,Coxhoe Satelite Home,Supplies and Services,312011,Newspapers books and periodicals E312,02-Apr-2018,000007198838535,Amazon EU,5969,Books-school library,9.99,0.00,9.99
Regeneration and Local Services,Spatial Policy Planning Assets & Environment,031200,North Pennines Core,Transport,235057,Public Transport,03-Apr-2018,000007198838421,WWW.CAMPIGLIODOLOMITI.,4722,Staff travelling,6.51,0.00,6.51
Adult and Health Services,Head of Adults,055302,Durham Pathways,Supplies and Services,324117,Provisions E324,03-Apr-2018,000007201918889,LIDL UK,5411,Catering costs - provisions,3.27,0.00,3.27
Regeneration and Local Services,Economic Development and Housing,030705,Visit County Durham,Supplies and Services,312011,Newspapers books and periodicals E312,03-Apr-2018,000007201918891,Amazon EU,5969,Books-school library,24.99,0.00,24.99
Children and Young Peoples Services,Head of Childrens Social Care,085342,9 Cedar Drive Aycliffe,Supplies and Services,328041,Clothing uniforms and laundry E328,03-Apr-2018,000007201918897,W BOYES & CO LTD NEWTO,5310,Clothing uniforms and laundry,5.48,0.00,5.48
Children and Young Peoples Services,Head of Childrens Social Care,085342,9 Cedar Drive Aycliffe,Supplies and Services,328041,Clothing uniforms and laundry E328,03-Apr-2018,000007201918899,POUNDWORLD,5310,Clothing uniforms and laundry,8.50,0.00,8.50
Children and Young Peoples Services,Head of Childrens Social Care,085342,9 Cedar Drive Aycliffe,Supplies and Services,304259,Equipment and Materials,03-Apr-2018,000007201918901,WILKO RETAIL LIMIT,5722,Equipment-purchase and rental,6.60,0.00,6.60
Children and Young Peoples Services,Head of Childrens Social Care,085342,9 Cedar Drive Aycliffe,Supplies and Services,324117,Provisions E324,03-Apr-2018,000007201918903,TESCO STORES 2916,5411,Catering costs - provisions,92.28,0.00,92.28
Regeneration and Local Services,Economic Development and Housing,030699,Business Growth and Innovation General,Supplies and Services,304403,Equipment and Materials,03-Apr-2018,000007201918905,ADOBE CREATIVE CLOUD,5734,Other consumables,50.57,0.00,50.57
Adult and Health Services,Head of Adults,055302,Durham Pathways,Supplies and Services,324117,Provisions E324,03-Apr-2018,000007201918913,ASDA SUPERSTORE,5411,Catering costs - provisions,4.50,0.00,4.50
Regeneration and Local Services,Direct Services,021242,Catering - County Hall,Supplies and Services,324117,Provisions E324,03-Apr-2018,000007201918917,FREEMAN CATERING BUTCH,5422,Catering costs - provisions,203.98,0.00,203.98
Regeneration and Local Services,Direct Services,021242,Catering - County Hall,Supplies and Services,324117,Provisions E324,03-Apr-2018,000007201918919,FREEMAN CATERING BUTCH,5422,Catering costs - provisions,176.71,0.00,176.71
Regeneration and Local Services,Direct Services,021242,Catering - County Hall,Supplies and Services,324117,Provisions E324,03-Apr-2018,000007201918921,JR HOLLAND FOODSERVICE,5422,Catering costs - provisions,58.33,0.00,58.33
Regeneration and Local Services,Direct Services,021242,Catering - County Hall,Supplies and Services,324117,Provisions E324,03-Apr-2018,000007201918923,JR HOLLAND FOODSERVICE,5422,Catering costs - provisions,23.28,0.00,23.28
Regeneration and Local Services,Direct Services,021242,Catering - County Hall,Supplies and Services,324117,Provisions E324,03-Apr-2018,000007201918925,JR HOLLAND FOODSERVICE,5422,Catering costs - provisions,13.20,0.00,13.20
Regeneration and Local Services,Culture & Sport,054812,Gala Theatre - Catering etc,Supplies and Services,324117,Provisions E324,03-Apr-2018,000007201918971,FREEMAN CATERING BUTCH,5422,Catering costs - provisions,16.20,0.00,16.20
Regeneration and Local Services,Economic Development and Housing,031576,B& B - Temp Accom,Supplies and Services,364320,Grants to Voluntary Organisations,03-Apr-2018,000007201918973,PREMIER INN44023785,5812,Accommodation assistance,483.00,80.50,402.50
Regeneration and Local Services,Direct Services,010367,C&G - South Grounds Maintenance,Supplies and Services,328041,Clothing uniforms and laundry E328,03-Apr-2018,000007201918991,STERLING SAFETY SERVIC,5691,Clothing uniforms and laundry,42.00,7.00,35.00
Regeneration and Local Services,Economic Development and Housing,030749,Employability - Youth Contract,Transport,235057,Public Transport,03-Apr-2018,000007201918993,ARRIVA NORTH EAST,4131,Staff travelling,23.00,0.00,23.00
Regeneration and Local Services,Culture & Sport,054813,Gala Theatre - Technical,Supplies and Services,304403,Equipment and Materials,03-Apr-2018,000007201918997,TIMPSON LTD,7251,Other consumables,48.00,0.00,48.00
Regeneration and Local Services,Culture & Sport,054813,Gala Theatre - Technical,Supplies and Services,312011,Newspapers books and periodicals E312,03-Apr-2018,000007201918999,Amazon UK Marketplace,5942,Books-school library,40.69,0.00,40.69
Children and Young Peoples Services,"Head of Early Help, Inclusion and Vulnerable Children",085965,Barnard,Supplies and Services,328041,Clothing uniforms and laundry E328,03-Apr-2018,000007201919007,FOOTASYLUM PLC,5941,Clothing uniforms and laundry,120.96,0.00,120.96
Children and Young Peoples Services,"Head of Early Help, Inclusion and Vulnerable Children",085956,Lumley,Supplies and Services,328041,Clothing uniforms and laundry E328,03-Apr-2018,000007201919009,WWW.FOOTLOCKER.EU,5661,Clothing uniforms and laundry,94.99,0.00,94.99
Regeneration and Local Services,Direct Services,010367,C&G - South Grounds Maintenance,Supplies and Services,304259,Equipment and Materials,03-Apr-2018,000007201919011,HORNS GARDEN CENTR,5261,Equipment-purchase and rental,35.94,0.00,35.94
Regeneration and Local Services,Culture & Sport,011060,Hardwick Park Catering,Supplies and Services,324117,Provisions E324,03-Apr-2018,000007201919015,FREEMAN CATERING BUTCH,5422,Catering costs - provisions,85.31,0.00,85.31
Regeneration and Local Services,Culture & Sport,011060,Hardwick Park Catering,Supplies and Services,324117,Provisions E324,03-Apr-2018,000007201919017,FREEMAN CATERING BUTCH,5422,Catering costs - provisions,27.19,0.00,27.19
Regeneration and Local Services,Culture & Sport,011060,Hardwick Park Catering,Supplies and Services,324117,Provisions E324,03-Apr-2018,000007201919019,JR HOLLAND FOODSERVICE,5422,Catering costs - provisions,27.04,0.00,27.04
Children and Young Peoples Services,Head of Childrens Social Care,085551,Short Break Services-Park Hse Sher,Supplies and Services,312011,Newspapers books and periodicals E312,03-Apr-2018,000007201919025,HOME BARGAINS,5251,Books-school library,11.14,0.00,11.14
Children and Young Peoples Services,Head of Childrens Social Care,085551,Short Break Services-Park Hse Sher,Supplies and Services,324117,Provisions E324,03-Apr-2018,000007201919027,ALDI 15 774,5411,Catering costs - provisions,19.80,0.00,19.80
Regeneration and Local Services,Direct Services,021234,Catering - Locomotion,Supplies and Services,324117,Provisions E324,03-Apr-2018,000007201919029,FREEMAN CATERING BUTCH,5422,Catering costs - provisions,73.08,0.00,73.08
Regeneration and Local Services,Direct Services,010900,Fleet - Meadowfield Fleet,Transport,215013,Running Costs of Vehicles,03-Apr-2018,000007201919037,POST OFFICE COUNTER,9402,Vehicle Excise Duty (VED),280.00,0.00,280.00
Children and Young Peoples Services,Head of Education and Skills,076004,Music - Parents Fund,Supplies and Services,384199,Miscellaneous Expenses,03-Apr-2018,000007201919039,ATG TICKETS,7922,Other hired and contracted services,"1,100.00",183.33,916.67
Adult and Health Services,Head of Adults,055643,Hawthorn House LD Respite Unit,Supplies and Services,324117,Provisions E324,03-Apr-2018,000007201919049,FREEMAN CATERING BUTCH,5422,Catering costs - provisions,32.78,0.00,32.78
Adult and Health Services,Head of Adults,055643,Hawthorn House LD Respite Unit,Supplies and Services,324117,Provisions E324,03-Apr-2018,000007201919051,FREEMAN CATERING BUTCH,5422,Catering costs - provisions,10.61,0.00,10.61
Adult and Health Services,Head of Adults,055643,Hawthorn House LD Respite Unit,Supplies and Services,324117,Provisions E324,03-Apr-2018,000007201919053,JR HOLLAND FOODSERVICE,5422,Catering costs - provisions,18.05,0.00,18.05
Adult and Health Services,Head of Adults,055643,Hawthorn House LD Respite Unit,Supplies and Services,324117,Provisions E324,03-Apr-2018,000007201919055,JR HOLLAND FOODSERVICE,5422,Catering costs - provisions,10.27,0.00,10.27
Children and Young Peoples Services,"Head of Early Help, Inclusion and Vulnerable Children",085957,Secure Management,Supplies and Services,304335,Equipment and Materials,03-Apr-2018,000007201919071,Amazon UK Marketplace,5942,ICT supplies etc,79.90,0.00,79.90
Children and Young Peoples Services,"Head of Early Help, Inclusion and Vulnerable Children",085957,Secure Management,Supplies and Services,328041,Clothing uniforms and laundry E328,03-Apr-2018,000007201919073,VERY,5964,Clothing uniforms and laundry,-85.00,0.00,-85.00
Regeneration and Local Services,Direct Services,021324,Catering - Meadowfield,Supplies and Services,324117,Provisions E324,03-Apr-2018,000007201919079,FREEMAN CATERING BUTCH,5422,Catering costs - provisions,53.52,0.00,53.52
Regeneration and Local Services,Direct Services,021324,Catering - Meadowfield,Supplies and Services,324117,Provisions E324,03-Apr-2018,000007201919081,FREEMAN CATERING BUTCH,5422,Catering costs - provisions,42.19,0.00,42.19
Regeneration and Local Services,Direct Services,021324,Catering - Meadowfield,Supplies and Services,324117,Provisions E324,03-Apr-2018,000007201919083,JR HOLLAND FOODSERVICE,5422,Catering costs - provisions,18.33,0.00,18.33
Regeneration and Local Services,Direct Services,021324,Catering - Meadowfield,Supplies and Services,324117,Provisions E324,03-Apr-2018,000007201919085,JR HOLLAND FOODSERVICE,5422,Catering costs - provisions,9.90,0.00,9.90
Regeneration and Local Services,Economic Development and Housing,031576,B& B - Temp Accom,Supplies and Services,364320,Grants to Voluntary Organisations,03-Apr-2018,000007201919097,HOTEL 52,7011,Accommodation assistance,100.00,0.00,100.00
Regeneration and Local Services,Technical Services,010984,Training and Development,Supplies and Services,304259,Equipment and Materials,03-Apr-2018,000007201919103,DSA,9399,Equipment-purchase and rental,300.00,0.00,300.00
Resources,Legal & Democratic Services,067801,Registrars Headquarters,Supplies and Services,340001,Postages E340,03-Apr-2018,000007201919123,ROYAL MAIL ONLINE SHOP,9402,Postages,79.00,0.00,79.00
Adult and Health Services,Head of Adults,055306,Spennymoor Pathways,Supplies and Services,324117,Provisions E324,03-Apr-2018,000007201919125,TAYLORS NEWSFORCE 2567,5411,Catering costs - provisions,5.97,0.00,5.97
Transformation and Partnerships,Partnerships & Community Engagement Div.,060472,Syrian Vulnerable Persons Scheme,Supplies and Services,308011,Furniture,03-Apr-2018,000007201919133,WILKO DURHAM 426,5722,Furniture repair and replacement,122.00,20.33,101.67
Resources,Finance & Transactional Services,065170,Welfare Rights,Supplies and Services,338064,Services,03-Apr-2018,000007201919135,DISCLOSURE SCOT,9399,Disclosure & Barring (DBS) Fees,25.00,0.00,25.00
Regeneration and Local Services,Direct Services,021242,Catering - County Hall,Supplies and Services,324117,Provisions E324,03-Apr-2018,000007206136173,BATLEYS PERTH,5300,Catering costs - provisions,537.66,89.61,448.05
Regeneration and Local Services,Direct Services,021242,Catering - County Hall,Supplies and Services,324117,Provisions E324,03-Apr-2018,000007206136173 - 1,BATLEYS PERTH,5300,Catering costs - provisions,135.46,,135.46
Regeneration and Local Services,Economic Development and Housing,031576,B& B - Temp Accom,Supplies and Services,364320,Grants to Voluntary Organisations,03-Apr-2018,000007206136187,PREMIER INN,3811,Accommodation assistance,167.50,27.92,139.58
Regeneration and Local Services,Economic Development and Housing,031576,B& B - Temp Accom,Supplies and Services,364320,Grants to Voluntary Organisations,03-Apr-2018,000007206136189,PREMIER INN,3811,Accommodation assistance,156.00,26.00,130.00
Regeneration and Local Services,Economic Development and Housing,031576,B& B - Temp Accom,Supplies and Services,364320,Grants to Voluntary Organisations,03-Apr-2018,000007206136191,PREMIER INN,3811,Accommodation assistance,156.00,26.00,130.00
Children and Young Peoples Services,"Head of Early Help, Inclusion and Vulnerable Children",085956,Lumley,Supplies and Services,328041,Clothing uniforms and laundry E328,03-Apr-2018,000007206136295,H & M ONLINE,5691,Clothing uniforms and laundry,25.97,4.33,21.64
Children and Young Peoples Services,"Head of Early Help, Inclusion and Vulnerable Children",085965,Barnard,Supplies and Services,328041,Clothing uniforms and laundry E328,03-Apr-2018,000007206136299,SPORTSDIRECT.COM,5941,Clothing uniforms and laundry,74.98,12.50,62.48
Regeneration and Local Services,Culture & Sport,011060,Hardwick Park Catering,Supplies and Services,324117,Provisions E324,03-Apr-2018,000007206136323,BATLEYS PERTH,5300,Catering costs - provisions,130.14,21.69,108.45
Regeneration and Local Services,Culture & Sport,011060,Hardwick Park Catering,Supplies and Services,324117,Provisions E324,03-Apr-2018,000007206136323 - 1,BATLEYS PERTH,5300,Catering costs - provisions,210.27,,210.27
Regeneration and Local Services,Direct Services,021234,Catering - Locomotion,Supplies and Services,324117,Provisions E324,03-Apr-2018,000007206136365,BATLEYS PERTH,5300,Catering costs - provisions,309.66,51.61,258.05
Regeneration and Local Services,Direct Services,021234,Catering - Locomotion,Supplies and Services,324117,Provisions E324,03-Apr-2018,000007206136365 - 1,BATLEYS PERTH,5300,Catering costs - provisions,66.91,,66.91
Regeneration and Local Services,Direct Services,021234,Catering - Locomotion,Supplies and Services,324117,Provisions E324,03-Apr-2018,000007206136369,BATLEYS PERTH,5300,Catering costs - provisions,5.52,0.00,5.52
Regeneration and Local Services,Direct Services,010525,Catering - Green Lane,Supplies and Services,324117,Provisions E324,03-Apr-2018,000007206136393,BATLEYS PERTH,5300,Catering costs - provisions,201.96,33.66,168.30
Regeneration and Local Services,Direct Services,010525,Catering - Green Lane,Supplies and Services,324117,Provisions E324,03-Apr-2018,000007206136393 - 1,BATLEYS PERTH,5300,Catering costs - provisions,55.78,,55.78
Regeneration and Local Services,Economic Development and Housing,031576,B& B - Temp Accom,Supplies and Services,364320,Grants to Voluntary Organisations,03-Apr-2018,000007206136533,PREMIER INN,3811,Accommodation assistance,496.50,82.75,413.75
Children and Young Peoples Services,"Head of Early Help, Inclusion and Vulnerable Children",085955,Auckland,Supplies and Services,384999,Miscellaneous Expenses,03-Apr-2018,000007216571363,Amazon UK Marketplace,5942,Other expenses,27.52,0.00,27.52
Children and Young Peoples Services,Head of Childrens Social Care,085341,High Etherley Satelite Home,Supplies and Services,324117,Provisions E324,04-Apr-2018,000007206136077,TESCO STORES 6329,5411,Catering costs - provisions,49.63,0.00,49.63
Children and Young Peoples Services,Head of Childrens Social Care,085341,High Etherley Satelite Home,Supplies and Services,324117,Provisions E324,04-Apr-2018,000007206136079,TESCO STORES 6329,5411,Catering costs - provisions,20.00,0.00,20.00
Regeneration and Local Services,Economic Development and Housing,030554,International Relations,Transport,235057,Public Transport,04-Apr-2018,000007206136093,PRINCE BISHOP SHOPPING,7523,Staff travelling,2.10,0.00,2.10
Children and Young Peoples Services,Head of Education and Skills,071801,Selby Cottage Childcare Centre,Supplies and Services,324117,Provisions E324,04-Apr-2018,000007206136097,ONE STOP 3026,5411,Catering costs - provisions,6.10,0.00,6.10
Children and Young Peoples Services,Head of Childrens Social Care,085342,9 Cedar Drive Aycliffe,Supplies and Services,328041,Clothing uniforms and laundry E328,04-Apr-2018,000007206136107,NEXT 0513 STOCKTON TEE,5651,Clothing uniforms and laundry,25.05,0.00,25.05
Children and Young Peoples Services,Head of Childrens Social Care,085342,9 Cedar Drive Aycliffe,Supplies and Services,348037,Subsistence E348,04-Apr-2018,000007206136111,GREGGS,5812,Subsistence,3.35,0.00,3.35
Children and Young Peoples Services,Head of Childrens Social Care,085342,9 Cedar Drive Aycliffe,Supplies and Services,304259,Equipment and Materials,04-Apr-2018,000007206136113,SPORTSDIRECT 246,5941,Equipment-purchase and rental,44.05,0.00,44.05
Children and Young Peoples Services,Head of Childrens Social Care,085342,9 Cedar Drive Aycliffe,Supplies and Services,304259,Equipment and Materials,04-Apr-2018,000007206136115,SPORTSDIRECT 246,5941,Equipment-purchase and rental,12.79,0.00,12.79
Children and Young Peoples Services,Head of Childrens Social Care,085342,9 Cedar Drive Aycliffe,Supplies and Services,324117,Provisions E324,04-Apr-2018,000007206136117,TESCO STORES 2916,5411,Catering costs - provisions,31.85,0.00,31.85
Regeneration and Local Services,Economic Development and Housing,030699,Business Growth and Innovation General,Employees,040149,Recruitment Instruction and Training,04-Apr-2018,000007206136125,WWW.NESTA.ORG,8398,Training-all costs,62.00,10.33,51.67
Regeneration and Local Services,Economic Development and Housing,030699,Business Growth and Innovation General,Supplies and Services,312011,Newspapers books and periodicals E312,04-Apr-2018,000007206136127,FASTHOSTS INTERNET,4816,Books-school library,6.34,1.06,5.28
Regeneration and Local Services,Direct Services,010367,C&G - South Grounds Maintenance,Supplies and Services,304259,Equipment and Materials,04-Apr-2018,000007206136133,MKM PETERLEE,5211,Equipment-purchase and rental,27.31,4.55,22.76
Adult and Health Services,Head of Adults,055302,Durham Pathways,Supplies and Services,324117,Provisions E324,04-Apr-2018,000007206136135,ASDA SUPERSTORE,5411,Catering costs - provisions,4.50,0.00,4.50
Regeneration and Local Services,Direct Services,021242,Catering - County Hall,Supplies and Services,324117,Provisions E324,04-Apr-2018,000007206136145,WWW.ADELIEFOODS.CO.UK,5499,Catering costs - provisions,249.45,0.00,249.45
Regeneration and Local Services,Direct Services,021242,Catering - County Hall,Supplies and Services,324117,Provisions E324,04-Apr-2018,000007206136147,WWW.ADELIEFOODS.CO.UK,5499,Catering costs - provisions,208.99,0.00,208.99
Regeneration and Local Services,Direct Services,021242,Catering - County Hall,Supplies and Services,324117,Provisions E324,04-Apr-2018,000007206136149,WWW.ADELIEFOODS.CO.UK,5499,Catering costs - provisions,207.92,0.00,207.92
Regeneration and Local Services,Direct Services,021242,Catering - County Hall,Supplies and Services,324117,Provisions E324,04-Apr-2018,000007206136151,WWW.ADELIEFOODS.CO.UK,5499,Catering costs - provisions,178.78,0.00,178.78
Regeneration and Local Services,Direct Services,021242,Catering - County Hall,Supplies and Services,324117,Provisions E324,04-Apr-2018,000007206136153,WWW.ADELIEFOODS.CO.UK,5499,Catering costs - provisions,166.34,0.00,166.34
Regeneration and Local Services,Direct Services,021242,Catering - County Hall,Supplies and Services,324117,Provisions E324,04-Apr-2018,000007206136155,WWW.ADELIEFOODS.CO.UK,5499,Catering costs - provisions,156.75,0.00,156.75
Regeneration and Local Services,Direct Services,021242,Catering - County Hall,Supplies and Services,324117,Provisions E324,04-Apr-2018,000007206136157,WWW.ADELIEFOODS.CO.UK,5499,Catering costs - provisions,110.47,0.00,110.47
Regeneration and Local Services,Direct Services,021242,Catering - County Hall,Supplies and Services,324117,Provisions E324,04-Apr-2018,000007206136159,JR HOLLAND FOODSERVICE,5422,Catering costs - provisions,111.37,0.00,111.37
Regeneration and Local Services,Direct Services,021242,Catering - County Hall,Supplies and Services,324117,Provisions E324,04-Apr-2018,000007206136163,JR HOLLAND FOODSERVICE,5422,Catering costs - provisions,13.54,0.00,13.54
Regeneration and Local Services,Economic Development and Housing,030737,Durham Works Flexible Fund,Transport,235057,Public Transport,04-Apr-2018,000007206136181,ARRIVA NORTH EAST,4131,Staff travelling,7.00,0.00,7.00
Regeneration and Local Services,Economic Development and Housing,030737,Durham Works Flexible Fund,Transport,235057,Public Transport,04-Apr-2018,000007206136183,ARRIVA NORTH EAST,4131,Staff travelling,25.00,0.00,25.00
Regeneration and Local Services,Direct Services,021242,Catering - County Hall,Supplies and Services,328041,Clothing uniforms and laundry E328,04-Apr-2018,000007206136199,ARGOS LTD,5310,Clothing uniforms and laundry,10.99,0.00,10.99
Regeneration and Local Services,Direct Services,021242,Catering - County Hall,Supplies and Services,312011,Newspapers books and periodicals E312,04-Apr-2018,000007206136201,HOME BARGAINS,5251,Books-school library,33.96,0.00,33.96
Regeneration and Local Services,Economic Development and Housing,030725,Community Economic Development,Employees,040149,Recruitment Instruction and Training,04-Apr-2018,000007206136209,MINERLPRDCTSQULFCN,8220,Training-all costs,156.00,26.00,130.00
Children and Young Peoples Services,Head of Childrens Social Care,085334,West Rainton Satelite Home,Supplies and Services,312011,Newspapers books and periodicals E312,04-Apr-2018,000007206136219,HOME BARGAINS,5251,Books-school library,20.80,3.47,17.33
Children and Young Peoples Services,Head of Childrens Social Care,085334,West Rainton Satelite Home,Supplies and Services,312011,Newspapers books and periodicals E312,04-Apr-2018,000007206136221,HOME BARGAINS,5251,Books-school library,3.00,0.50,2.50
Children and Young Peoples Services,Head of Childrens Social Care,085334,West Rainton Satelite Home,Supplies and Services,312011,Newspapers books and periodicals E312,04-Apr-2018,000007206136221 - 1,HOME BARGAINS,5251,Books-school library,11.95,,11.95
Children and Young Peoples Services,Head of Childrens Social Care,085334,West Rainton Satelite Home,Supplies and Services,324117,Provisions E324,04-Apr-2018,000007206136223,TESCO STORES 2371,5411,Catering costs - provisions,66.76,0.00,66.76
Children and Young Peoples Services,Childrens Services Operational Support,052986,CYPS - Locality and Operational Support,Supplies and Services,324117,Provisions E324,04-Apr-2018,000007206136227,ASDA SUPERSTORE 4987,5411,Catering costs - provisions,8.32,0.00,8.32
Regeneration and Local Services,Economic Development and Housing,030749,Employability - Youth Contract,Transport,235057,Public Transport,04-Apr-2018,000007206136229,ARRIVA NORTH EAST,4131,Staff travelling,25.00,0.00,25.00
Regeneration and Local Services,Culture & Sport,054813,Gala Theatre - Technical,Supplies and Services,304259,Equipment and Materials,04-Apr-2018,000007206136261,SCREWFIX,5211,Equipment-purchase and rental,169.96,28.33,141.63
Regeneration and Local Services,Economic Development and Housing,030501,Physical Development Management & Admin,Supplies and Services,304999,Equipment and Materials,04-Apr-2018,000007206136267,HISTORIC ENGLAND,7991,Misc equipment tools and materials,160.00,0.00,160.00
Children and Young Peoples Services,"Head of Early Help, Inclusion and Vulnerable Children",085957,Secure Management,Supplies and Services,312011,Newspapers books and periodicals E312,04-Apr-2018,000007206136291,Amazon EU,5969,Books-school library,19.95,0.00,19.95
Children and Young Peoples Services,"Head of Early Help, Inclusion and Vulnerable Children",085955,Auckland,Supplies and Services,384999,Miscellaneous Expenses,04-Apr-2018,000007206136293,WWW.ARGOS.CO.UK,5310,Other expenses,43.91,7.32,36.59
Children and Young Peoples Services,"Head of Early Help, Inclusion and Vulnerable Children",085955,Auckland,Supplies and Services,324117,Provisions E324,04-Apr-2018,000007206136301,TESCO STORES 6329,5411,Catering costs - provisions,94.76,0.00,94.76
Children and Young Peoples Services,"Head of Early Help, Inclusion and Vulnerable Children",085955,Auckland,Supplies and Services,328041,Clothing uniforms and laundry E328,04-Apr-2018,000007206136303,VERY,5964,Clothing uniforms and laundry,98.99,0.00,98.99
Regeneration and Local Services,Culture & Sport,054813,Gala Theatre - Technical,Supplies and Services,312011,Newspapers books and periodicals E312,04-Apr-2018,000007206136305,Amazon UK Marketplace,5942,Books-school library,16.90,0.00,16.90
Regeneration and Local Services,Culture & Sport,054813,Gala Theatre - Technical,Supplies and Services,312011,Newspapers books and periodicals E312,04-Apr-2018,000007206136307,Amazon UK Marketplace,5942,Books-school library,9.87,0.00,9.87
Regeneration and Local Services,Culture & Sport,054813,Gala Theatre - Technical,Supplies and Services,312011,Newspapers books and periodicals E312,04-Apr-2018,000007206136309,Amazon UK Marketplace,5942,Books-school library,6.99,0.00,6.99
Regeneration and Local Services,Culture & Sport,054813,Gala Theatre - Technical,Supplies and Services,312011,Newspapers books and periodicals E312,04-Apr-2018,000007206136311,Amazon UK Marketplace,5942,Books-school library,148.17,0.00,148.17
Regeneration and Local Services,Culture & Sport,054813,Gala Theatre - Technical,Supplies and Services,312011,Newspapers books and periodicals E312,04-Apr-2018,000007206136313,Amazon EU,5969,Books-school library,79.99,0.00,79.99
Regeneration and Local Services,Culture & Sport,054813,Gala Theatre - Technical,Supplies and Services,304403,Equipment and Materials,04-Apr-2018,000007206136315,RUDE GROOMING,5734,Other consumables,10.00,0.00,10.00
Regeneration and Local Services,Culture & Sport,011060,Hardwick Park Catering,Supplies and Services,324117,Provisions E324,04-Apr-2018,000007206136321,JR HOLLAND FOODSERVICE,5422,Catering costs - provisions,39.94,0.00,39.94
Regeneration and Local Services,Economic Development and Housing,030750,Durham Employment & Skills - General,Employees,040149,Recruitment Instruction and Training,04-Apr-2018,000007206136325,CITB,8220,Training-all costs,30.00,5.00,25.00
Regeneration and Local Services,Economic Development and Housing,030750,Durham Employment & Skills - General,Employees,040149,Recruitment Instruction and Training,04-Apr-2018,000007206136329,CITB,8220,Training-all costs,30.00,5.00,25.00
Regeneration and Local Services,Economic Development and Housing,030750,Durham Employment & Skills - General,Employees,040149,Recruitment Instruction and Training,04-Apr-2018,000007206136331,CITB,8220,Training-all costs,30.00,5.00,25.00
Regeneration and Local Services,Economic Development and Housing,030750,Durham Employment & Skills - General,Employees,040149,Recruitment Instruction and Training,04-Apr-2018,000007206136333,CITB,8220,Training-all costs,30.00,5.00,25.00
Children and Young Peoples Services,Head of Childrens Social Care,085332,Middlestone Moor CU,Supplies and Services,324117,Provisions E324,04-Apr-2018,000007206136339,ALDI 74 774,5411,Catering costs - provisions,34.12,0.00,34.12
Children and Young Peoples Services,Head of Childrens Social Care,085332,Middlestone Moor CU,Supplies and Services,308011,Furniture,04-Apr-2018,000007206136341,WWW.LINTHORPEBEDS.,5712,Furniture repair and replacement,104.95,0.00,104.95
Children and Young Peoples Services,Head of Childrens Social Care,085332,Middlestone Moor CU,Supplies and Services,324117,Provisions E324,04-Apr-2018,000007206136343,TESCO STORES 2916,5411,Catering costs - provisions,33.69,0.00,33.69
Regeneration and Local Services,Direct Services,021234,Catering - Locomotion,Supplies and Services,324117,Provisions E324,04-Apr-2018,000007206136349,WWW.ADELIEFOODS.CO.UK,5499,Catering costs - provisions,509.58,0.00,509.58
Regeneration and Local Services,Direct Services,021234,Catering - Locomotion,Supplies and Services,324117,Provisions E324,04-Apr-2018,000007206136351,WWW.ADELIEFOODS.CO.UK,5499,Catering costs - provisions,153.89,0.00,153.89
Regeneration and Local Services,Direct Services,021234,Catering - Locomotion,Supplies and Services,324117,Provisions E324,04-Apr-2018,000007206136353,WWW.ADELIEFOODS.CO.UK,5499,Catering costs - provisions,80.93,0.00,80.93
Regeneration and Local Services,Direct Services,021234,Catering - Locomotion,Supplies and Services,324117,Provisions E324,04-Apr-2018,000007206136355,WWW.ADELIEFOODS.CO.UK,5499,Catering costs - provisions,73.92,0.00,73.92
Regeneration and Local Services,Direct Services,021234,Catering - Locomotion,Supplies and Services,324117,Provisions E324,04-Apr-2018,000007206136357,WWW.ADELIEFOODS.CO.UK,5499,Catering costs - provisions,55.42,0.00,55.42
Regeneration and Local Services,Direct Services,021234,Catering - Locomotion,Supplies and Services,324117,Provisions E324,04-Apr-2018,000007206136359,WWW.ADELIEFOODS.CO.UK,5499,Catering costs - provisions,53.95,0.00,53.95
Regeneration and Local Services,Direct Services,021234,Catering - Locomotion,Supplies and Services,324117,Provisions E324,04-Apr-2018,000007206136361,WWW.ADELIEFOODS.CO.UK,5499,Catering costs - provisions,31.88,0.00,31.88
Regeneration and Local Services,Direct Services,021234,Catering - Locomotion,Supplies and Services,324117,Provisions E324,04-Apr-2018,000007206136363,WWW.ADELIEFOODS.CO.UK,5499,Catering costs - provisions,16.04,0.00,16.04
Regeneration and Local Services,Economic Development and Housing,031533,Syrian Refugee Humanitarian Support,Supplies and Services,384999,Miscellaneous Expenses,04-Apr-2018,000007206136371,WWW.ELIZABETHSEMBRIODE,5949,Other expenses,57.50,0.00,57.50
Regeneration and Local Services,Direct Services,010525,Catering - Green Lane,Supplies and Services,324117,Provisions E324,04-Apr-2018,000007206136379,WWW.ADELIEFOODS.CO.UK,5499,Catering costs - provisions,67.77,0.00,67.77
Regeneration and Local Services,Direct Services,010525,Catering - Green Lane,Supplies and Services,324117,Provisions E324,04-Apr-2018,000007206136381,WWW.ADELIEFOODS.CO.UK,5499,Catering costs - provisions,63.21,0.00,63.21
Regeneration and Local Services,Direct Services,010525,Catering - Green Lane,Supplies and Services,324117,Provisions E324,04-Apr-2018,000007206136383,WWW.ADELIEFOODS.CO.UK,5499,Catering costs - provisions,55.97,0.00,55.97
Regeneration and Local Services,Direct Services,010525,Catering - Green Lane,Supplies and Services,324117,Provisions E324,04-Apr-2018,000007206136385,WWW.ADELIEFOODS.CO.UK,5499,Catering costs - provisions,33.50,0.00,33.50
Regeneration and Local Services,Direct Services,010525,Catering - Green Lane,Supplies and Services,324117,Provisions E324,04-Apr-2018,000007206136389,WWW.ADELIEFOODS.CO.UK,5499,Catering costs - provisions,30.72,0.00,30.72
Regeneration and Local Services,Direct Services,010525,Catering - Green Lane,Supplies and Services,324117,Provisions E324,04-Apr-2018,000007206136391,WWW.ADELIEFOODS.CO.UK,5499,Catering costs - provisions,14.70,0.00,14.70
Children and Young Peoples Services,Head of Childrens Social Care,085352,Tow Law CU,Supplies and Services,328041,Clothing uniforms and laundry E328,04-Apr-2018,000007206136397,THE RANGE,5311,Clothing uniforms and laundry,127.47,0.00,127.47
Children and Young Peoples Services,Head of Childrens Social Care,085352,Tow Law CU,Supplies and Services,308011,Furniture,04-Apr-2018,000007206136399,IKEA LIMITED,5712,Furniture repair and replacement,88.75,0.00,88.75
Resources,Legal & Democratic Services,067910,Democratic Representation,Supplies and Services,324117,Provisions E324,04-Apr-2018,000007206136401,MARKS&SPENCER PLC SACA,5411,Catering costs - provisions,35.00,0.00,35.00
Regeneration and Local Services,Direct Services,010367,C&G - South Grounds Maintenance,Supplies and Services,304259,Equipment and Materials,04-Apr-2018,000007206136429,B & Q 1120,5211,Equipment-purchase and rental,19.90,0.00,19.90
Regeneration and Local Services,Direct Services,010301,C&G - North Grounds Maintenance,Supplies and Services,304999,Equipment and Materials,04-Apr-2018,000007206136457,J G PAXTON SONS,5072,Misc equipment tools and materials,94.62,15.77,78.85
Children and Young Peoples Services,"Head of Early Help, Inclusion and Vulnerable Children",085954,Walworth,Supplies and Services,304649,Equipment and Materials,04-Apr-2018,000007206136465,Amazon UK Marketplace,5942,Toys,5.23,0.00,5.23
Children and Young Peoples Services,"Head of Early Help, Inclusion and Vulnerable Children",085965,Barnard,Supplies and Services,384999,Miscellaneous Expenses,04-Apr-2018,000007206136467,Amazon EU,5969,Other expenses,12.06,0.00,12.06
Children and Young Peoples Services,"Head of Early Help, Inclusion and Vulnerable Children",085957,Secure Management,Supplies and Services,328041,Clothing uniforms and laundry E328,04-Apr-2018,000007206136469,SPORTSDIRECT.COM,5941,Clothing uniforms and laundry,110.99,18.50,92.49
Children and Young Peoples Services,"Head of Early Help, Inclusion and Vulnerable Children",085956,Lumley,Supplies and Services,384999,Miscellaneous Expenses,04-Apr-2018,000007206136471,The Plastic Box Compan,5085,Other expenses,63.55,10.59,52.96
Children and Young Peoples Services,Head of Childrens Social Care,085372,Young People Services - North,Supplies and Services,328041,Clothing uniforms and laundry E328,04-Apr-2018,000007206136485,WWW.ARGOS.CO.UK,5310,Clothing uniforms and laundry,158.94,0.00,158.94
Children and Young Peoples Services,Head of Childrens Social Care,085372,Young People Services - North,Supplies and Services,338048,Services,04-Apr-2018,000007206136489,HMCOURTS-SERVICE.G,9222,Court costs 338048,20.00,0.00,20.00
Regeneration and Local Services,Transport and Contracted Services,031704,Care Connect - CCTV Countywide,Supplies and Services,384956,Miscellaneous Expenses,04-Apr-2018,000007206136499,SECURITY INDUSTRY,7393,Licences,220.00,0.00,220.00
Regeneration and Local Services,Transport and Contracted Services,031704,Care Connect - CCTV Countywide,Supplies and Services,384956,Miscellaneous Expenses,04-Apr-2018,000007206136503,SECURITY INDUSTRY,7393,Licences,220.00,0.00,220.00
Regeneration and Local Services,Transport and Contracted Services,031704,Care Connect - CCTV Countywide,Supplies and Services,384956,Miscellaneous Expenses,04-Apr-2018,000007206136505,SECURITY INDUSTRY,7393,Licences,220.00,0.00,220.00
Regeneration and Local Services,Culture & Sport,026591,Hardwick Park,Supplies and Services,332047,Printing Stationery and Gen Off Exps,04-Apr-2018,000007206136509,Amazon UK Marketplace,5942,Stationery,38.56,0.00,38.56
Regeneration and Local Services,EnvironmentHealth & Consumer Protection,010809,Env HealthConsumer Protection Manag,Third Party Payments 4THIRD,430100,Rendered by Private Contractors,04-Apr-2018,000007206136513,EB MOCK TRIAL-CORPORA,7399,Payments to sub-contractors,50.00,0.00,50.00
Children and Young Peoples Services,Head of Childrens Social Care,085333,Coxhoe Satelite Home,Supplies and Services,312011,Newspapers books and periodicals E312,04-Apr-2018,000007206136519,Amazon EU,5969,Books-school library,39.99,0.00,39.99
Regeneration and Local Services,Economic Development and Housing,031576,B& B - Temp Accom,Supplies and Services,364320,Grants to Voluntary Organisations,04-Apr-2018,000007206136539,HOTEL 52,7011,Accommodation assistance,500.00,0.00,500.00
Regeneration and Local Services,Direct Services,010301,C&G - North Grounds Maintenance,Third Party Payments 4THIRD,430100,Rendered by Private Contractors,04-Apr-2018,000007206136545,JOHN WARREN (ANIMAL BY,7399,Payments to sub-contractors,10.80,1.80,9.00
Children and Young Peoples Services,Head of Childrens Social Care,085380,Operations Manager Adoption & Fostering,Supplies and Services,324117,Provisions E324,04-Apr-2018,000007206136571,ASDA STORES,5411,Catering costs - provisions,27.99,0.00,27.99
Regeneration and Local Services,Direct Services,021235,Catering - Wharton Park,Supplies and Services,324117,Provisions E324,04-Apr-2018,000007206136599,WWW.ADELIEFOODS.CO.UK,5499,Catering costs - provisions,90.88,0.00,90.88
Regeneration and Local Services,Direct Services,021235,Catering - Wharton Park,Supplies and Services,324117,Provisions E324,04-Apr-2018,000007206136603,JR HOLLAND FOODSERVICE,5422,Catering costs - provisions,-0.93,0.00,-0.93
Transformation and Partnerships,Partnerships & Community Engagement Div.,060472,Syrian Vulnerable Persons Scheme,Supplies and Services,308011,Furniture,04-Apr-2018,000007206136621,SP TERRYS FABRICS,5691,Furniture repair and replacement,-17.98,-3.00,-14.98
Regeneration and Local Services,Spatial Policy Planning Assets & Environment,031200,North Pennines Core,Supplies and Services,332047,Printing Stationery and Gen Off Exps,04-Apr-2018,000007206136623,TOURISM SOUTH EAST,8641,Stationery,114.00,19.00,95.00
Regeneration and Local Services,Spatial Policy Planning Assets & Environment,031200,North Pennines Core,Supplies and Services,312009,Newspapers books and periodicals E312,04-Apr-2018,000007206136629,WEARDALE PUBLISHING &,5192,Newspapers books and periodicals,33.48,0.00,33.48
Regeneration and Local Services,Economic Development and Housing,030692,Durham Dales Centre - Management and Admin,Supplies and Services,324117,Provisions E324,04-Apr-2018,000007206136631,Castle Bank Butchers,5422,Catering costs - provisions,322.59,0.00,322.59
Regeneration and Local Services,Economic Development and Housing,030699,Business Growth and Innovation General,Supplies and Services,304403,Equipment and Materials,04-Apr-2018,000007210849345,MEETEDGAR MONTHLY,5734,Other consumables,34.96,0.00,34.96
Regeneration and Local Services,Economic Development and Housing,031576,B& B - Temp Accom,Supplies and Services,364320,Grants to Voluntary Organisations,04-Apr-2018,000007210849439,PREMIER INN,3811,Accommodation assistance,259.00,43.17,215.83
Regeneration and Local Services,Economic Development and Housing,031576,B& B - Temp Accom,Supplies and Services,364320,Grants to Voluntary Organisations,04-Apr-2018,000007210849443,PREMIER INN,3811,Accommodation assistance,248.00,41.33,206.67
Regeneration and Local Services,Culture & Sport,011060,Hardwick Park Catering,Supplies and Services,324117,Provisions E324,04-Apr-2018,000007210849663,BATLEYS PERTH,5300,Catering costs - provisions,-5.99,0.00,-5.99
Children and Young Peoples Services,Head of Childrens Social Care,085372,Young People Services - North,Supplies and Services,328041,Clothing uniforms and laundry E328,04-Apr-2018,000007210849961,WWW.ARGOS.CO.UK,5310,Clothing uniforms and laundry,264.46,0.00,264.46
Regeneration and Local Services,Direct Services,021324,Catering - Meadowfield,Supplies and Services,324117,Provisions E324,04-Apr-2018,000007210849991,BATLEYS PERTH,5300,Catering costs - provisions,68.22,11.37,56.85
Regeneration and Local Services,Direct Services,021324,Catering - Meadowfield,Supplies and Services,324117,Provisions E324,04-Apr-2018,000007210849991 - 1,BATLEYS PERTH,5300,Catering costs - provisions,96.29,,96.29
Regeneration and Local Services,Economic Development and Housing,030692,Durham Dales Centre - Management and Admin,Supplies and Services,324001,Provisions E324,04-Apr-2018,000007216571493,LANCHESTER WINE CE,5921,Bar supplies,37.84,6.31,31.53
Regeneration and Local Services,Economic Development and Housing,030580,Chilton - Site,Income 7SUM,720130,Fees and Charges,05-Apr-2018,000007210849287,WWW.MONEYCLAIM.GOV,9399,Fees-legal,410.00,0.00,410.00
Children and Young Peoples Services,Head of Childrens Social Care,085342,9 Cedar Drive Aycliffe,Supplies and Services,348037,Subsistence E348,05-Apr-2018,000007210849335,CARLUCCIOS METRO CENTR,5812,Subsistence,58.55,0.00,58.55
Dedicated Schools Grant,DSG High Needs Block,079063,Partial Hearing-Belmont Comp,Employees,040149,Recruitment Instruction and Training,05-Apr-2018,000007210849341,NSPCC.CSOD.COM,8398,Training-all costs,19.00,0.00,19.00
Children and Young Peoples Services,Head of Childrens Social Care,085342,9 Cedar Drive Aycliffe,Supplies and Services,308011,Furniture,05-Apr-2018,000007210849355,IKEA LIMITED,5712,Furniture repair and replacement,96.99,0.00,96.99
Regeneration and Local Services,Direct Services,021242,Catering - County Hall,Supplies and Services,324117,Provisions E324,05-Apr-2018,000007210849409,JR HOLLAND FOODSERVICE,5422,Catering costs - provisions,147.06,0.00,147.06
Regeneration and Local Services,Direct Services,021242,Catering - County Hall,Supplies and Services,324117,Provisions E324,05-Apr-2018,000007210849419,JR HOLLAND FOODSERVICE,5422,Catering costs - provisions,30.14,0.00,30.14
Regeneration and Local Services,Direct Services,021242,Catering - County Hall,Supplies and Services,324117,Provisions E324,05-Apr-2018,000007210849423,JR HOLLAND FOODSERVICE,5422,Catering costs - provisions,13.20,0.00,13.20
Regeneration and Local Services,Culture & Sport,054812,Gala Theatre - Catering etc,Supplies and Services,324117,Provisions E324,05-Apr-2018,000007210849431,JR HOLLAND FOODSERVICE,5422,Catering costs - provisions,54.07,0.00,54.07
Regeneration and Local Services,Culture & Sport,011217,Commercial Management,Supplies and Services,332047,Printing Stationery and Gen Off Exps,05-Apr-2018,000007210849473,LOVE2SHOP.CO.UK,8641,Stationery,7.26,1.21,6.05
Regeneration and Local Services,Culture & Sport,011217,Commercial Management,Supplies and Services,332047,Printing Stationery and Gen Off Exps,05-Apr-2018,000007210849473 - 1,LOVE2SHOP.CO.UK,8641,Stationery,119.99,,119.99
Regeneration and Local Services,Culture & Sport,054813,Gala Theatre - Technical,Supplies and Services,304259,Equipment and Materials,05-Apr-2018,000007210849529,SCREWFIX,5211,Equipment-purchase and rental,35.51,5.92,29.59
Regeneration and Local Services,Direct Services,010301,C&G - North Grounds Maintenance,Supplies and Services,312011,Newspapers books and periodicals E312,05-Apr-2018,000007210849579,GRALANDS WOODWORK SUPP,5251,Books-school library,21.50,0.00,21.50
Regeneration and Local Services,Economic Development and Housing,030737,Durham Works Flexible Fund,Supplies and Services,348037,Subsistence E348,05-Apr-2018,000007210849591,ARRIVA NORTH EAST,4131,Subsistence,18.20,0.00,18.20
Regeneration and Local Services,Economic Development and Housing,030737,Durham Works Flexible Fund,Supplies and Services,348037,Subsistence E348,05-Apr-2018,000007210849595,ARRIVA NORTH EAST,4131,Subsistence,3.80,0.00,3.80
Regeneration and Local Services,Economic Development and Housing,030737,Durham Works Flexible Fund,Supplies and Services,348037,Subsistence E348,05-Apr-2018,000007210849597,GO NORTH EAST LIMITED,4131,Subsistence,8.00,0.00,8.00
Regeneration and Local Services,Economic Development and Housing,030737,Durham Works Flexible Fund,Supplies and Services,348037,Subsistence E348,05-Apr-2018,000007210849601,GO NORTH EAST LIMITED,4131,Subsistence,8.00,0.00,8.00
Children and Young Peoples Services,"Head of Early Help, Inclusion and Vulnerable Children",085957,Secure Management,Supplies and Services,312011,Newspapers books and periodicals E312,05-Apr-2018,000007210849607,Amazon UK Marketplace,5942,Books-school library,31.96,0.00,31.96
Children and Young Peoples Services,"Head of Early Help, Inclusion and Vulnerable Children",085965,Barnard,Supplies and Services,324117,Provisions E324,05-Apr-2018,000007210849611,TESCO STORES 6329,5411,Catering costs - provisions,68.67,0.00,68.67
Regeneration and Local Services,Culture & Sport,054813,Gala Theatre - Technical,Supplies and Services,312011,Newspapers books and periodicals E312,05-Apr-2018,000007210849615,Amazon UK Marketplace,5942,Books-school library,127.50,0.00,127.50
Regeneration and Local Services,Culture & Sport,054813,Gala Theatre - Technical,Supplies and Services,312011,Newspapers books and periodicals E312,05-Apr-2018,000007210849621,Amazon UK Marketplace,5942,Books-school library,7.96,0.00,7.96
Regeneration and Local Services,Culture & Sport,011060,Hardwick Park Catering,Supplies and Services,324117,Provisions E324,05-Apr-2018,000007210849647,JR HOLLAND FOODSERVICE,5422,Catering costs - provisions,211.00,0.00,211.00
Regeneration and Local Services,Culture & Sport,011060,Hardwick Park Catering,Supplies and Services,324117,Provisions E324,05-Apr-2018,000007210849653,JR HOLLAND FOODSERVICE,5422,Catering costs - provisions,13.96,0.00,13.96
Regeneration and Local Services,Culture & Sport,011060,Hardwick Park Catering,Supplies and Services,324117,Provisions E324,05-Apr-2018,000007210849659,JR HOLLAND FOODSERVICE,5422,Catering costs - provisions,7.04,0.00,7.04
Regeneration and Local Services,Direct Services,021234,Catering - Locomotion,Supplies and Services,324117,Provisions E324,05-Apr-2018,000007210849681,JR HOLLAND FOODSERVICE,5422,Catering costs - provisions,103.19,0.00,103.19
Regeneration and Local Services,Direct Services,021234,Catering - Locomotion,Supplies and Services,324117,Provisions E324,05-Apr-2018,000007210849685,JR HOLLAND FOODSERVICE,5422,Catering costs - provisions,57.27,0.00,57.27
Regeneration and Local Services,Direct Services,021234,Catering - Locomotion,Supplies and Services,324117,Provisions E324,05-Apr-2018,000007210849689,JR HOLLAND FOODSERVICE,5422,Catering costs - provisions,24.54,0.00,24.54
Regeneration and Local Services,Direct Services,021234,Catering - Locomotion,Supplies and Services,324117,Provisions E324,05-Apr-2018,000007210849691,JR HOLLAND FOODSERVICE,5422,Catering costs - provisions,4.44,0.00,4.44
Regeneration and Local Services,Direct Services,010525,Catering - Green Lane,Supplies and Services,324117,Provisions E324,05-Apr-2018,000007210849701,JR HOLLAND FOODSERVICE,5422,Catering costs - provisions,70.37,0.00,70.37
Children and Young Peoples Services,Head of Childrens Social Care,085332,Middlestone Moor CU,Supplies and Services,324117,Provisions E324,05-Apr-2018,000007210849735,SAINSBURYS 2199,5411,Catering costs - provisions,149.65,0.00,149.65
Regeneration and Local Services,Direct Services,010367,C&G - South Grounds Maintenance,Supplies and Services,324117,Provisions E324,05-Apr-2018,000007210849737,J M RAINE,5399,Catering costs - provisions,130.50,21.75,108.75
Children and Young Peoples Services,Head of Childrens Social Care,085333,Coxhoe Satelite Home,Supplies and Services,312011,Newspapers books and periodicals E312,05-Apr-2018,000007210849745,HOME BARGAINS,5251,Books-school library,11.26,0.00,11.26
Children and Young Peoples Services,Head of Childrens Social Care,085333,Coxhoe Satelite Home,Supplies and Services,324117,Provisions E324,05-Apr-2018,000007210849753,TESCO STORES 2371,5411,Catering costs - provisions,24.70,0.00,24.70
Children and Young Peoples Services,Head of Childrens Social Care,085333,Coxhoe Satelite Home,Supplies and Services,304259,Equipment and Materials,05-Apr-2018,000007210849757,CURRYS,5732,Equipment-purchase and rental,69.96,11.66,58.30
Children and Young Peoples Services,Head of Childrens Social Care,085333,Coxhoe Satelite Home,Supplies and Services,304259,Equipment and Materials,05-Apr-2018,000007210849757 - 1,CURRYS,5732,Equipment-purchase and rental,0.03,,0.03
Children and Young Peoples Services,Head of Childrens Social Care,085333,Coxhoe Satelite Home,Supplies and Services,324117,Provisions E324,05-Apr-2018,000007210849763,ALDI 12 774,5411,Catering costs - provisions,72.92,0.00,72.92
Regeneration and Local Services,Direct Services,010367,C&G - South Grounds Maintenance,Supplies and Services,384999,Miscellaneous Expenses,05-Apr-2018,000007210849767,WWW.GUSTHARTS.COM,5046,Other expenses,284.24,0.00,284.24
Regeneration and Local Services,Economic Development and Housing,030692,Durham Dales Centre - Management and Admin,Supplies and Services,324117,Provisions E324,05-Apr-2018,000007210849791,JR HOLLAND FOODSERVICE,5422,Catering costs - provisions,35.71,0.00,35.71
Adult and Health Services,Head of Adults,055643,Hawthorn House LD Respite Unit,Supplies and Services,324117,Provisions E324,05-Apr-2018,000007210849793,JR HOLLAND FOODSERVICE,5422,Catering costs - provisions,37.27,0.00,37.27
Adult and Health Services,Head of Adults,055643,Hawthorn House LD Respite Unit,Supplies and Services,324117,Provisions E324,05-Apr-2018,000007210849799,JR HOLLAND FOODSERVICE,5422,Catering costs - provisions,21.60,0.00,21.60
Adult and Health Services,Head of Adults,055643,Hawthorn House LD Respite Unit,Supplies and Services,324117,Provisions E324,05-Apr-2018,000007210849803,JR HOLLAND FOODSERVICE,5422,Catering costs - provisions,17.10,0.00,17.10
Adult and Health Services,Head of Adults,055643,Hawthorn House LD Respite Unit,Supplies and Services,324117,Provisions E324,05-Apr-2018,000007210849809,JR HOLLAND FOODSERVICE,5422,Catering costs - provisions,2.96,0.00,2.96
Regeneration and Local Services,Direct Services,010301,C&G - North Grounds Maintenance,Supplies and Services,328041,Clothing uniforms and laundry E328,05-Apr-2018,000007210849841,THOMAS OWEN & SONS /N/,5611,Clothing uniforms and laundry,207.22,34.54,172.68
Resources,Digital and Customer Services,065335,School Services - Implementations,Supplies and Services,304303,Equipment and Materials,05-Apr-2018,000007210849847,WWW.CABLESUK.CO.UK,5999,Network for resale,98.67,0.00,98.67
Children and Young Peoples Services,"Head of Early Help, Inclusion and Vulnerable Children",085961,Themed Week Activity,Supplies and Services,384871,Miscellaneous Expenses,05-Apr-2018,000007210849851,PP PREMIERBOUN,7929,Training-other activities,370.00,0.00,370.00
Children and Young Peoples Services,"Head of Early Help, Inclusion and Vulnerable Children",085957,Secure Management,Supplies and Services,324117,Provisions E324,05-Apr-2018,000007210849857,TESCO DELIVERY SAVER2,5968,Catering costs - provisions,6.99,0.00,6.99
Children and Young Peoples Services,"Head of Early Help, Inclusion and Vulnerable Children",085965,Barnard,Supplies and Services,304999,Equipment and Materials,05-Apr-2018,000007210849859,DOMICILARY,8043,Misc equipment tools and materials,20.16,3.36,16.80
Children and Young Peoples Services,"Head of Early Help, Inclusion and Vulnerable Children",085965,Barnard,Supplies and Services,304999,Equipment and Materials,05-Apr-2018,000007210849859 - 1,DOMICILARY,8043,Misc equipment tools and materials,44.84,,44.84
Children and Young Peoples Services,Head of Childrens Social Care,085372,Young People Services - North,Supplies and Services,328041,Clothing uniforms and laundry E328,05-Apr-2018,000007210849957,WWW.ARGOS.CO.UK,5310,Clothing uniforms and laundry,150.92,0.00,150.92
Children and Young Peoples Services,Head of Childrens Social Care,085372,Young People Services - North,Supplies and Services,304259,Equipment and Materials,05-Apr-2018,000007210849965,CURRYS ONLINE,5732,Equipment-purchase and rental,499.96,83.33,416.63
Children and Young Peoples Services,Head of Childrens Social Care,085372,Young People Services - North,Supplies and Services,304259,Equipment and Materials,05-Apr-2018,000007210849969,CURRYS ONLINE,5732,Equipment-purchase and rental,59.93,0.00,59.93
Regeneration and Local Services,Culture & Sport,054235,Bishop Auckland Town Hall Cafe,Supplies and Services,324117,Provisions E324,05-Apr-2018,000007210849979,JR HOLLAND FOODSERVICE,5422,Catering costs - provisions,43.67,0.00,43.67
Regeneration and Local Services,Transport and Contracted Services,031704,Care Connect - CCTV Countywide,Supplies and Services,384956,Miscellaneous Expenses,05-Apr-2018,000007210849981,SECURITY INDUSTRY,7393,Licences,220.00,0.00,220.00
Regeneration and Local Services,Direct Services,021324,Catering - Meadowfield,Supplies and Services,324117,Provisions E324,05-Apr-2018,000007210849985,JR HOLLAND FOODSERVICE,5422,Catering costs - provisions,13.89,0.00,13.89
Regeneration and Local Services,Direct Services,021324,Catering - Meadowfield,Supplies and Services,324117,Provisions E324,05-Apr-2018,000007210849987,JR HOLLAND FOODSERVICE,5422,Catering costs - provisions,6.35,0.00,6.35
Children and Young Peoples Services,Head of Childrens Social Care,085333,Coxhoe Satelite Home,Supplies and Services,312011,Newspapers books and periodicals E312,05-Apr-2018,000007210850027,Amazon UK Marketplace,5942,Books-school library,36.31,0.00,36.31
Regeneration and Local Services,Technical Services,010984,Training and Development,Supplies and Services,384999,Miscellaneous Expenses,05-Apr-2018,000007210850059,WWW.LIFESAVERSDIRECT,5965,Other expenses,101.50,0.00,101.50
Regeneration and Local Services,Economic Development and Housing,031599,Prevention Initiatives,Supplies and Services,338064,Services,05-Apr-2018,000007210850075,DISCLOSURE SCOT,9399,Disclosure & Barring (DBS) Fees,25.00,0.00,25.00
Regeneration and Local Services,Economic Development and Housing,030737,Durham Works Flexible Fund,Supplies and Services,304259,Equipment and Materials,05-Apr-2018,000007210850081,SCREWFIX CHESTER L,5211,Equipment-purchase and rental,19.98,3.33,16.65
Regeneration and Local Services,Economic Development and Housing,030737,Durham Works Flexible Fund,Supplies and Services,304259,Equipment and Materials,05-Apr-2018,000007210850081 - 1,SCREWFIX CHESTER L,5211,Equipment-purchase and rental,20.00,,20.00
Regeneration and Local Services,Economic Development and Housing,030737,Durham Works Flexible Fund,Supplies and Services,304259,Equipment and Materials,05-Apr-2018,000007210850085,SCREWFIX CHESTER L,5211,Equipment-purchase and rental,16.99,2.83,14.16
Transformation and Partnerships,Partnerships & Community Engagement Div.,060472,Syrian Vulnerable Persons Scheme,Supplies and Services,308011,Furniture,05-Apr-2018,000007210850113,SP TERRYS FABRICS,5691,Furniture repair and replacement,91.02,15.17,75.85
Transformation and Partnerships,Partnerships & Community Engagement Div.,060472,Syrian Vulnerable Persons Scheme,Supplies and Services,308011,Furniture,05-Apr-2018,000007210850113 - 1,SP TERRYS FABRICS,5691,Furniture repair and replacement,15.93,,15.93
Transformation and Partnerships,Partnerships & Community Engagement Div.,060472,Syrian Vulnerable Persons Scheme,Supplies and Services,308011,Furniture,05-Apr-2018,000007210850117,VERTICAL BLINDS DIRECT,5719,Furniture repair and replacement,160.02,26.67,133.35
Transformation and Partnerships,Partnerships & Community Engagement Div.,060472,Syrian Vulnerable Persons Scheme,Supplies and Services,308011,Furniture,05-Apr-2018,000007210850117 - 1,VERTICAL BLINDS DIRECT,5719,Furniture repair and replacement,9.94,,9.94
Transformation and Partnerships,Partnerships & Community Engagement Div.,060472,Syrian Vulnerable Persons Scheme,Supplies and Services,308011,Furniture,05-Apr-2018,000007210850119,WILKO.COM,5722,Furniture repair and replacement,540.00,90.00,450.00
Regeneration and Local Services,Economic Development and Housing,031500,Housing Solutions - Core Team,Supplies and Services,364320,Grants to Voluntary Organisations,05-Apr-2018,000007216571195,PREMIER INN,3811,Accommodation assistance,66.00,11.00,55.00
Regeneration and Local Services,Economic Development and Housing,031576,B& B - Temp Accom,Supplies and Services,364320,Grants to Voluntary Organisations,05-Apr-2018,000007216571407,PREMIER INN,3811,Accommodation assistance,777.00,129.50,647.50
Children and Young Peoples Services,Head of Education and Skills,075021,Youth Employment Initiative,Supplies and Services,304999,Equipment and Materials,05-Apr-2018,000007223722145,GOOGLE ADWS7021127990,5968,Misc equipment tools and materials,346.69,0.00,346.69
Regeneration and Local Services,Culture & Sport,011060,Hardwick Park Catering,Supplies and Services,324117,Provisions E324,05-Apr-2018,000007227481083,BATLEYS PERTH,5300,Catering costs - provisions,79.50,13.25,66.25
Regeneration and Local Services,Culture & Sport,011060,Hardwick Park Catering,Supplies and Services,324117,Provisions E324,05-Apr-2018,000007227481083 - 1,BATLEYS PERTH,5300,Catering costs - provisions,59.25,,59.25
Regeneration and Local Services,Culture & Sport,011060,Hardwick Park Catering,Supplies and Services,324117,Provisions E324,05-Apr-2018,000007227481089,BATLEYS PERTH,5300,Catering costs - provisions,23.58,3.93,19.65
Regeneration and Local Services,Culture & Sport,011060,Hardwick Park Catering,Supplies and Services,324117,Provisions E324,05-Apr-2018,000007227481089 - 1,BATLEYS PERTH,5300,Catering costs - provisions,6.59,,6.59
Regeneration and Local Services,Direct Services,021234,Catering - Locomotion,Supplies and Services,324117,Provisions E324,05-Apr-2018,000007227481145,BATLEYS PERTH,5300,Catering costs - provisions,162.24,27.04,135.20
Regeneration and Local Services,Direct Services,021234,Catering - Locomotion,Supplies and Services,324117,Provisions E324,05-Apr-2018,000007227481145 - 1,BATLEYS PERTH,5300,Catering costs - provisions,29.53,,29.53
Regeneration and Local Services,Direct Services,021234,Catering - Locomotion,Supplies and Services,324117,Provisions E324,05-Apr-2018,000007227481149,BATLEYS PERTH,5300,Catering costs - provisions,11.00,0.00,11.00
Regeneration and Local Services,Direct Services,021235,Catering - Wharton Park,Supplies and Services,324117,Provisions E324,05-Apr-2018,000007227481429,BATLEYS PERTH,5300,Catering costs - provisions,56.10,9.35,46.75
Regeneration and Local Services,Direct Services,021235,Catering - Wharton Park,Supplies and Services,324117,Provisions E324,05-Apr-2018,000007227481429 - 1,BATLEYS PERTH,5300,Catering costs - provisions,25.25,,25.25
Regeneration and Local Services,Direct Services,021242,Catering - County Hall,Supplies and Services,324117,Provisions E324,05-Apr-2018,000007308715083,BATLEYS PERTH,5300,Catering costs - provisions,141.12,23.52,117.60
Regeneration and Local Services,Direct Services,021242,Catering - County Hall,Supplies and Services,324117,Provisions E324,05-Apr-2018,000007308715083 - 1,BATLEYS PERTH,5300,Catering costs - provisions,311.02,,311.02
Regeneration and Local Services,Economic Development and Housing,030699,Business Growth and Innovation General,Supplies and Services,304403,Equipment and Materials,06-Apr-2018,000007210849351,MEETEDGAR MONTHLY,5734,Other consumables,0.96,0.00,0.96
Children and Young Peoples Services,Head of Childrens Social Care,085333,Coxhoe Satelite Home,Supplies and Services,312011,Newspapers books and periodicals E312,06-Apr-2018,000007210850033,Amazon UK Marketplace,5942,Books-school library,26.77,0.00,26.77
Children and Young Peoples Services,Head of Education and Skills,071801,Selby Cottage Childcare Centre,Supplies and Services,304259,Equipment and Materials,06-Apr-2018,000007216571169,WILKO RETAIL LIMIT,5722,Equipment-purchase and rental,20.85,0.00,20.85
Children and Young Peoples Services,Head of Education and Skills,071801,Selby Cottage Childcare Centre,Supplies and Services,324117,Provisions E324,06-Apr-2018,000007216571171,ASDA GROCERIES ONLINE,5411,Catering costs - provisions,99.73,0.00,99.73
Children and Young Peoples Services,Head of Education and Skills,071801,Selby Cottage Childcare Centre,Supplies and Services,324117,Provisions E324,06-Apr-2018,000007216571173,TESCO STORES 2278,5411,Catering costs - provisions,7.99,0.00,7.99
Children and Young Peoples Services,Head of Education and Skills,071801,Selby Cottage Childcare Centre,Income 7SUM,720130,Fees and Charges,06-Apr-2018,000007216571179,WWW.MONEYCLAIM.GOV,9399,Fees-legal,70.00,0.00,70.00
Children and Young Peoples Services,Head of Education and Skills,071733,Shildon Childcare,Income 7SUM,720130,Fees and Charges,06-Apr-2018,000007216571181,WWW.MONEYCLAIM.GOV,9399,Fees-legal,70.00,0.00,70.00
Regeneration and Local Services,Economic Development and Housing,031500,Housing Solutions - Core Team,Supplies and Services,364320,Grants to Voluntary Organisations,06-Apr-2018,000007216571197,PREMIER INN,3811,Accommodation assistance,184.00,30.67,153.33
Resources,Finance & Transactional Services,065180,Collections,Employees,040149,Recruitment Instruction and Training,06-Apr-2018,000007216571209,ILEX.ORG.UK,8699,Training-all costs,66.50,0.00,66.50
Adult and Health Services,Head of Adults,055302,Durham Pathways,Supplies and Services,324117,Provisions E324,06-Apr-2018,000007216571215,ASDA SUPERSTORE,5411,Catering costs - provisions,3.00,0.00,3.00
Resources,Digital and Customer Services,065461,Business Support,Supplies and Services,372009,Subscriptions E372,06-Apr-2018,000007216571225,WEB NETWORKSOLUTIONS,5968,Subscriptions 372009,295.87,0.00,295.87
Children and Young Peoples Services,Head of Childrens Social Care,085362,LAC & Permanence Team 2,Supplies and Services,384871,Miscellaneous Expenses,06-Apr-2018,000007216571235,KARTING NORTH EAST,7933,Training-other activities,50.00,0.00,50.00
Children and Young Peoples Services,Head of Childrens Social Care,085362,LAC & Permanence Team 2,Supplies and Services,384871,Miscellaneous Expenses,06-Apr-2018,000007216571237,DIGGERLAND,7922,Training-other activities,51.97,0.00,51.97
Children and Young Peoples Services,Head of Childrens Social Care,085334,West Rainton Satelite Home,Supplies and Services,324117,Provisions E324,06-Apr-2018,000007216571243,TESCO STORES 2371,5411,Catering costs - provisions,22.12,0.00,22.12
Regeneration and Local Services,Direct Services,010367,C&G - South Grounds Maintenance,Supplies and Services,304259,Equipment and Materials,06-Apr-2018,000007216571249,JEWSON LTD,5211,Equipment-purchase and rental,30.60,5.10,25.50
Regeneration and Local Services,Spatial Policy Planning Assets & Environment,031221,North Pennines - Bowlees,Supplies and Services,304259,Equipment and Materials,06-Apr-2018,000007216571251,B & Q 1332,5211,Equipment-purchase and rental,41.79,6.97,34.82
Regeneration and Local Services,Spatial Policy Planning Assets & Environment,031221,North Pennines - Bowlees,Supplies and Services,324117,Provisions E324,06-Apr-2018,000007216571253,WM MORRISONS,5411,Catering costs - provisions,1.98,0.33,1.65
Regeneration and Local Services,Spatial Policy Planning Assets & Environment,031221,North Pennines - Bowlees,Supplies and Services,324117,Provisions E324,06-Apr-2018,000007216571253 - 1,WM MORRISONS,5411,Catering costs - provisions,14.12,,14.12
Regeneration and Local Services,Economic Development and Housing,030737,Durham Works Flexible Fund,Supplies and Services,348037,Subsistence E348,06-Apr-2018,000007216571269,ARRIVA NORTH EAST,4131,Subsistence,6.50,0.00,6.50
Children and Young Peoples Services,"Head of Early Help, Inclusion and Vulnerable Children",085955,Auckland,Supplies and Services,328041,Clothing uniforms and laundry E328,06-Apr-2018,000007216571279,M and M Direct Ltd,5941,Clothing uniforms and laundry,34.99,0.00,34.99
Children and Young Peoples Services,"Head of Early Help, Inclusion and Vulnerable Children",085956,Lumley,Supplies and Services,324117,Provisions E324,06-Apr-2018,000007216571281,TESCO STORES 6329,5411,Catering costs - provisions,82.25,0.00,82.25
Children and Young Peoples Services,"Head of Early Help, Inclusion and Vulnerable Children",085957,Secure Management,Supplies and Services,372009,Subscriptions E372,06-Apr-2018,000007216571283,MAGSUBCRIPTIONS COM,5968,Subscriptions 372009,391.00,0.00,391.00
Regeneration and Local Services,Culture & Sport,054815,Gala Theatre Stage School,Supplies and Services,304999,Equipment and Materials,06-Apr-2018,000007216571299,BOOTS/0561,5912,Misc equipment tools and materials,15.98,0.00,15.98
Children and Young Peoples Services,Head of Childrens Social Care,085551,Short Break Services-Park Hse Sher,Supplies and Services,324117,Provisions E324,06-Apr-2018,000007216571301,ALDI 59 774,5411,Catering costs - provisions,8.34,0.00,8.34
Children and Young Peoples Services,Head of Childrens Social Care,085332,Middlestone Moor CU,Supplies and Services,324117,Provisions E324,06-Apr-2018,000007216571303,POUNDWORLD,5310,Catering costs - provisions,14.75,2.46,12.29
Children and Young Peoples Services,Head of Childrens Social Care,085332,Middlestone Moor CU,Supplies and Services,304083,Equipment and Materials,06-Apr-2018,000007216571305,WILKO RETAIL LIMIT,5722,Catering equipment,36.25,0.00,36.25
Children and Young Peoples Services,Head of Childrens Social Care,085332,Middlestone Moor CU,Supplies and Services,324117,Provisions E324,06-Apr-2018,000007216571307,HOME BARGAINS SPENNYMO,5251,Catering costs - provisions,40.13,6.69,33.44
Children and Young Peoples Services,Head of Childrens Social Care,085332,Middlestone Moor CU,Supplies and Services,324117,Provisions E324,06-Apr-2018,000007216571309,ASDA GROCERIES ONLINE,5411,Catering costs - provisions,253.20,0.00,253.20
Children and Young Peoples Services,Head of Childrens Social Care,085332,Middlestone Moor CU,Supplies and Services,324117,Provisions E324,06-Apr-2018,000007216571311,ICELAND,5411,Catering costs - provisions,7.44,0.00,7.44
Children and Young Peoples Services,Head of Childrens Social Care,085332,Middlestone Moor CU,Supplies and Services,324117,Provisions E324,06-Apr-2018,000007216571313,TESCO STORES 2916,5411,Catering costs - provisions,49.97,0.00,49.97
Children and Young Peoples Services,Head of Childrens Social Care,085352,Tow Law CU,Supplies and Services,324117,Provisions E324,06-Apr-2018,000007216571315,TESCO STORES 2371,5411,Catering costs - provisions,245.64,0.00,245.64
Children and Young Peoples Services,"Head of Early Help, Inclusion and Vulnerable Children",071443,Stanley One Point Hub,Supplies and Services,324117,Provisions E324,06-Apr-2018,000007216571317,BESTWAY WHOLESALE,5451,Catering costs - provisions,136.45,0.00,136.45
Regeneration and Local Services,Economic Development and Housing,030749,Employability - Youth Contract,Supplies and Services,324117,Provisions E324,06-Apr-2018,000007216571331,TESCO STORES 2371,5411,Catering costs - provisions,14.99,0.00,14.99
Regeneration and Local Services,Spatial Policy Planning Assets & Environment,031200,North Pennines Core,Transport,235057,Public Transport,06-Apr-2018,000007216571345,ROYAL DUTCH AIRLINES (KLM),3010,Staff travelling,196.02,0.00,196.02
Regeneration and Local Services,Culture & Sport,054399,Local Delivery-Libraries,Supplies and Services,312011,Newspapers books and periodicals E312,06-Apr-2018,000007216571347,Amazon EU,5969,Books-school library,39.71,0.00,39.71
Regeneration and Local Services,Direct Services,010301,C&G - North Grounds Maintenance,Supplies and Services,304259,Equipment and Materials,06-Apr-2018,000007216571351,HEXHAM MACHINERY CENTR,5261,Equipment-purchase and rental,144.00,0.00,144.00
Regeneration and Local Services,Direct Services,010301,C&G - North Grounds Maintenance,Supplies and Services,304221,Equipment and Materials,06-Apr-2018,000007216571357,ARCO LTD,5085,Direct materials,29.99,5.00,24.99
Children and Young Peoples Services,"Head of Early Help, Inclusion and Vulnerable Children",085957,Secure Management,Supplies and Services,338057,Services,06-Apr-2018,000007216571365,Amazon UK Marketplace,5942,Medical fees 338057,3.25,0.00,3.25
Children and Young Peoples Services,"Head of Early Help, Inclusion and Vulnerable Children",085957,Secure Management,Supplies and Services,304259,Equipment and Materials,06-Apr-2018,000007216571367,WWW.QBICWASHROOMS.CO.U,5085,Equipment-purchase and rental,91.07,15.18,75.89
Resources,Legal & Democratic Services,067910,Democratic Representation,Supplies and Services,352001,Conference Expenses,06-Apr-2018,000007216571371,IMPERIAL LONDON HOTELS,7011,Conferencesseminars fees etc,266.00,0.00,266.00
Children and Young Peoples Services,Head of Childrens Social Care,085333,Coxhoe Satelite Home,Supplies and Services,304999,Equipment and Materials,06-Apr-2018,000007216571403,BOOTS 0655,5912,Misc equipment tools and materials,4.49,0.00,4.49
Children and Young Peoples Services,Head of Childrens Social Care,085333,Coxhoe Satelite Home,Supplies and Services,328041,Clothing uniforms and laundry E328,06-Apr-2018,000007216571405,START FITNESS,5655,Clothing uniforms and laundry,40.00,0.00,40.00
Children and Young Peoples Services,"Head of Early Help, Inclusion and Vulnerable Children",088107,Ferryhill & Newton Aycliffe 0-19 Community Family Hub,Supplies and Services,328041,Clothing uniforms and laundry E328,06-Apr-2018,000007216571411,ARGOS LTD,5310,Clothing uniforms and laundry,23.98,0.00,23.98
Children and Young Peoples Services,"Head of Early Help, Inclusion and Vulnerable Children",088107,Ferryhill & Newton Aycliffe 0-19 Community Family Hub,Supplies and Services,328041,Clothing uniforms and laundry E328,06-Apr-2018,000007216571413,POUNDLAND LTD 1330,5310,Clothing uniforms and laundry,11.05,0.00,11.05
Adult and Health Services,Head of Adults,055306,Spennymoor Pathways,Supplies and Services,312011,Newspapers books and periodicals E312,06-Apr-2018,000007216571427,CHARLES DICKENS (SPENN,5251,Books-school library,5.49,0.92,4.57
Transformation and Partnerships,Partnerships & Community Engagement Div.,060472,Syrian Vulnerable Persons Scheme,Supplies and Services,308011,Furniture,06-Apr-2018,000007216571447,VERTICAL BLINDS DIRECT,5719,Furniture repair and replacement,192.12,32.02,160.10
Transformation and Partnerships,Partnerships & Community Engagement Div.,060472,Syrian Vulnerable Persons Scheme,Supplies and Services,308011,Furniture,06-Apr-2018,000007216571447 - 1,VERTICAL BLINDS DIRECT,5719,Furniture repair and replacement,9.94,,9.94
Transformation and Partnerships,Partnerships & Community Engagement Div.,060472,Syrian Vulnerable Persons Scheme,Supplies and Services,308011,Furniture,06-Apr-2018,000007216571451,WILKO DURHAM 426,5722,Furniture repair and replacement,262.00,43.67,218.33
Transformation and Partnerships,Partnerships & Community Engagement Div.,060472,Syrian Vulnerable Persons Scheme,Supplies and Services,308011,Furniture,06-Apr-2018,000007216571453,SP TERRYS FABRICS,5691,Furniture repair and replacement,151.95,25.33,126.62
Transformation and Partnerships,Partnerships & Community Engagement Div.,060472,Syrian Vulnerable Persons Scheme,Supplies and Services,308011,Furniture,06-Apr-2018,000007216571457,SP TERRYS FABRICS,5691,Furniture repair and replacement,113.89,18.98,94.91
Transformation and Partnerships,Partnerships & Community Engagement Div.,060472,Syrian Vulnerable Persons Scheme,Supplies and Services,308011,Furniture,06-Apr-2018,000007216571467,SP TERRYS FABRICS,5691,Furniture repair and replacement,150.96,25.16,125.80
Transformation and Partnerships,Partnerships & Community Engagement Div.,060472,Syrian Vulnerable Persons Scheme,Supplies and Services,308011,Furniture,06-Apr-2018,000007216571477,WILKO.COM,5722,Furniture repair and replacement,251.50,41.92,209.58
Transformation and Partnerships,Partnerships & Community Engagement Div.,060472,Syrian Vulnerable Persons Scheme,Supplies and Services,308011,Furniture,06-Apr-2018,000007216571479,WILKO.COM,5722,Furniture repair and replacement,314.50,52.42,262.08
Transformation and Partnerships,Partnerships & Community Engagement Div.,060472,Syrian Vulnerable Persons Scheme,Supplies and Services,308011,Furniture,06-Apr-2018,000007216571481,WILKO.COM,5722,Furniture repair and replacement,358.00,59.67,298.33
Regeneration and Local Services,Culture & Sport,011060,Hardwick Park Catering,Supplies and Services,324117,Provisions E324,06-Apr-2018,000007227481091,BATLEYS PERTH,5300,Catering costs - provisions,178.92,29.82,149.10
Regeneration and Local Services,Culture & Sport,011060,Hardwick Park Catering,Supplies and Services,324117,Provisions E324,06-Apr-2018,000007227481091 - 1,BATLEYS PERTH,5300,Catering costs - provisions,146.60,,146.60
Regeneration and Local Services,Culture & Sport,011060,Hardwick Park Catering,Supplies and Services,324117,Provisions E324,06-Apr-2018,000007227481101,BATLEYS PERTH,5300,Catering costs - provisions,97.92,16.32,81.60
Regeneration and Local Services,Culture & Sport,011060,Hardwick Park Catering,Supplies and Services,324117,Provisions E324,06-Apr-2018,000007227481101 - 1,BATLEYS PERTH,5300,Catering costs - provisions,27.69,,27.69
Regeneration and Local Services,Direct Services,010525,Catering - Green Lane,Supplies and Services,324117,Provisions E324,06-Apr-2018,000007227481171,BATLEYS PERTH,5300,Catering costs - provisions,110.94,18.49,92.45
Regeneration and Local Services,Direct Services,010525,Catering - Green Lane,Supplies and Services,324117,Provisions E324,06-Apr-2018,000007227481171 - 1,BATLEYS PERTH,5300,Catering costs - provisions,87.61,,87.61
Adult and Health Services,Head of Adults,055643,Hawthorn House LD Respite Unit,Supplies and Services,324117,Provisions E324,06-Apr-2018,000007227481279,BATLEYS PERTH,5300,Catering costs - provisions,9.96,1.66,8.30
Adult and Health Services,Head of Adults,055643,Hawthorn House LD Respite Unit,Supplies and Services,324117,Provisions E324,06-Apr-2018,000007227481279 - 1,BATLEYS PERTH,5300,Catering costs - provisions,87.66,,87.66
Regeneration and Local Services,Direct Services,021235,Catering - Wharton Park,Supplies and Services,324117,Provisions E324,06-Apr-2018,000007227481447,BATLEYS PERTH,5300,Catering costs - provisions,-5.65,0.00,-5.65
Children and Young Peoples Services,Head of Childrens Social Care,085342,9 Cedar Drive Aycliffe,Supplies and Services,324117,Provisions E324,07-Apr-2018,000007216571203,TESCO STORES 2916,5411,Catering costs - provisions,31.59,0.00,31.59
Children and Young Peoples Services,"Head of Early Help, Inclusion and Vulnerable Children",085954,Walworth,Supplies and Services,324117,Provisions E324,07-Apr-2018,000007216571285,TESCO STORES 6329,5411,Catering costs - provisions,113.57,0.00,113.57
Regeneration and Local Services,Direct Services,010301,C&G - North Grounds Maintenance,Supplies and Services,304259,Equipment and Materials,07-Apr-2018,000007216571297,HEXHAM MACHINERY CENTR,5261,Equipment-purchase and rental,490.20,0.00,490.20
Transformation and Partnerships,Partnerships & Community Engagement Div.,060472,Syrian Vulnerable Persons Scheme,Supplies and Services,308011,Furniture,07-Apr-2018,000007216571473,B & Q 1162,5211,Furniture repair and replacement,335.00,55.83,279.17
Regeneration and Local Services,Culture & Sport,026591,Hardwick Park,Supplies and Services,312009,Newspapers books and periodicals E312,07-Apr-2018,000007223722507,Amazon EU,5969,Newspapers books and periodicals,8.97,0.00,8.97
Children and Young Peoples Services,Head of Education and Skills,071801,Selby Cottage Childcare Centre,Supplies and Services,304999,Equipment and Materials,08-Apr-2018,000007216571175,Amazon Prime,5968,Misc equipment tools and materials,7.99,0.00,7.99
Children and Young Peoples Services,Head of Childrens Social Care,085334,West Rainton Satelite Home,Supplies and Services,304259,Equipment and Materials,08-Apr-2018,000007216571245,SPORTSDIRECT 264,5941,Equipment-purchase and rental,36.79,0.00,36.79
Children and Young Peoples Services,Head of Childrens Social Care,085352,Tow Law CU,Supplies and Services,328041,Clothing uniforms and laundry E328,08-Apr-2018,000007216571247,SP FIRETRADESUPPLIES,5691,Clothing uniforms and laundry,50.46,8.41,42.05
Regeneration and Local Services,Culture & Sport,054813,Gala Theatre - Technical,Supplies and Services,304259,Equipment and Materials,08-Apr-2018,000007216571287,B & Q 1221,5211,Equipment-purchase and rental,53.60,0.00,53.60
Resources,Resources Management,069000,Resources Management,Supplies and Services,324117,Provisions E324,08-Apr-2018,000007216571333,CO-OP GROUP 010830,5411,Catering costs - provisions,4.40,0.00,4.40
Regeneration and Local Services,Culture & Sport,054399,Local Delivery-Libraries,Supplies and Services,312011,Newspapers books and periodicals E312,08-Apr-2018,000007216571349,Amazon EU,5969,Books-school library,180.65,0.00,180.65
Transformation and Partnerships,Comms & Information Management,060270,Communications and Marketing,Supplies and Services,332047,Printing Stationery and Gen Off Exps,08-Apr-2018,000007216571421,Amazon EU,5969,Stationery,33.19,0.00,33.19
Transformation and Partnerships,Comms & Information Management,060270,Communications and Marketing,Supplies and Services,336005,Advertising E336,08-Apr-2018,000007216571423,FACEBK CEKPAE25B2,7311,Advertising other than for staff,69.97,0.00,69.97
Transformation and Partnerships,Comms & Information Management,060270,Communications and Marketing,Supplies and Services,336005,Advertising E336,08-Apr-2018,000007216571425,FACEBK 9EKPAE25B2,7311,Advertising other than for staff,430.03,0.00,430.03
Transformation and Partnerships,Partnerships & Community Engagement Div.,060472,Syrian Vulnerable Persons Scheme,Supplies and Services,308011,Furniture,08-Apr-2018,000007216571485,WILKO DURHAM 426,5722,Furniture repair and replacement,12.00,2.00,10.00
Transformation and Partnerships,Partnerships & Community Engagement Div.,060472,Syrian Vulnerable Persons Scheme,Supplies and Services,308011,Furniture,08-Apr-2018,000007216571489,ASDA STORES LTD 4313,5411,Furniture repair and replacement,104.00,17.33,86.67
Adult and Health Services,Head of Adults,055309,Peterlee Pathways,Supplies and Services,304259,Equipment and Materials,08-Apr-2018,000007216571491,WILKO RETAIL LIMIT,5722,Equipment-purchase and rental,12.00,0.00,12.00
Children and Young Peoples Services,Head of Childrens Social Care,085332,Middlestone Moor CU,Supplies and Services,364320,Grants to Voluntary Organisations,08-Apr-2018,000007223722403,HAVEN HOLIDAYS,7033,Accommodation assistance,277.22,0.00,277.22
Regeneration and Local Services,Economic Development and Housing,030690,Durham Dales Centre - Tourist Information Centre,Supplies and Services,328041,Clothing uniforms and laundry E328,08-Apr-2018,000007223722491,WWW.AKHOSIERY.CO.UK,5621,Clothing uniforms and laundry,770.40,128.40,642.00
Regeneration and Local Services,Economic Development and Housing,030690,Durham Dales Centre - Tourist Information Centre,Supplies and Services,328041,Clothing uniforms and laundry E328,08-Apr-2018,000007223722491 - 1,WWW.AKHOSIERY.CO.UK,5621,Clothing uniforms and laundry,63.20,,63.20
Resources,Digital and Customer Services,065461,Business Support,Supplies and Services,372009,Subscriptions E372,09-Apr-2018,000007216571227,WEB NETWORKSOLUTIONS,5968,Subscriptions 372009,8.14,0.00,8.14
Children and Young Peoples Services,Head of Education and Skills,071801,Selby Cottage Childcare Centre,Supplies and Services,304259,Equipment and Materials,09-Apr-2018,000007223722139,WILKO DURHAM 426,5722,Equipment-purchase and rental,29.00,0.00,29.00
Children and Young Peoples Services,Head of Education and Skills,071801,Selby Cottage Childcare Centre,Supplies and Services,328041,Clothing uniforms and laundry E328,09-Apr-2018,000007223722143,THE WORKS,5310,Clothing uniforms and laundry,64.60,0.00,64.60
Adult and Health Services,Head of Adults,055302,Durham Pathways,Supplies and Services,324117,Provisions E324,09-Apr-2018,000007223722161,LIDL UK,5411,Catering costs - provisions,2.18,0.00,2.18
Children and Young Peoples Services,Head of Childrens Social Care,085342,9 Cedar Drive Aycliffe,Supplies and Services,328041,Clothing uniforms and laundry E328,09-Apr-2018,000007223722169,WWW.AXPARIS.COM,5631,Clothing uniforms and laundry,28.15,0.00,28.15
Children and Young Peoples Services,Head of Childrens Social Care,085342,9 Cedar Drive Aycliffe,Supplies and Services,328041,Clothing uniforms and laundry E328,09-Apr-2018,000007223722171,NEXT RETAIL LTD,5651,Clothing uniforms and laundry,-25.00,0.00,-25.00
Dedicated Schools Grant,DSG High Needs Block,079052,Part Sighted-Belmont Comp,Supplies and Services,304403,Equipment and Materials,09-Apr-2018,000007223722175,W BOYES & CO LTD CHEST,5310,Other consumables,9.40,0.00,9.40
Regeneration and Local Services,Direct Services,010367,C&G - South Grounds Maintenance,Supplies and Services,304999,Equipment and Materials,09-Apr-2018,000007223722179,J G PAXTON SONS,5072,Misc equipment tools and materials,10.36,1.73,8.63
Regeneration and Local Services,Direct Services,010367,C&G - South Grounds Maintenance,Supplies and Services,304999,Equipment and Materials,09-Apr-2018,000007223722183,J G PAXTON SONS,5072,Misc equipment tools and materials,11.26,1.88,9.38
Regeneration and Local Services,Direct Services,021242,Catering - County Hall,Supplies and Services,324117,Provisions E324,09-Apr-2018,000007223722193,JR HOLLAND FOODSERVICE,5422,Catering costs - provisions,13.20,0.00,13.20
Regeneration and Local Services,Culture & Sport,054233,Bishop Auckland Town Hall Library,Supplies and Services,312011,Newspapers books and periodicals E312,09-Apr-2018,000007223722199,Amazon UK Marketplace,5942,Books-school library,32.28,0.00,32.28
Resources,Digital and Customer Services,065461,Business Support,Supplies and Services,372009,Subscriptions E372,09-Apr-2018,000007223722203,NOMINET UK,5734,Subscriptions 372009,45.00,7.50,37.50
Resources,Digital and Customer Services,065461,Business Support,Supplies and Services,372009,Subscriptions E372,09-Apr-2018,000007223722207,NOMINET UK,5734,Subscriptions 372009,31.50,5.25,26.25
Regeneration and Local Services,Economic Development and Housing,030737,Durham Works Flexible Fund,Transport,235057,Public Transport,09-Apr-2018,000007223722211,ARRIVA NORTH EAST,4131,Staff travelling,8.00,0.00,8.00
Regeneration and Local Services,Economic Development and Housing,030737,Durham Works Flexible Fund,Transport,235057,Public Transport,09-Apr-2018,000007223722215,ARRIVA NORTH EAST,4131,Staff travelling,7.00,0.00,7.00
Children and Young Peoples Services,Head of Childrens Social Care,085333,Coxhoe Satelite Home,Supplies and Services,328041,Clothing uniforms and laundry E328,09-Apr-2018,000007223722237,Nike Store 00802,5655,Clothing uniforms and laundry,39.20,0.00,39.20
Children and Young Peoples Services,Head of Childrens Social Care,085334,West Rainton Satelite Home,Supplies and Services,324117,Provisions E324,09-Apr-2018,000007223722247,TESCO STORES 2371,5411,Catering costs - provisions,17.69,0.00,17.69
Children and Young Peoples Services,Head of Childrens Social Care,085334,West Rainton Satelite Home,Supplies and Services,324117,Provisions E324,09-Apr-2018,000007223722249,TESCO STORES 2371,5411,Catering costs - provisions,16.40,2.73,13.67
Children and Young Peoples Services,Head of Childrens Social Care,085334,West Rainton Satelite Home,Supplies and Services,324117,Provisions E324,09-Apr-2018,000007223722251,ALDI 12 774,5411,Catering costs - provisions,55.69,0.00,55.69
Regeneration and Local Services,Direct Services,010900,Fleet - Meadowfield Fleet,Transport,215013,Running Costs of Vehicles,09-Apr-2018,000007223722255,DVLA VEHICLE TAX,9399,Vehicle Excise Duty (VED),252.50,0.00,252.50
Regeneration and Local Services,Direct Services,010864,Fleet - Hackworth Road Fleet,Transport,215013,Running Costs of Vehicles,09-Apr-2018,000007223722259,DVLA VEHICLE TAX,9399,Vehicle Excise Duty (VED),167.50,0.00,167.50
Regeneration and Local Services,Direct Services,010900,Fleet - Meadowfield Fleet,Transport,215013,Running Costs of Vehicles,09-Apr-2018,000007223722263,DVLA VEHICLE TAX,9399,Vehicle Excise Duty (VED),252.50,0.00,252.50
Regeneration and Local Services,Direct Services,010900,Fleet - Meadowfield Fleet,Transport,215013,Running Costs of Vehicles,09-Apr-2018,000007223722265,DVLA VEHICLE TAX,9399,Vehicle Excise Duty (VED),167.50,0.00,167.50
Regeneration and Local Services,Direct Services,010551,Fleet - Chilton Fleet,Transport,215013,Running Costs of Vehicles,09-Apr-2018,000007223722269,DVLA VEHICLE TAX,9399,Vehicle Excise Duty (VED),142.50,0.00,142.50
Regeneration and Local Services,Direct Services,010551,Fleet - Chilton Fleet,Transport,215013,Running Costs of Vehicles,09-Apr-2018,000007223722271,DVLA VEHICLE TAX,9399,Vehicle Excise Duty (VED),167.50,0.00,167.50
Regeneration and Local Services,Direct Services,010900,Fleet - Meadowfield Fleet,Transport,215013,Running Costs of Vehicles,09-Apr-2018,000007223722275,DVLA VEHICLE TAX,9399,Vehicle Excise Duty (VED),167.50,0.00,167.50
Regeneration and Local Services,Direct Services,010900,Fleet - Meadowfield Fleet,Transport,215013,Running Costs of Vehicles,09-Apr-2018,000007223722277,DVLA VEHICLE TAX,9399,Vehicle Excise Duty (VED),167.50,0.00,167.50
Regeneration and Local Services,Direct Services,010864,Fleet - Hackworth Road Fleet,Transport,215013,Running Costs of Vehicles,09-Apr-2018,000007223722281,DVLA VEHICLE TAX,9399,Vehicle Excise Duty (VED),167.50,0.00,167.50
Regeneration and Local Services,Direct Services,010551,Fleet - Chilton Fleet,Transport,215013,Running Costs of Vehicles,09-Apr-2018,000007223722283,DVLA VEHICLE TAX,9399,Vehicle Excise Duty (VED),167.50,0.00,167.50
Regeneration and Local Services,Direct Services,010551,Fleet - Chilton Fleet,Transport,215013,Running Costs of Vehicles,09-Apr-2018,000007223722287,DVLA VEHICLE TAX,9399,Vehicle Excise Duty (VED),167.50,0.00,167.50
Regeneration and Local Services,Direct Services,010900,Fleet - Meadowfield Fleet,Transport,215013,Running Costs of Vehicles,09-Apr-2018,000007223722289,DVLA VEHICLE TAX,9399,Vehicle Excise Duty (VED),167.50,0.00,167.50
Regeneration and Local Services,Direct Services,010900,Fleet - Meadowfield Fleet,Transport,215013,Running Costs of Vehicles,09-Apr-2018,000007223722293,DVLA VEHICLE TAX,9399,Vehicle Excise Duty (VED),252.50,0.00,252.50
Regeneration and Local Services,Direct Services,010900,Fleet - Meadowfield Fleet,Transport,215013,Running Costs of Vehicles,09-Apr-2018,000007223722295,DVLA VEHICLE TAX,9399,Vehicle Excise Duty (VED),167.50,0.00,167.50
Regeneration and Local Services,Direct Services,010900,Fleet - Meadowfield Fleet,Transport,215013,Running Costs of Vehicles,09-Apr-2018,000007223722299,DVLA VEHICLE TAX,9399,Vehicle Excise Duty (VED),252.50,0.00,252.50
Regeneration and Local Services,Direct Services,010900,Fleet - Meadowfield Fleet,Transport,215013,Running Costs of Vehicles,09-Apr-2018,000007223722301,DVLA VEHICLE TAX,9399,Vehicle Excise Duty (VED),167.50,0.00,167.50
Regeneration and Local Services,Direct Services,010864,Fleet - Hackworth Road Fleet,Transport,215013,Running Costs of Vehicles,09-Apr-2018,000007223722305,DVLA VEHICLE TAX,9399,Vehicle Excise Duty (VED),167.50,0.00,167.50
Regeneration and Local Services,Direct Services,010900,Fleet - Meadowfield Fleet,Transport,215013,Running Costs of Vehicles,09-Apr-2018,000007223722311,DVLA VEHICLE TAX,9399,Vehicle Excise Duty (VED),252.50,0.00,252.50
Regeneration and Local Services,Direct Services,010900,Fleet - Meadowfield Fleet,Transport,215013,Running Costs of Vehicles,09-Apr-2018,000007223722313,DVLA VEHICLE TAX,9399,Vehicle Excise Duty (VED),252.50,0.00,252.50
Regeneration and Local Services,Direct Services,010900,Fleet - Meadowfield Fleet,Transport,215013,Running Costs of Vehicles,09-Apr-2018,000007223722317,DVLA VEHICLE TAX,9399,Vehicle Excise Duty (VED),252.50,0.00,252.50
Regeneration and Local Services,Direct Services,010900,Fleet - Meadowfield Fleet,Transport,215013,Running Costs of Vehicles,09-Apr-2018,000007223722319,DVLA VEHICLE TAX,9399,Vehicle Excise Duty (VED),252.50,0.00,252.50
Regeneration and Local Services,Direct Services,010561,Fleet - Morrison Busty Fleet,Transport,215013,Running Costs of Vehicles,09-Apr-2018,000007223722323,DVLA VEHICLE TAX,9399,Vehicle Excise Duty (VED),167.50,0.00,167.50
Regeneration and Local Services,Direct Services,010551,Fleet - Chilton Fleet,Transport,215013,Running Costs of Vehicles,09-Apr-2018,000007223722325,DVLA VEHICLE TAX,9399,Vehicle Excise Duty (VED),167.50,0.00,167.50
Regeneration and Local Services,Direct Services,010561,Fleet - Morrison Busty Fleet,Transport,215013,Running Costs of Vehicles,09-Apr-2018,000007223722329,DVLA VEHICLE TAX,9399,Vehicle Excise Duty (VED),167.50,0.00,167.50
Children and Young Peoples Services,Head of Education and Skills,071732,Dean Bank Childcare,Supplies and Services,324117,Provisions E324,09-Apr-2018,000007223722343,ASDA GROCERIES ONLINE,5411,Catering costs - provisions,44.66,0.00,44.66
Children and Young Peoples Services,"Head of Early Help, Inclusion and Vulnerable Children",085957,Secure Management,Supplies and Services,304245,Equipment and Materials,09-Apr-2018,000007223722363,SPORTSMANGUNCENTRE,5941,Materials,93.94,15.66,78.28
Children and Young Peoples Services,"Head of Early Help, Inclusion and Vulnerable Children",085957,Secure Management,Supplies and Services,324117,Provisions E324,09-Apr-2018,000007223722367,TESCO STORES 6329,5411,Catering costs - provisions,97.95,0.00,97.95
Children and Young Peoples Services,"Head of Early Help, Inclusion and Vulnerable Children",085957,Secure Management,Supplies and Services,338057,Services,09-Apr-2018,000007223722369,MAXILL INC (USA),5047,Medical fees 338057,98.68,0.00,98.68
Regeneration and Local Services,Direct Services,010301,C&G - North Grounds Maintenance,Supplies and Services,304259,Equipment and Materials,09-Apr-2018,000007223722381,HEXHAM MACHINERY CENTR,5261,Equipment-purchase and rental,478.50,0.00,478.50
Regeneration and Local Services,Direct Services,010301,C&G - North Grounds Maintenance,Supplies and Services,304259,Equipment and Materials,09-Apr-2018,000007223722383,HEXHAM MACHINERY CENTR,5261,Equipment-purchase and rental,481.41,0.00,481.41
Regeneration and Local Services,Direct Services,010301,C&G - North Grounds Maintenance,Supplies and Services,304259,Equipment and Materials,09-Apr-2018,000007223722387,HEXHAM MACHINERY CENTR,5261,Equipment-purchase and rental,183.38,0.00,183.38
Regeneration and Local Services,Culture & Sport,011060,Hardwick Park Catering,Supplies and Services,324117,Provisions E324,09-Apr-2018,000007223722391,JR HOLLAND FOODSERVICE,5422,Catering costs - provisions,77.00,0.00,77.00
Regeneration and Local Services,Culture & Sport,011060,Hardwick Park Catering,Supplies and Services,324117,Provisions E324,09-Apr-2018,000007223722395,JR HOLLAND FOODSERVICE,5422,Catering costs - provisions,4.41,0.00,4.41
Children and Young Peoples Services,Head of Childrens Social Care,085332,Middlestone Moor CU,Supplies and Services,324117,Provisions E324,09-Apr-2018,000007223722407,TESCO STORES 6329,5411,Catering costs - provisions,32.06,0.00,32.06
Regeneration and Local Services,Culture & Sport,011204,Events,Supplies and Services,324117,Provisions E324,09-Apr-2018,000007223722411,TESCO STORES 6029,5411,Catering costs - provisions,19.50,0.00,19.50
Regeneration and Local Services,Direct Services,010525,Catering - Green Lane,Supplies and Services,324117,Provisions E324,09-Apr-2018,000007223722415,JR HOLLAND FOODSERVICE,5422,Catering costs - provisions,50.10,0.00,50.10
Regeneration and Local Services,Direct Services,010525,Catering - Green Lane,Supplies and Services,324117,Provisions E324,09-Apr-2018,000007223722419,JR HOLLAND FOODSERVICE,5422,Catering costs - provisions,5.92,0.00,5.92
Regeneration and Local Services,Culture & Sport,011204,Events,Supplies and Services,312011,Newspapers books and periodicals E312,09-Apr-2018,000007223722429,WORLDBOOKSL,5942,Books-school library,6.95,0.00,6.95
Regeneration and Local Services,Direct Services,010301,C&G - North Grounds Maintenance,Supplies and Services,328041,Clothing uniforms and laundry E328,09-Apr-2018,000007223722475,THOMAS OWEN & SONS /N/,5611,Clothing uniforms and laundry,251.66,41.94,209.72
Resources,Digital and Customer Services,065335,School Services - Implementations,Supplies and Services,304639,Equipment and Materials,09-Apr-2018,000007223722479,WWW.ALIEXPRESS.COM,5964,Technicians-supplies,2.87,0.00,2.87
Regeneration and Local Services,Transport and Contracted Services,031704,Care Connect - CCTV Countywide,Supplies and Services,384956,Miscellaneous Expenses,09-Apr-2018,000007223722495,SECURITY INDUSTRY,7393,Licences,220.00,0.00,220.00
Regeneration and Local Services,Transport and Contracted Services,031704,Care Connect - CCTV Countywide,Supplies and Services,384956,Miscellaneous Expenses,09-Apr-2018,000007223722499,SECURITY INDUSTRY,7393,Licences,220.00,0.00,220.00
Regeneration and Local Services,Transport and Contracted Services,031704,Care Connect - CCTV Countywide,Supplies and Services,384956,Miscellaneous Expenses,09-Apr-2018,000007223722503,SECURITY INDUSTRY,7393,Licences,220.00,0.00,220.00
Regeneration and Local Services,Economic Development and Housing,031576,B& B - Temp Accom,Supplies and Services,364320,Grants to Voluntary Organisations,09-Apr-2018,000007223722519,PREMIER INN44023785,5812,Accommodation assistance,84.50,14.08,70.42
Regeneration and Local Services,Economic Development and Housing,031576,B& B - Temp Accom,Supplies and Services,364320,Grants to Voluntary Organisations,09-Apr-2018,000007223722521,PREMIER INN44023785,5812,Accommodation assistance,365.00,60.83,304.17
Regeneration and Local Services,Economic Development and Housing,031576,B& B - Temp Accom,Supplies and Services,364320,Grants to Voluntary Organisations,09-Apr-2018,000007223722525,HOTEL 52,7011,Accommodation assistance,200.00,0.00,200.00
Regeneration and Local Services,Economic Development and Housing,030671,Business Space,Supplies and Services,324117,Provisions E324,09-Apr-2018,000007223722529,WWW.CATER4YOU.CO.UK,5811,Catering costs - provisions,18.84,3.14,15.70
Transformation and Partnerships,Comms & Information Management,060270,Communications and Marketing,Supplies and Services,372009,Subscriptions E372,09-Apr-2018,000007223722567,LINKEDIN-302 7271686,5968,Subscriptions 372009,42.95,0.00,42.95
Regeneration and Local Services,Economic Development and Housing,030737,Durham Works Flexible Fund,Transport,235057,Public Transport,09-Apr-2018,000007223722601,GO NORTH EAST LIMITED,4131,Staff travelling,70.00,0.00,70.00
Regeneration and Local Services,Economic Development and Housing,030737,Durham Works Flexible Fund,Supplies and Services,304259,Equipment and Materials,09-Apr-2018,000007223722603,SCREWFIX DIRECT,5211,Equipment-purchase and rental,16.98,2.83,14.15
Regeneration and Local Services,Economic Development and Housing,030737,Durham Works Flexible Fund,Supplies and Services,304259,Equipment and Materials,09-Apr-2018,000007223722603 - 1,SCREWFIX DIRECT,5211,Equipment-purchase and rental,30.00,,30.00
Children and Young Peoples Services,Head of Childrens Social Care,085801,CDYOS - Support,Supplies and Services,312011,Newspapers books and periodicals E312,09-Apr-2018,000007223722619,Amazon UK Marketplace,5942,Books-school library,24.24,0.00,24.24
Regeneration and Local Services,Economic Development and Housing,030749,Employability - Youth Contract,Transport,235057,Public Transport,09-Apr-2018,000007223722623,ARRIVA NORTH EAST,4131,Staff travelling,85.50,0.00,85.50
Dedicated Schools Grant,DSG High Needs Block,079052,Part Sighted-Belmont Comp,Supplies and Services,384999,Miscellaneous Expenses,09-Apr-2018,000007227480773,HALFORDS ON LINE,5940,Other expenses,29.97,0.00,29.97
Regeneration and Local Services,Culture & Sport,054812,Gala Theatre - Catering etc,Supplies and Services,324117,Provisions E324,09-Apr-2018,000007227480903,BATLEYS PERTH,5300,Catering costs - provisions,448.44,74.74,373.70
Regeneration and Local Services,Culture & Sport,054812,Gala Theatre - Catering etc,Supplies and Services,324117,Provisions E324,09-Apr-2018,000007227480903 - 1,BATLEYS PERTH,5300,Catering costs - provisions,16.83,,16.83
Regeneration and Local Services,Culture & Sport,054812,Gala Theatre - Catering etc,Supplies and Services,324117,Provisions E324,09-Apr-2018,000007227480907,BATLEYS PERTH,5300,Catering costs - provisions,130.32,21.72,108.60
Regeneration and Local Services,Culture & Sport,054812,Gala Theatre - Catering etc,Supplies and Services,324117,Provisions E324,09-Apr-2018,000007227480907 - 1,BATLEYS PERTH,5300,Catering costs - provisions,108.57,,108.57
Regeneration and Local Services,Culture & Sport,054812,Gala Theatre - Catering etc,Supplies and Services,324117,Provisions E324,09-Apr-2018,000007227480913,BATLEYS PERTH,5300,Catering costs - provisions,1.82,0.00,1.82
Regeneration and Local Services,Culture & Sport,011060,Hardwick Park Catering,Supplies and Services,324117,Provisions E324,09-Apr-2018,000007227481105,BATLEYS PERTH,5300,Catering costs - provisions,-5.99,0.00,-5.99
Regeneration and Local Services,Economic Development and Housing,031576,B& B - Temp Accom,Supplies and Services,364320,Grants to Voluntary Organisations,09-Apr-2018,000007227481209,PREMIER INN,3811,Accommodation assistance,73.00,12.17,60.83
Resources,Digital and Customer Services,065335,School Services - Implementations,Supplies and Services,304639,Equipment and Materials,09-Apr-2018,000007227481309,ALIEXPRESS,5311,Technicians-supplies,0.90,0.00,0.90
Regeneration and Local Services,Economic Development and Housing,031576,B& B - Temp Accom,Supplies and Services,364320,Grants to Voluntary Organisations,09-Apr-2018,000007227481377,PREMIER INN,3811,Accommodation assistance,715.50,0.00,715.50
Regeneration and Local Services,Economic Development and Housing,031576,B& B - Temp Accom,Supplies and Services,364320,Grants to Voluntary Organisations,09-Apr-2018,000007227481381,PREMIER INN,3811,Accommodation assistance,73.00,12.17,60.83
Regeneration and Local Services,Economic Development and Housing,031576,B& B - Temp Accom,Supplies and Services,364320,Grants to Voluntary Organisations,09-Apr-2018,000007227481383,PREMIER INN,3811,Accommodation assistance,79.00,13.17,65.83
Regeneration and Local Services,Direct Services,021235,Catering - Wharton Park,Supplies and Services,324117,Provisions E324,09-Apr-2018,000007227481435,BATLEYS PERTH,5300,Catering costs - provisions,188.28,31.38,156.90
Regeneration and Local Services,Direct Services,021235,Catering - Wharton Park,Supplies and Services,324117,Provisions E324,09-Apr-2018,000007227481439,BATLEYS PERTH,5300,Catering costs - provisions,80.88,13.48,67.40
Regeneration and Local Services,Direct Services,021235,Catering - Wharton Park,Supplies and Services,324117,Provisions E324,09-Apr-2018,000007227481439 - 1,BATLEYS PERTH,5300,Catering costs - provisions,25.76,,25.76
Regeneration and Local Services,Direct Services,021235,Catering - Wharton Park,Supplies and Services,324117,Provisions E324,09-Apr-2018,000007227481443,BATLEYS PERTH,5300,Catering costs - provisions,9.83,1.64,8.19
Regeneration and Local Services,Direct Services,010383,C&G - South Street Cleansing,Supplies and Services,312011,Newspapers books and periodicals E312,09-Apr-2018,000007232486523,C.L.A.S.S,5251,Books-school library,6.00,0.00,6.00
Regeneration and Local Services,Direct Services,010367,C&G - South Grounds Maintenance,Transport,215995,Running Costs of Vehicles,09-Apr-2018,000007232487163,SNOWBALLS (RAILWAY,5533,Vehicle running expenses,50.98,8.50,42.48
Regeneration and Local Services,Direct Services,010367,C&G - South Grounds Maintenance,Supplies and Services,304221,Equipment and Materials,09-Apr-2018,000007237690663,CORNFORTH INDUSTRIAL S,5200,Direct materials,112.80,18.80,94.00
Children and Young Peoples Services,"Head of Early Help, Inclusion and Vulnerable Children",085957,Secure Management,Supplies and Services,338057,Services,10-Apr-2018,000007223722373,MAXILL INC (USA),5047,Medical fees 338057,2.71,0.00,2.71
Children and Young Peoples Services,Head of Childrens Social Care,085341,High Etherley Satelite Home,Supplies and Services,348037,Subsistence E348,10-Apr-2018,000007227480689,THE BAY HORSE (MIDDRID,5813,Subsistence,132.05,0.00,132.05
Children and Young Peoples Services,Head of Childrens Social Care,085341,High Etherley Satelite Home,Supplies and Services,324117,Provisions E324,10-Apr-2018,000007227480695,TESCO STORES 6329,5411,Catering costs - provisions,30.74,0.00,30.74
Regeneration and Local Services,Economic Development and Housing,030554,International Relations,Supplies and Services,304403,Equipment and Materials,10-Apr-2018,000007227480711,LVR ROEMERMUSEUM IM AR,5999,Other consumables,333.80,0.00,333.80
Regeneration and Local Services,Economic Development and Housing,031576,B& B - Temp Accom,Supplies and Services,364320,Grants to Voluntary Organisations,10-Apr-2018,000007227480727,HOTEL 52,7011,Accommodation assistance,140.00,23.33,116.67
Regeneration and Local Services,Culture & Sport,011204,Events,Supplies and Services,312009,Newspapers books and periodicals E312,10-Apr-2018,000007227480735,THE BOOK PEOPLE,5942,Newspapers books and periodicals,12.95,0.00,12.95
Regeneration and Local Services,Culture & Sport,011204,Events,Supplies and Services,312009,Newspapers books and periodicals E312,10-Apr-2018,000007227480739,THE BOOK PEOPLE,5942,Newspapers books and periodicals,7.95,0.00,7.95
Regeneration and Local Services,Direct Services,010383,C&G - South Street Cleansing,Supplies and Services,304259,Equipment and Materials,10-Apr-2018,000007227480747,TUDOR ENVIRONMENTAL,5261,Equipment-purchase and rental,300.46,50.08,250.38
Regeneration and Local Services,Culture & Sport,054401,Strategic Management Libraries,Supplies and Services,304403,Equipment and Materials,10-Apr-2018,000007227480751,FLYING COLOURS FLAGMAK,5999,Other consumables,59.94,0.00,59.94
Children and Young Peoples Services,Head of Childrens Social Care,085342,9 Cedar Drive Aycliffe,Supplies and Services,304259,Equipment and Materials,10-Apr-2018,000007227480761,WILKO RETAIL LIMIT,5722,Equipment-purchase and rental,24.05,0.00,24.05
Children and Young Peoples Services,Head of Childrens Social Care,085342,9 Cedar Drive Aycliffe,Supplies and Services,348037,Subsistence E348,10-Apr-2018,000007227480765,GREGGS,5812,Subsistence,19.90,0.00,19.90
Regeneration and Local Services,Direct Services,010367,C&G - South Grounds Maintenance,Supplies and Services,304259,Equipment and Materials,10-Apr-2018,000007227480801,MKM PETERLEE,5211,Equipment-purchase and rental,42.25,7.04,35.21
Regeneration and Local Services,Direct Services,010367,C&G - South Grounds Maintenance,Supplies and Services,304259,Equipment and Materials,10-Apr-2018,000007227480805,MKM PETERLEE,5211,Equipment-purchase and rental,84.50,14.08,70.42
Regeneration and Local Services,Direct Services,021242,Catering - County Hall,Supplies and Services,324117,Provisions E324,10-Apr-2018,000007227480813,FREEMAN CATERING BUTCH,5422,Catering costs - provisions,103.05,0.00,103.05
Regeneration and Local Services,Direct Services,021242,Catering - County Hall,Supplies and Services,324117,Provisions E324,10-Apr-2018,000007227480817,JR HOLLAND FOODSERVICE,5422,Catering costs - provisions,87.48,0.00,87.48
Regeneration and Local Services,Direct Services,021242,Catering - County Hall,Supplies and Services,324117,Provisions E324,10-Apr-2018,000007227480821,JR HOLLAND FOODSERVICE,5422,Catering costs - provisions,68.42,0.00,68.42
Regeneration and Local Services,Direct Services,021242,Catering - County Hall,Supplies and Services,324117,Provisions E324,10-Apr-2018,000007227480825,JR HOLLAND FOODSERVICE,5422,Catering costs - provisions,62.25,0.00,62.25
Regeneration and Local Services,Direct Services,021242,Catering - County Hall,Supplies and Services,324117,Provisions E324,10-Apr-2018,000007227480829,JR HOLLAND FOODSERVICE,5422,Catering costs - provisions,59.66,0.00,59.66
Regeneration and Local Services,Direct Services,021242,Catering - County Hall,Supplies and Services,324117,Provisions E324,10-Apr-2018,000007227480833,JR HOLLAND FOODSERVICE,5422,Catering costs - provisions,13.54,0.00,13.54
Regeneration and Local Services,Direct Services,021242,Catering - County Hall,Supplies and Services,324117,Provisions E324,10-Apr-2018,000007227480835,JR HOLLAND FOODSERVICE,5422,Catering costs - provisions,9.95,0.00,9.95
Regeneration and Local Services,Direct Services,021242,Catering - County Hall,Supplies and Services,324117,Provisions E324,10-Apr-2018,000007227480839,JR HOLLAND FOODSERVICE,5422,Catering costs - provisions,6.60,0.00,6.60
Regeneration and Local Services,Direct Services,021242,Catering - County Hall,Supplies and Services,324117,Provisions E324,10-Apr-2018,000007227480843,JR HOLLAND FOODSERVICE,5422,Catering costs - provisions,1.70,0.00,1.70
Regeneration and Local Services,Culture & Sport,054812,Gala Theatre - Catering etc,Supplies and Services,324117,Provisions E324,10-Apr-2018,000007227480889,FREEMAN CATERING BUTCH,5422,Catering costs - provisions,16.20,0.00,16.20
Regeneration and Local Services,Culture & Sport,054812,Gala Theatre - Catering etc,Supplies and Services,324117,Provisions E324,10-Apr-2018,000007227480893,JR HOLLAND FOODSERVICE,5422,Catering costs - provisions,46.88,0.00,46.88
Regeneration and Local Services,Culture & Sport,054812,Gala Theatre - Catering etc,Supplies and Services,324117,Provisions E324,10-Apr-2018,000007227480897,JR HOLLAND FOODSERVICE,5422,Catering costs - provisions,15.22,0.00,15.22
Regeneration and Local Services,Direct Services,010551,Fleet - Chilton Fleet,Transport,215013,Running Costs of Vehicles,10-Apr-2018,000007227480931,DVLA VEHICLE TAX,9399,Vehicle Excise Duty (VED),652.50,0.00,652.50
Regeneration and Local Services,Direct Services,010864,Fleet - Hackworth Road Fleet,Transport,215013,Running Costs of Vehicles,10-Apr-2018,000007227480935,DVLA VEHICLE TAX,9399,Vehicle Excise Duty (VED),652.50,0.00,652.50
Regeneration and Local Services,Direct Services,010864,Fleet - Hackworth Road Fleet,Transport,215013,Running Costs of Vehicles,10-Apr-2018,000007227480939,DVLA VEHICLE TAX,9399,Vehicle Excise Duty (VED),252.50,0.00,252.50
Regeneration and Local Services,Direct Services,010864,Fleet - Hackworth Road Fleet,Transport,215013,Running Costs of Vehicles,10-Apr-2018,000007227480943,DVLA VEHICLE TAX,9399,Vehicle Excise Duty (VED),652.50,0.00,652.50
Regeneration and Local Services,Direct Services,010551,Fleet - Chilton Fleet,Transport,215013,Running Costs of Vehicles,10-Apr-2018,000007227480945,DVLA VEHICLE TAX,9399,Vehicle Excise Duty (VED),652.50,0.00,652.50
Regeneration and Local Services,Direct Services,010551,Fleet - Chilton Fleet,Transport,215013,Running Costs of Vehicles,10-Apr-2018,000007227480949,DVLA VEHICLE TAX,9399,Vehicle Excise Duty (VED),652.50,0.00,652.50
Regeneration and Local Services,Direct Services,010900,Fleet - Meadowfield Fleet,Transport,215013,Running Costs of Vehicles,10-Apr-2018,000007227480951,DVLA VEHICLE TAX,9399,Vehicle Excise Duty (VED),252.50,0.00,252.50
Regeneration and Local Services,Direct Services,010900,Fleet - Meadowfield Fleet,Transport,215013,Running Costs of Vehicles,10-Apr-2018,000007227480957,DVLA VEHICLE TAX,9399,Vehicle Excise Duty (VED),652.50,0.00,652.50
Regeneration and Local Services,Direct Services,010561,Fleet - Morrison Busty Fleet,Transport,215013,Running Costs of Vehicles,10-Apr-2018,000007227480959,DVLA VEHICLE TAX,9399,Vehicle Excise Duty (VED),652.50,0.00,652.50
Regeneration and Local Services,Direct Services,010900,Fleet - Meadowfield Fleet,Transport,215013,Running Costs of Vehicles,10-Apr-2018,000007227480965,DVLA VEHICLE TAX,9399,Vehicle Excise Duty (VED),352.50,0.00,352.50
Regeneration and Local Services,Direct Services,010551,Fleet - Chilton Fleet,Transport,215013,Running Costs of Vehicles,10-Apr-2018,000007227480971,DVLA VEHICLE TAX,9399,Vehicle Excise Duty (VED),252.50,0.00,252.50
Regeneration and Local Services,Direct Services,010900,Fleet - Meadowfield Fleet,Transport,215013,Running Costs of Vehicles,10-Apr-2018,000007227480977,DVLA VEHICLE TAX,9399,Vehicle Excise Duty (VED),252.50,0.00,252.50
Regeneration and Local Services,Direct Services,010900,Fleet - Meadowfield Fleet,Transport,215013,Running Costs of Vehicles,10-Apr-2018,000007227480979,DVLA VEHICLE TAX,9399,Vehicle Excise Duty (VED),252.50,0.00,252.50
Regeneration and Local Services,Direct Services,010561,Fleet - Morrison Busty Fleet,Transport,215013,Running Costs of Vehicles,10-Apr-2018,000007227480983,DVLA VEHICLE TAX,9399,Vehicle Excise Duty (VED),652.50,0.00,652.50
Regeneration and Local Services,Direct Services,010551,Fleet - Chilton Fleet,Transport,215013,Running Costs of Vehicles,10-Apr-2018,000007227480987,DVLA VEHICLE TAX,9399,Vehicle Excise Duty (VED),652.50,0.00,652.50
Regeneration and Local Services,Direct Services,010864,Fleet - Hackworth Road Fleet,Transport,215013,Running Costs of Vehicles,10-Apr-2018,000007227480989,DVLA VEHICLE TAX,9399,Vehicle Excise Duty (VED),652.50,0.00,652.50
Regeneration and Local Services,Direct Services,010864,Fleet - Hackworth Road Fleet,Transport,215013,Running Costs of Vehicles,10-Apr-2018,000007227480993,DVLA VEHICLE TAX,9399,Vehicle Excise Duty (VED),352.50,0.00,352.50
Regeneration and Local Services,Direct Services,010551,Fleet - Chilton Fleet,Transport,215013,Running Costs of Vehicles,10-Apr-2018,000007227480997,DVLA VEHICLE TAX,9399,Vehicle Excise Duty (VED),652.50,0.00,652.50
Regeneration and Local Services,Economic Development and Housing,030749,Employability - Youth Contract,Transport,235057,Public Transport,10-Apr-2018,000007227481007,ARRIVA NORTH EAST,4131,Staff travelling,18.20,0.00,18.20
Regeneration and Local Services,Culture & Sport,054813,Gala Theatre - Technical,Supplies and Services,304259,Equipment and Materials,10-Apr-2018,000007227481023,WWW.THOMANN.DE,5733,Equipment-purchase and rental,301.08,0.00,301.08
Regeneration and Local Services,Spatial Policy Planning Assets & Environment,031221,North Pennines - Bowlees,Supplies and Services,384999,Miscellaneous Expenses,10-Apr-2018,000007227481029,THE RABY ESTATES,5970,Other expenses,70.00,0.00,70.00
Resources,Corporate Finance & Commercial Services,069800,Corporate Procurement,Employees,040149,Recruitment Instruction and Training,10-Apr-2018,000007227481033,WWW.CIPS.ORG,8699,Training-all costs,184.00,0.00,184.00
Regeneration and Local Services,Economic Development and Housing,030737,Durham Works Flexible Fund,Supplies and Services,348037,Subsistence E348,10-Apr-2018,000007227481039,GO NORTH EAST LIMITED,4131,Subsistence,5.10,0.00,5.10
Children and Young Peoples Services,"Head of Early Help, Inclusion and Vulnerable Children",085965,Barnard,Supplies and Services,328041,Clothing uniforms and laundry E328,10-Apr-2018,000007227481045,FOOTASYLUM PLC,5941,Clothing uniforms and laundry,130.97,0.00,130.97
Children and Young Peoples Services,"Head of Early Help, Inclusion and Vulnerable Children",085962,Durham,Supplies and Services,324117,Provisions E324,10-Apr-2018,000007227481049,TESCO STORES 6329,5411,Catering costs - provisions,69.82,0.00,69.82
Children and Young Peoples Services,"Head of Early Help, Inclusion and Vulnerable Children",085955,Auckland,Supplies and Services,328041,Clothing uniforms and laundry E328,10-Apr-2018,000007227481061,WWW.FOOTLOCKER.EU,5661,Clothing uniforms and laundry,139.99,23.33,116.66
Regeneration and Local Services,Culture & Sport,011060,Hardwick Park Catering,Supplies and Services,324117,Provisions E324,10-Apr-2018,000007227481073,FREEMAN CATERING BUTCH,5422,Catering costs - provisions,31.04,0.00,31.04
Regeneration and Local Services,Culture & Sport,011060,Hardwick Park Catering,Supplies and Services,324117,Provisions E324,10-Apr-2018,000007227481077,FREEMAN CATERING BUTCH,5422,Catering costs - provisions,17.26,0.00,17.26
Regeneration and Local Services,Culture & Sport,011060,Hardwick Park Catering,Supplies and Services,324117,Provisions E324,10-Apr-2018,000007227481079,JR HOLLAND FOODSERVICE,5422,Catering costs - provisions,54.90,0.00,54.90
Regeneration and Local Services,Economic Development and Housing,030750,Durham Employment & Skills - General,Employees,040149,Recruitment Instruction and Training,10-Apr-2018,000007227481113,CITB,8220,Training-all costs,30.00,5.00,25.00
Regeneration and Local Services,Economic Development and Housing,030750,Durham Employment & Skills - General,Employees,040149,Recruitment Instruction and Training,10-Apr-2018,000007227481117,CITB,8220,Training-all costs,30.00,5.00,25.00
Regeneration and Local Services,Direct Services,021234,Catering - Locomotion,Supplies and Services,324117,Provisions E324,10-Apr-2018,000007227481123,FREEMAN CATERING BUTCH,5422,Catering costs - provisions,38.56,0.00,38.56
Regeneration and Local Services,Direct Services,021234,Catering - Locomotion,Supplies and Services,324117,Provisions E324,10-Apr-2018,000007227481129,JR HOLLAND FOODSERVICE,5422,Catering costs - provisions,58.62,0.00,58.62
Regeneration and Local Services,Direct Services,021234,Catering - Locomotion,Supplies and Services,324117,Provisions E324,10-Apr-2018,000007227481135,JR HOLLAND FOODSERVICE,5422,Catering costs - provisions,48.05,0.00,48.05
Regeneration and Local Services,Direct Services,021234,Catering - Locomotion,Supplies and Services,324117,Provisions E324,10-Apr-2018,000007227481141,JR HOLLAND FOODSERVICE,5422,Catering costs - provisions,0.65,0.00,0.65
Regeneration and Local Services,Culture & Sport,011204,Events,Supplies and Services,384999,Miscellaneous Expenses,10-Apr-2018,000007227481153,Amazon UK Marketplace,5942,Other expenses,70.79,0.00,70.79
Regeneration and Local Services,Direct Services,010525,Catering - Green Lane,Supplies and Services,324117,Provisions E324,10-Apr-2018,000007227481157,FREEMAN CATERING BUTCH,5422,Catering costs - provisions,45.68,0.00,45.68
Regeneration and Local Services,Direct Services,010525,Catering - Green Lane,Supplies and Services,324117,Provisions E324,10-Apr-2018,000007227481159,FREEMAN CATERING BUTCH,5422,Catering costs - provisions,40.67,0.00,40.67
Regeneration and Local Services,Direct Services,010525,Catering - Green Lane,Supplies and Services,324117,Provisions E324,10-Apr-2018,000007227481165,JR HOLLAND FOODSERVICE,5422,Catering costs - provisions,24.01,0.00,24.01
Regeneration and Local Services,Direct Services,010367,C&G - South Grounds Maintenance,Supplies and Services,324117,Provisions E324,10-Apr-2018,000007227481225,J M RAINE,5399,Catering costs - provisions,171.35,28.56,142.79
Adult and Health Services,Head of Adults,055301,Stanley Pathways,Supplies and Services,324117,Provisions E324,10-Apr-2018,000007227481237,ASDA SUPERSTORE,5411,Catering costs - provisions,15.00,0.00,15.00
Adult and Health Services,Head of Adults,055301,Stanley Pathways,Supplies and Services,324117,Provisions E324,10-Apr-2018,000007227481241,ASDA SUPERSTORE,5411,Catering costs - provisions,6.75,0.00,6.75
Regeneration and Local Services,Economic Development and Housing,030692,Durham Dales Centre - Management and Admin,Supplies and Services,324117,Provisions E324,10-Apr-2018,000007227481245,JR HOLLAND FOODSERVICE,5422,Catering costs - provisions,109.01,0.00,109.01
Regeneration and Local Services,Economic Development and Housing,030692,Durham Dales Centre - Management and Admin,Supplies and Services,324117,Provisions E324,10-Apr-2018,000007227481251,JR HOLLAND FOODSERVICE,5422,Catering costs - provisions,6.60,0.00,6.60
Regeneration and Local Services,Economic Development and Housing,030692,Durham Dales Centre - Management and Admin,Supplies and Services,324117,Provisions E324,10-Apr-2018,000007227481255,JR HOLLAND FOODSERVICE,5422,Catering costs - provisions,4.11,0.00,4.11
Adult and Health Services,Head of Adults,055643,Hawthorn House LD Respite Unit,Supplies and Services,324117,Provisions E324,10-Apr-2018,000007227481259,FREEMAN CATERING BUTCH,5422,Catering costs - provisions,31.45,0.00,31.45
Adult and Health Services,Head of Adults,055643,Hawthorn House LD Respite Unit,Supplies and Services,324117,Provisions E324,10-Apr-2018,000007227481261,JR HOLLAND FOODSERVICE,5422,Catering costs - provisions,22.16,0.00,22.16
Adult and Health Services,Head of Adults,055643,Hawthorn House LD Respite Unit,Supplies and Services,324117,Provisions E324,10-Apr-2018,000007227481265,JR HOLLAND FOODSERVICE,5422,Catering costs - provisions,21.60,0.00,21.60
Adult and Health Services,Head of Adults,055643,Hawthorn House LD Respite Unit,Supplies and Services,324117,Provisions E324,10-Apr-2018,000007227481269,JR HOLLAND FOODSERVICE,5422,Catering costs - provisions,10.27,0.00,10.27
Adult and Health Services,Head of Adults,055643,Hawthorn House LD Respite Unit,Supplies and Services,324117,Provisions E324,10-Apr-2018,000007227481271,JR HOLLAND FOODSERVICE,5422,Catering costs - provisions,8.43,0.00,8.43
Adult and Health Services,Head of Adults,055643,Hawthorn House LD Respite Unit,Supplies and Services,324117,Provisions E324,10-Apr-2018,000007227481275,JR HOLLAND FOODSERVICE,5422,Catering costs - provisions,4.70,0.00,4.70
Regeneration and Local Services,Spatial Policy Planning Assets & Environment,031228,North Pennines - Fellfoot Forward,Supplies and Services,348037,Subsistence E348,10-Apr-2018,000007227481283,THE WATERMILL,5814,Subsistence,56.40,0.00,56.40
Resources,Digital and Customer Services,065335,School Services - Implementations,Supplies and Services,304639,Equipment and Materials,10-Apr-2018,000007227481305,Amazon UK Marketplace,5942,Technicians-supplies,8.16,0.00,8.16
Children and Young Peoples Services,Head of Childrens Social Care,085100,Strategic Manager Families First Area South,Supplies and Services,384199,Miscellaneous Expenses,10-Apr-2018,000007227481317,DARLINGTON BC INTERNET,9399,Other hired and contracted services,12.00,0.00,12.00
Children and Young Peoples Services,Head of Childrens Social Care,085372,Young People Services - North,Supplies and Services,328041,Clothing uniforms and laundry E328,10-Apr-2018,000007227481325,WWW.ARGOS.CO.UK,5310,Clothing uniforms and laundry,110.94,0.00,110.94
Children and Young Peoples Services,Head of Childrens Social Care,085372,Young People Services - North,Supplies and Services,328041,Clothing uniforms and laundry E328,10-Apr-2018,000007227481329,WWW.ARGOS.CO.UK,5310,Clothing uniforms and laundry,123.95,0.00,123.95
Children and Young Peoples Services,Head of Education and Skills,071903,EYDCP-Sustainability EDS,Employees,040149,Recruitment Instruction and Training,10-Apr-2018,000007227481333,NDNA,8398,Training-all costs,305.00,0.00,305.00
Regeneration and Local Services,Culture & Sport,054235,Bishop Auckland Town Hall Cafe,Supplies and Services,324117,Provisions E324,10-Apr-2018,000007227481337,JR HOLLAND FOODSERVICE,5422,Catering costs - provisions,17.33,0.00,17.33
Regeneration and Local Services,Culture & Sport,054235,Bishop Auckland Town Hall Cafe,Supplies and Services,324117,Provisions E324,10-Apr-2018,000007227481341,JR HOLLAND FOODSERVICE,5422,Catering costs - provisions,8.27,0.00,8.27
Regeneration and Local Services,Transport and Contracted Services,031704,Care Connect - CCTV Countywide,Supplies and Services,384956,Miscellaneous Expenses,10-Apr-2018,000007227481345,SECURITY INDUSTRY,7393,Licences,220.00,0.00,220.00
Regeneration and Local Services,Direct Services,021324,Catering - Meadowfield,Supplies and Services,324117,Provisions E324,10-Apr-2018,000007227481349,FREEMAN CATERING BUTCH,5422,Catering costs - provisions,77.15,0.00,77.15
Regeneration and Local Services,Direct Services,021324,Catering - Meadowfield,Supplies and Services,324117,Provisions E324,10-Apr-2018,000007227481353,JR HOLLAND FOODSERVICE,5422,Catering costs - provisions,28.01,0.00,28.01
Children and Young Peoples Services,Head of Childrens Social Care,085333,Coxhoe Satelite Home,Supplies and Services,312011,Newspapers books and periodicals E312,10-Apr-2018,000007227481369,HOME BARGAINS SPENNYMO,5251,Books-school library,2.49,0.00,2.49
Children and Young Peoples Services,Head of Childrens Social Care,085333,Coxhoe Satelite Home,Supplies and Services,324117,Provisions E324,10-Apr-2018,000007227481373,ALDI 59 774,5411,Catering costs - provisions,59.57,0.00,59.57
Adult and Health Services,Head of Adults,055306,Spennymoor Pathways,Supplies and Services,324117,Provisions E324,10-Apr-2018,000007227481421,ASDA SUPERSTORE 4987,5411,Catering costs - provisions,1.82,0.00,1.82
Regeneration and Local Services,Direct Services,021235,Catering - Wharton Park,Supplies and Services,324117,Provisions E324,10-Apr-2018,000007227481425,JR HOLLAND FOODSERVICE,5422,Catering costs - provisions,35.28,0.00,35.28
Resources,Finance & Transactional Services,065170,Welfare Rights,Supplies and Services,338064,Services,10-Apr-2018,000007227481449,DISCLOSURE SCOT,9399,Disclosure & Barring (DBS) Fees,25.00,0.00,25.00
Transformation and Partnerships,Partnerships & Community Engagement Div.,060472,Syrian Vulnerable Persons Scheme,Supplies and Services,308011,Furniture,10-Apr-2018,000007227481463,SP TERRYS FABRICS,5691,Furniture repair and replacement,-15.99,0.00,-15.99
Regeneration and Local Services,Spatial Policy Planning Assets & Environment,031200,North Pennines Core,Supplies and Services,312011,Newspapers books and periodicals E312,10-Apr-2018,000007227481467,Amazon UK Marketplace,5942,Books-school library,15.66,0.00,15.66
Regeneration and Local Services,Spatial Policy Planning Assets & Environment,031200,North Pennines Core,Supplies and Services,312011,Newspapers books and periodicals E312,10-Apr-2018,000007227481471,Amazon UK Marketplace,5942,Books-school library,8.34,0.00,8.34
Regeneration and Local Services,Spatial Policy Planning Assets & Environment,031200,North Pennines Core,Supplies and Services,312011,Newspapers books and periodicals E312,10-Apr-2018,000007227481473,Amazon UK Marketplace,5942,Books-school library,37.95,0.00,37.95
Regeneration and Local Services,Spatial Policy Planning Assets & Environment,031200,North Pennines Core,Supplies and Services,312011,Newspapers books and periodicals E312,10-Apr-2018,000007227481477,Amazon UK Marketplace,5942,Books-school library,7.85,0.00,7.85
Children and Young Peoples Services,Head of Childrens Social Care,085801,CDYOS - Support,Supplies and Services,312011,Newspapers books and periodicals E312,10-Apr-2018,000007227481481,Amazon UK Marketplace,5942,Books-school library,23.94,0.00,23.94
Children and Young Peoples Services,Head of Childrens Social Care,085801,CDYOS - Support,Supplies and Services,312011,Newspapers books and periodicals E312,10-Apr-2018,000007227481485,Amazon UK Marketplace,5942,Books-school library,29.97,0.00,29.97
Children and Young Peoples Services,Head of Childrens Social Care,085801,CDYOS - Support,Supplies and Services,324117,Provisions E324,10-Apr-2018,000007227481487,ASDA SUPERSTORE,5411,Catering costs - provisions,4.59,0.00,4.59
Regeneration and Local Services,Economic Development and Housing,031576,B& B - Temp Accom,Supplies and Services,364320,Grants to Voluntary Organisations,10-Apr-2018,000007232486439,PREMIER INN44023785,5812,Accommodation assistance,100.00,16.67,83.33
Children and Young Peoples Services,Head of Childrens Social Care,085342,9 Cedar Drive Aycliffe,Employees,040149,Recruitment Instruction and Training,10-Apr-2018,000007232486555,PREMIER INN,3811,Training-all costs,52.50,0.00,52.50
Regeneration and Local Services,Economic Development and Housing,031576,B& B - Temp Accom,Supplies and Services,364320,Grants to Voluntary Organisations,10-Apr-2018,000007232487139,PREMIER INN,3811,Accommodation assistance,83.00,13.83,69.17
Regeneration and Local Services,Culture & Sport,011060,Hardwick Park Catering,Supplies and Services,324117,Provisions E324,10-Apr-2018,000007237690607,BATLEYS PERTH,5300,Catering costs - provisions,161.94,26.99,134.95
Regeneration and Local Services,Culture & Sport,011060,Hardwick Park Catering,Supplies and Services,324117,Provisions E324,10-Apr-2018,000007237690607 - 1,BATLEYS PERTH,5300,Catering costs - provisions,133.52,,133.52
Regeneration and Local Services,Direct Services,021234,Catering - Locomotion,Supplies and Services,324117,Provisions E324,10-Apr-2018,000007237690623,BATLEYS PERTH,5300,Catering costs - provisions,388.20,64.70,323.50
Regeneration and Local Services,Direct Services,021234,Catering - Locomotion,Supplies and Services,324117,Provisions E324,10-Apr-2018,000007237690623 - 1,BATLEYS PERTH,5300,Catering costs - provisions,61.49,,61.49
Regeneration and Local Services,Direct Services,021234,Catering - Locomotion,Supplies and Services,324117,Provisions E324,10-Apr-2018,000007237690625,BATLEYS PERTH,5300,Catering costs - provisions,16.14,0.00,16.14
Regeneration and Local Services,Direct Services,010525,Catering - Green Lane,Supplies and Services,324117,Provisions E324,10-Apr-2018,000007237690633,BATLEYS PERTH,5300,Catering costs - provisions,16.20,2.70,13.50
Regeneration and Local Services,Direct Services,010525,Catering - Green Lane,Supplies and Services,324117,Provisions E324,10-Apr-2018,000007237690633 - 1,BATLEYS PERTH,5300,Catering costs - provisions,32.00,,32.00
Regeneration and Local Services,Culture & Sport,054235,Bishop Auckland Town Hall Cafe,Supplies and Services,324117,Provisions E324,10-Apr-2018,000007237690741,BATLEYS PERTH,5300,Catering costs - provisions,96.00,16.00,80.00
Regeneration and Local Services,Direct Services,021324,Catering - Meadowfield,Supplies and Services,324117,Provisions E324,10-Apr-2018,000007237690749,BATLEYS PERTH,5300,Catering costs - provisions,35.22,5.87,29.35
Regeneration and Local Services,Direct Services,021324,Catering - Meadowfield,Supplies and Services,324117,Provisions E324,10-Apr-2018,000007237690749 - 1,BATLEYS PERTH,5300,Catering costs - provisions,106.80,,106.80
Regeneration and Local Services,Economic Development and Housing,030554,International Relations,Supplies and Services,304403,Equipment and Materials,11-Apr-2018,000007227480713,LVR ROEMERMUSEUM IM AR,5999,Other consumables,9.18,0.00,9.18
Regeneration and Local Services,Culture & Sport,054813,Gala Theatre - Technical,Supplies and Services,304259,Equipment and Materials,11-Apr-2018,000007227481025,WWW.THOMANN.DE,5733,Equipment-purchase and rental,8.28,0.00,8.28
Children and Young Peoples Services,"Head of Early Help, Inclusion and Vulnerable Children",085965,Barnard,Supplies and Services,328041,Clothing uniforms and laundry E328,11-Apr-2018,000007227481055,Amazon UK Marketplace,5942,Clothing uniforms and laundry,4.09,0.00,4.09
Regeneration and Local Services,Direct Services,021242,Catering - County Hall,Supplies and Services,324117,Provisions E324,11-Apr-2018,000007232486365,SAINSBURYS SACAT 0776,5411,Catering costs - provisions,56.20,0.00,56.20
Regeneration and Local Services,Direct Services,021242,Catering - County Hall,Supplies and Services,324117,Provisions E324,11-Apr-2018,000007232486373,SAINSBURYS SACAT 0776,5411,Catering costs - provisions,8.05,0.00,8.05
Children and Young Peoples Services,Head of Education and Skills,071801,Selby Cottage Childcare Centre,Supplies and Services,324117,Provisions E324,11-Apr-2018,000007232486407,TESCO STORES 2278,5411,Catering costs - provisions,5.65,0.00,5.65
Regeneration and Local Services,Direct Services,020079,Bldg Serv - R&M Div 79- Electrical,Supplies and Services,344033,Telephones,11-Apr-2018,000007232486415,Amazon UK Marketplace,5942,Telephones general-all costs,12.48,2.08,10.40
Resources,Digital and Customer Services,065431,Applications and Development,Supplies and Services,312009,Newspapers books and periodicals E312,11-Apr-2018,000007232486425,Amazon EU,5969,Newspapers books and periodicals,11.43,0.00,11.43
Adult and Health Services,Head of Adults,055302,Durham Pathways,Supplies and Services,324117,Provisions E324,11-Apr-2018,000007232486513,ASDA STORES LTD 4313,5411,Catering costs - provisions,11.40,0.00,11.40
Regeneration and Local Services,Economic Development and Housing,030705,Visit County Durham,Employees,040149,Recruitment Instruction and Training,11-Apr-2018,000007232486529,PAYPAL PHOTOGRAPHY,8249,Training-all costs,78.00,0.00,78.00
Children and Young Peoples Services,Head of Childrens Social Care,085342,9 Cedar Drive Aycliffe,Supplies and Services,328041,Clothing uniforms and laundry E328,11-Apr-2018,000007232486541,NEW LOOK 1744,5621,Clothing uniforms and laundry,38.01,0.00,38.01
Children and Young Peoples Services,Head of Childrens Social Care,085342,9 Cedar Drive Aycliffe,Supplies and Services,328041,Clothing uniforms and laundry E328,11-Apr-2018,000007232486545,NEXT RETAIL LTD,5651,Clothing uniforms and laundry,14.05,0.00,14.05
Children and Young Peoples Services,Head of Childrens Social Care,085342,9 Cedar Drive Aycliffe,Supplies and Services,328041,Clothing uniforms and laundry E328,11-Apr-2018,000007232486559,THE RANGE,5311,Clothing uniforms and laundry,79.32,0.00,79.32
Children and Young Peoples Services,Head of Childrens Social Care,085342,9 Cedar Drive Aycliffe,Supplies and Services,348037,Subsistence E348,11-Apr-2018,000007232486565,CARLUCCIOS METRO CENTR,5812,Subsistence,75.45,0.00,75.45
Children and Young Peoples Services,Head of Childrens Social Care,085342,9 Cedar Drive Aycliffe,Supplies and Services,328041,Clothing uniforms and laundry E328,11-Apr-2018,000007232486569,THE RANGE,5311,Clothing uniforms and laundry,-29.50,0.00,-29.50
Regeneration and Local Services,Direct Services,021242,Catering - County Hall,Supplies and Services,324117,Provisions E324,11-Apr-2018,000007232486619,WWW.ADELIEFOODS.CO.UK,5499,Catering costs - provisions,209.47,0.00,209.47
Regeneration and Local Services,Direct Services,021242,Catering - County Hall,Supplies and Services,324117,Provisions E324,11-Apr-2018,000007232486621,WWW.ADELIEFOODS.CO.UK,5499,Catering costs - provisions,140.76,0.00,140.76
Regeneration and Local Services,Direct Services,021242,Catering - County Hall,Supplies and Services,324117,Provisions E324,11-Apr-2018,000007232486623,WWW.ADELIEFOODS.CO.UK,5499,Catering costs - provisions,124.68,0.00,124.68
Regeneration and Local Services,Direct Services,021242,Catering - County Hall,Supplies and Services,324117,Provisions E324,11-Apr-2018,000007232486629,WWW.ADELIEFOODS.CO.UK,5499,Catering costs - provisions,110.81,0.00,110.81
Regeneration and Local Services,Direct Services,021242,Catering - County Hall,Supplies and Services,324117,Provisions E324,11-Apr-2018,000007232486633,HOPWELLS LTD,5811,Catering costs - provisions,241.12,0.00,241.12
Regeneration and Local Services,Direct Services,021242,Catering - County Hall,Supplies and Services,324117,Provisions E324,11-Apr-2018,000007232486641,HOPWELLS LTD,5811,Catering costs - provisions,98.56,0.00,98.56
Children and Young Peoples Services,Head of Childrens Social Care,085380,Operations Manager Adoption & Fostering,Supplies and Services,328041,Clothing uniforms and laundry E328,11-Apr-2018,000007232486649,ARGOS RETAIL GROUP,5310,Clothing uniforms and laundry,44.99,0.00,44.99
Regeneration and Local Services,Economic Development and Housing,030544,Rural Employability - Client Engagement,Supplies and Services,328041,Clothing uniforms and laundry E328,11-Apr-2018,000007232486659,SCREWFIX,5211,Clothing uniforms and laundry,37.98,6.33,31.65
Regeneration and Local Services,Economic Development and Housing,030737,Durham Works Flexible Fund,Supplies and Services,328041,Clothing uniforms and laundry E328,11-Apr-2018,000007232486665,NEXT DIRECTORY,5651,Clothing uniforms and laundry,48.00,0.00,48.00
Regeneration and Local Services,Culture & Sport,054812,Gala Theatre - Catering etc,Supplies and Services,324117,Provisions E324,11-Apr-2018,000007232486675,HOPWELLS LTD,5811,Catering costs - provisions,58.22,0.00,58.22
Regeneration and Local Services,Culture & Sport,054812,Gala Theatre - Catering etc,Supplies and Services,324117,Provisions E324,11-Apr-2018,000007232486679,HOPWELLS LTD,5811,Catering costs - provisions,8.90,0.00,8.90
Regeneration and Local Services,Culture & Sport,054812,Gala Theatre - Catering etc,Supplies and Services,324117,Provisions E324,11-Apr-2018,000007232486683,HOPWELLS LTD,5811,Catering costs - provisions,-7.26,0.00,-7.26
Children and Young Peoples Services,"Head of Early Help, Inclusion and Vulnerable Children",079599,Psychological-HQ,Supplies and Services,304403,Equipment and Materials,11-Apr-2018,000007232486715,AMZ Amazon US,5999,Other consumables,-2.14,0.00,-2.14
Regeneration and Local Services,Direct Services,010367,C&G - South Grounds Maintenance,Third Party Payments 4THIRD,430100,Rendered by Private Contractors,11-Apr-2018,000007232486729,WILLOWCRETE MAN,5039,Payments to sub-contractors,103.32,17.22,86.10
Children and Young Peoples Services,Childrens Services Operational Support,052986,CYPS - Locality and Operational Support,Supplies and Services,324117,Provisions E324,11-Apr-2018,000007232486735,ASDA SUPERSTORE 4987,5411,Catering costs - provisions,8.03,0.00,8.03
Children and Young Peoples Services,Head of Education and Skills,088037,One Point YEI,Supplies and Services,304403,Equipment and Materials,11-Apr-2018,000007232486765,GRO HM PASSPORT OFFICE,9399,Other consumables,9.25,0.00,9.25
Children and Young Peoples Services,"Head of Early Help, Inclusion and Vulnerable Children",085965,Barnard,Supplies and Services,328041,Clothing uniforms and laundry E328,11-Apr-2018,000007232486779,Amazon UK Marketplace,5942,Clothing uniforms and laundry,1.15,0.00,1.15
Children and Young Peoples Services,"Head of Early Help, Inclusion and Vulnerable Children",085955,Auckland,Supplies and Services,384999,Miscellaneous Expenses,11-Apr-2018,000007232486781,Amazon EU,5969,Other expenses,11.48,0.00,11.48
Children and Young Peoples Services,"Head of Early Help, Inclusion and Vulnerable Children",085965,Barnard,Supplies and Services,304259,Equipment and Materials,11-Apr-2018,000007232486785,WWW.ARGOS.CO.UK,5310,Equipment-purchase and rental,63.94,10.66,53.28
Children and Young Peoples Services,"Head of Early Help, Inclusion and Vulnerable Children",085965,Barnard,Supplies and Services,328041,Clothing uniforms and laundry E328,11-Apr-2018,000007232486789,FOOTASYLUM PLC,5941,Clothing uniforms and laundry,90.98,0.00,90.98
Children and Young Peoples Services,"Head of Early Help, Inclusion and Vulnerable Children",085955,Auckland,Supplies and Services,324117,Provisions E324,11-Apr-2018,000007232486795,TESCO STORES 6329,5411,Catering costs - provisions,96.44,0.00,96.44
Regeneration and Local Services,Direct Services,010367,C&G - South Grounds Maintenance,Supplies and Services,384999,Miscellaneous Expenses,11-Apr-2018,000007232486803,WWW.GUSTHARTS.COM,5046,Other expenses,468.68,78.11,390.57
Regeneration and Local Services,Culture & Sport,011060,Hardwick Park Catering,Supplies and Services,324117,Provisions E324,11-Apr-2018,000007232486823,HOPWELLS LTD,5811,Catering costs - provisions,319.92,53.32,266.60
Regeneration and Local Services,Culture & Sport,011060,Hardwick Park Catering,Supplies and Services,324117,Provisions E324,11-Apr-2018,000007232486823 - 1,HOPWELLS LTD,5811,Catering costs - provisions,77.55,,77.55
Regeneration and Local Services,Culture & Sport,011060,Hardwick Park Catering,Supplies and Services,324117,Provisions E324,11-Apr-2018,000007232486843,HOPWELLS LTD,5811,Catering costs - provisions,122.40,20.40,102.00
Regeneration and Local Services,Culture & Sport,011060,Hardwick Park Catering,Supplies and Services,324117,Provisions E324,11-Apr-2018,000007232486843 - 1,HOPWELLS LTD,5811,Catering costs - provisions,176.89,,176.89
Regeneration and Local Services,Culture & Sport,011060,Hardwick Park Catering,Supplies and Services,324117,Provisions E324,11-Apr-2018,000007232486853,HOPWELLS LTD,5811,Catering costs - provisions,140.04,23.34,116.70
Regeneration and Local Services,Culture & Sport,011060,Hardwick Park Catering,Supplies and Services,324117,Provisions E324,11-Apr-2018,000007232486853 - 1,HOPWELLS LTD,5811,Catering costs - provisions,45.19,,45.19
Regeneration and Local Services,Culture & Sport,011060,Hardwick Park Catering,Supplies and Services,324117,Provisions E324,11-Apr-2018,000007232486869,HOPWELLS LTD,5811,Catering costs - provisions,99.48,16.58,82.90
Regeneration and Local Services,Culture & Sport,011060,Hardwick Park Catering,Supplies and Services,324117,Provisions E324,11-Apr-2018,000007232486869 - 1,HOPWELLS LTD,5811,Catering costs - provisions,66.66,,66.66
Regeneration and Local Services,Culture & Sport,011060,Hardwick Park Catering,Supplies and Services,324117,Provisions E324,11-Apr-2018,000007232486879,HOPWELLS LTD,5811,Catering costs - provisions,113.94,18.99,94.95
Regeneration and Local Services,Culture & Sport,011060,Hardwick Park Catering,Supplies and Services,324117,Provisions E324,11-Apr-2018,000007232486879 - 1,HOPWELLS LTD,5811,Catering costs - provisions,41.13,,41.13
Regeneration and Local Services,Culture & Sport,011060,Hardwick Park Catering,Supplies and Services,324117,Provisions E324,11-Apr-2018,000007232486887,HOPWELLS LTD,5811,Catering costs - provisions,-0.92,-0.15,-0.77
Regeneration and Local Services,Culture & Sport,011060,Hardwick Park Catering,Supplies and Services,324117,Provisions E324,11-Apr-2018,000007232486893,HOPWELLS LTD,5811,Catering costs - provisions,-1.01,0.00,-1.01
Regeneration and Local Services,Culture & Sport,011060,Hardwick Park Catering,Supplies and Services,324117,Provisions E324,11-Apr-2018,000007232486897,HOPWELLS LTD,5811,Catering costs - provisions,-1.01,0.00,-1.01
Regeneration and Local Services,Culture & Sport,011060,Hardwick Park Catering,Supplies and Services,324117,Provisions E324,11-Apr-2018,000007232486901,HOPWELLS LTD,5811,Catering costs - provisions,-1.25,0.00,-1.25
Regeneration and Local Services,Culture & Sport,011060,Hardwick Park Catering,Supplies and Services,324117,Provisions E324,11-Apr-2018,000007232486907,HOPWELLS LTD,5811,Catering costs - provisions,-1.25,0.00,-1.25
Regeneration and Local Services,Culture & Sport,011060,Hardwick Park Catering,Supplies and Services,324117,Provisions E324,11-Apr-2018,000007232486913,HOPWELLS LTD,5811,Catering costs - provisions,-1.25,0.00,-1.25
Regeneration and Local Services,Culture & Sport,011060,Hardwick Park Catering,Supplies and Services,324117,Provisions E324,11-Apr-2018,000007232486919,HOPWELLS LTD,5811,Catering costs - provisions,-2.12,0.00,-2.12
Regeneration and Local Services,Culture & Sport,011060,Hardwick Park Catering,Supplies and Services,324117,Provisions E324,11-Apr-2018,000007232486923,HOPWELLS LTD,5811,Catering costs - provisions,-2.12,0.00,-2.12
Regeneration and Local Services,Culture & Sport,011060,Hardwick Park Catering,Supplies and Services,324117,Provisions E324,11-Apr-2018,000007232486927,HOPWELLS LTD,5811,Catering costs - provisions,-2.12,0.00,-2.12
Regeneration and Local Services,Culture & Sport,011060,Hardwick Park Catering,Supplies and Services,324117,Provisions E324,11-Apr-2018,000007232486937,HOPWELLS LTD,5811,Catering costs - provisions,-2.26,0.00,-2.26
Regeneration and Local Services,Culture & Sport,011060,Hardwick Park Catering,Supplies and Services,324117,Provisions E324,11-Apr-2018,000007232486943,HOPWELLS LTD,5811,Catering costs - provisions,-3.44,0.00,-3.44
Regeneration and Local Services,Culture & Sport,011060,Hardwick Park Catering,Supplies and Services,324117,Provisions E324,11-Apr-2018,000007232486949,HOPWELLS LTD,5811,Catering costs - provisions,-58.58,-9.76,-48.82
Regeneration and Local Services,Economic Development and Housing,030750,Durham Employment & Skills - General,Employees,040149,Recruitment Instruction and Training,11-Apr-2018,000007232486961,CITB,8220,Training-all costs,30.00,5.00,25.00
Regeneration and Local Services,Economic Development and Housing,030750,Durham Employment & Skills - General,Employees,040149,Recruitment Instruction and Training,11-Apr-2018,000007232486963,CITB,8220,Training-all costs,30.00,5.00,25.00
Children and Young Peoples Services,Head of Childrens Social Care,085551,Short Break Services-Park Hse Sher,Supplies and Services,328041,Clothing uniforms and laundry E328,11-Apr-2018,000007232486969,ARGOS LTD,5310,Clothing uniforms and laundry,67.96,0.00,67.96
Children and Young Peoples Services,Head of Childrens Social Care,085332,Middlestone Moor CU,Supplies and Services,324117,Provisions E324,11-Apr-2018,000007232486977,TESCO STORES 2916,5411,Catering costs - provisions,15.25,0.00,15.25
Children and Young Peoples Services,Head of Childrens Social Care,085332,Middlestone Moor CU,Supplies and Services,324117,Provisions E324,11-Apr-2018,000007232486983,ALDI 74 774,5411,Catering costs - provisions,12.27,0.00,12.27
Regeneration and Local Services,Direct Services,021234,Catering - Locomotion,Supplies and Services,324117,Provisions E324,11-Apr-2018,000007232486991,WWW.ADELIEFOODS.CO.UK,5499,Catering costs - provisions,125.34,0.00,125.34
Regeneration and Local Services,Direct Services,021234,Catering - Locomotion,Supplies and Services,324117,Provisions E324,11-Apr-2018,000007232486995,WWW.ADELIEFOODS.CO.UK,5499,Catering costs - provisions,106.64,0.00,106.64
Regeneration and Local Services,Direct Services,021234,Catering - Locomotion,Supplies and Services,324117,Provisions E324,11-Apr-2018,000007232486997,WWW.ADELIEFOODS.CO.UK,5499,Catering costs - provisions,88.29,0.00,88.29
Regeneration and Local Services,Direct Services,021234,Catering - Locomotion,Supplies and Services,324117,Provisions E324,11-Apr-2018,000007232487003,WWW.ADELIEFOODS.CO.UK,5499,Catering costs - provisions,84.69,0.00,84.69
Regeneration and Local Services,Direct Services,021234,Catering - Locomotion,Supplies and Services,324117,Provisions E324,11-Apr-2018,000007232487007,WWW.ADELIEFOODS.CO.UK,5499,Catering costs - provisions,51.90,0.00,51.90
Regeneration and Local Services,Direct Services,021234,Catering - Locomotion,Supplies and Services,324117,Provisions E324,11-Apr-2018,000007232487011,HOPWELLS LTD,5811,Catering costs - provisions,114.42,19.07,95.35
Regeneration and Local Services,Direct Services,021234,Catering - Locomotion,Supplies and Services,324117,Provisions E324,11-Apr-2018,000007232487011 - 1,HOPWELLS LTD,5811,Catering costs - provisions,302.57,,302.57
Regeneration and Local Services,Direct Services,021234,Catering - Locomotion,Supplies and Services,324117,Provisions E324,11-Apr-2018,000007232487017,HOPWELLS LTD,5811,Catering costs - provisions,115.38,19.23,96.15
Regeneration and Local Services,Direct Services,021234,Catering - Locomotion,Supplies and Services,324117,Provisions E324,11-Apr-2018,000007232487017 - 1,HOPWELLS LTD,5811,Catering costs - provisions,158.25,,158.25
Regeneration and Local Services,Direct Services,021234,Catering - Locomotion,Supplies and Services,324117,Provisions E324,11-Apr-2018,000007232487027,HOPWELLS LTD,5811,Catering costs - provisions,60.84,10.14,50.70
Regeneration and Local Services,Direct Services,021234,Catering - Locomotion,Supplies and Services,324117,Provisions E324,11-Apr-2018,000007232487027 - 1,HOPWELLS LTD,5811,Catering costs - provisions,163.70,,163.70
Regeneration and Local Services,Direct Services,021234,Catering - Locomotion,Supplies and Services,324117,Provisions E324,11-Apr-2018,000007232487037,HOPWELLS LTD,5811,Catering costs - provisions,41.10,6.85,34.25
Regeneration and Local Services,Direct Services,021234,Catering - Locomotion,Supplies and Services,324117,Provisions E324,11-Apr-2018,000007232487037 - 1,HOPWELLS LTD,5811,Catering costs - provisions,146.81,,146.81
Regeneration and Local Services,Direct Services,021234,Catering - Locomotion,Supplies and Services,324117,Provisions E324,11-Apr-2018,000007232487041,HOPWELLS LTD,5811,Catering costs - provisions,-20.42,-3.40,-17.02
Regeneration and Local Services,Direct Services,010525,Catering - Green Lane,Supplies and Services,324117,Provisions E324,11-Apr-2018,000007232487049,WWW.ADELIEFOODS.CO.UK,5499,Catering costs - provisions,37.74,0.00,37.74
Regeneration and Local Services,Direct Services,010525,Catering - Green Lane,Supplies and Services,324117,Provisions E324,11-Apr-2018,000007232487055,WWW.ADELIEFOODS.CO.UK,5499,Catering costs - provisions,36.92,0.00,36.92
Regeneration and Local Services,Direct Services,010525,Catering - Green Lane,Supplies and Services,324117,Provisions E324,11-Apr-2018,000007232487065,WWW.ADELIEFOODS.CO.UK,5499,Catering costs - provisions,32.00,0.00,32.00
Regeneration and Local Services,Direct Services,010525,Catering - Green Lane,Supplies and Services,324117,Provisions E324,11-Apr-2018,000007232487073,WWW.ADELIEFOODS.CO.UK,5499,Catering costs - provisions,25.36,0.00,25.36
Regeneration and Local Services,Direct Services,010525,Catering - Green Lane,Supplies and Services,324117,Provisions E324,11-Apr-2018,000007232487079,HOPWELLS LTD,5811,Catering costs - provisions,127.61,0.00,127.61
Regeneration and Local Services,Direct Services,010525,Catering - Green Lane,Supplies and Services,324117,Provisions E324,11-Apr-2018,000007232487087,HOPWELLS LTD,5811,Catering costs - provisions,57.14,0.00,57.14
Children and Young Peoples Services,Head of Childrens Social Care,085626,Families First Shildon/Chilton,Supplies and Services,338045,Services,11-Apr-2018,000007232487113,WWW.DURHAM.GOV.UK,9399,Legal expenses 338045,12.00,0.00,12.00
Children and Young Peoples Services,Head of Childrens Social Care,085626,Families First Shildon/Chilton,Supplies and Services,308011,Furniture,11-Apr-2018,000007232487119,TESCO-Seller_IST_1_240,5999,Furniture repair and replacement,89.99,0.00,89.99
Adult and Health Services,Head of Adults,055302,Durham Pathways,Supplies and Services,324117,Provisions E324,11-Apr-2018,000007232487199,ASDA SUPERSTORE,5411,Catering costs - provisions,16.49,0.00,16.49
Adult and Health Services,Head of Adults,055643,Hawthorn House LD Respite Unit,Supplies and Services,324117,Provisions E324,11-Apr-2018,000007232487205,HOPWELLS LTD,5811,Catering costs - provisions,101.28,0.00,101.28
Regeneration and Local Services,Spatial Policy Planning Assets & Environment,031228,North Pennines - Fellfoot Forward,Supplies and Services,324117,Provisions E324,11-Apr-2018,000007232487211,HALLBANKGATE HUB LIMIT,5411,Catering costs - provisions,8.00,1.33,6.67
Regeneration and Local Services,Spatial Policy Planning Assets & Environment,031228,North Pennines - Fellfoot Forward,Supplies and Services,324117,Provisions E324,11-Apr-2018,000007232487217,HALLBANKGATE HUB LIMIT,5411,Catering costs - provisions,18.80,3.13,15.67
Regeneration and Local Services,Spatial Policy Planning Assets & Environment,031200,North Pennines Core,Supplies and Services,304259,Equipment and Materials,11-Apr-2018,000007232487223,GALA THEATRE,9399,Equipment-purchase and rental,8.80,0.00,8.80
Children and Young Peoples Services,Head of Childrens Social Care,085380,Operations Manager Adoption & Fostering,Supplies and Services,324117,Provisions E324,11-Apr-2018,000007232487255,ASDA STORES,5411,Catering costs - provisions,2.90,0.00,2.90
Children and Young Peoples Services,Head of Childrens Social Care,085802,CDYOS - Best Practice Group,Supplies and Services,364320,Grants to Voluntary Organisations,11-Apr-2018,000007232487267,HOL INN BIRM CITY,7011,Accommodation assistance,100.00,0.00,100.00
Dedicated Schools Grant,DSG High Needs Block,079040,SENSS-HQ,Supplies and Services,324117,Provisions E324,11-Apr-2018,000007232487277,ASDA GROCERIES ONLINE,5411,Catering costs - provisions,51.62,0.00,51.62
Regeneration and Local Services,Direct Services,021324,Catering - Meadowfield,Supplies and Services,324117,Provisions E324,11-Apr-2018,000007232487305,HOPWELLS LTD,5811,Catering costs - provisions,47.32,0.00,47.32
Regeneration and Local Services,Direct Services,021324,Catering - Meadowfield,Supplies and Services,324117,Provisions E324,11-Apr-2018,000007232487311,HOPWELLS LTD,5811,Catering costs - provisions,41.21,0.00,41.21
Regeneration and Local Services,Direct Services,021324,Catering - Meadowfield,Supplies and Services,324117,Provisions E324,11-Apr-2018,000007232487315,HOPWELLS LTD,5811,Catering costs - provisions,-1.50,0.00,-1.50
Regeneration and Local Services,Economic Development and Housing,031576,B& B - Temp Accom,Supplies and Services,364320,Grants to Voluntary Organisations,11-Apr-2018,000007232487321,HOTEL 52,7011,Accommodation assistance,200.00,0.00,200.00
Resources,Legal & Democratic Services,067910,Democratic Representation,Supplies and Services,372009,Subscriptions E372,11-Apr-2018,000007232487393,WWW.ICO.GOV.UK,9399,Subscriptions 372009,35.00,0.00,35.00
Resources,Legal & Democratic Services,067910,Democratic Representation,Supplies and Services,372009,Subscriptions E372,11-Apr-2018,000007232487395,WWW.ICO.GOV.UK,9399,Subscriptions 372009,35.00,0.00,35.00
Resources,Legal & Democratic Services,067910,Democratic Representation,Supplies and Services,372009,Subscriptions E372,11-Apr-2018,000007232487403,WWW.ICO.GOV.UK,9399,Subscriptions 372009,35.00,0.00,35.00
Resources,Legal & Democratic Services,067910,Democratic Representation,Supplies and Services,372009,Subscriptions E372,11-Apr-2018,000007232487411,WWW.ICO.GOV.UK,9399,Subscriptions 372009,35.00,0.00,35.00
Resources,Legal & Democratic Services,067910,Democratic Representation,Supplies and Services,372009,Subscriptions E372,11-Apr-2018,000007232487413,WWW.ICO.GOV.UK,9399,Subscriptions 372009,35.00,0.00,35.00
Resources,Legal & Democratic Services,067910,Democratic Representation,Supplies and Services,372009,Subscriptions E372,11-Apr-2018,000007232487417,WWW.ICO.GOV.UK,9399,Subscriptions 372009,35.00,0.00,35.00
Resources,Legal & Democratic Services,067910,Democratic Representation,Supplies and Services,372009,Subscriptions E372,11-Apr-2018,000007232487421,WWW.ICO.GOV.UK,9399,Subscriptions 372009,35.00,0.00,35.00
Adult and Health Services,Head of Adults,055306,Spennymoor Pathways,Supplies and Services,324117,Provisions E324,11-Apr-2018,000007232487437,ASDA SUPERSTORE 4987,5411,Catering costs - provisions,0.90,0.00,0.90
Regeneration and Local Services,Direct Services,021235,Catering - Wharton Park,Supplies and Services,324117,Provisions E324,11-Apr-2018,000007232487471,WWW.ADELIEFOODS.CO.UK,5499,Catering costs - provisions,69.28,0.00,69.28
Regeneration and Local Services,Direct Services,021235,Catering - Wharton Park,Supplies and Services,324117,Provisions E324,11-Apr-2018,000007232487475,WWW.ADELIEFOODS.CO.UK,5499,Catering costs - provisions,46.10,0.00,46.10
Regeneration and Local Services,Direct Services,021235,Catering - Wharton Park,Supplies and Services,324117,Provisions E324,11-Apr-2018,000007232487481,HOPWELLS LTD,5811,Catering costs - provisions,138.42,23.07,115.35
Regeneration and Local Services,Direct Services,021235,Catering - Wharton Park,Supplies and Services,324117,Provisions E324,11-Apr-2018,000007232487481 - 1,HOPWELLS LTD,5811,Catering costs - provisions,54.70,,54.70
Regeneration and Local Services,Economic Development and Housing,030737,Durham Works Flexible Fund,Transport,235057,Public Transport,11-Apr-2018,000007232487491,GO NORTH EAST LIMITED,4131,Staff travelling,92.00,0.00,92.00
Resources,Finance & Transactional Services,065170,Welfare Rights,Supplies and Services,338064,Services,11-Apr-2018,000007232487499,DISCLOSURE SCOT,9399,Disclosure & Barring (DBS) Fees,25.00,0.00,25.00
Resources,Finance & Transactional Services,065170,Welfare Rights,Supplies and Services,338064,Services,11-Apr-2018,000007232487503,DISCLOSURE SCOT,9399,Disclosure & Barring (DBS) Fees,25.00,0.00,25.00
Transformation and Partnerships,Partnerships & Community Engagement Div.,060472,Syrian Vulnerable Persons Scheme,Supplies and Services,308011,Furniture,11-Apr-2018,000007232487519,VERTICAL BLINDS DIRECT,5719,Furniture repair and replacement,155.82,25.97,129.85
Transformation and Partnerships,Partnerships & Community Engagement Div.,060472,Syrian Vulnerable Persons Scheme,Supplies and Services,308011,Furniture,11-Apr-2018,000007232487519 - 1,VERTICAL BLINDS DIRECT,5719,Furniture repair and replacement,9.93,,9.93
Transformation and Partnerships,Partnerships & Community Engagement Div.,060472,Syrian Vulnerable Persons Scheme,Supplies and Services,308011,Furniture,11-Apr-2018,000007232487521,VERTICAL BLINDS DIRECT,5719,Furniture repair and replacement,40.27,6.71,33.56
Transformation and Partnerships,Partnerships & Community Engagement Div.,060472,Syrian Vulnerable Persons Scheme,Supplies and Services,308011,Furniture,11-Apr-2018,000007232487527,Argos Durham Arnis,5310,Furniture repair and replacement,134.84,22.47,112.37
Regeneration and Local Services,Spatial Policy Planning Assets & Environment,031200,North Pennines Core,Supplies and Services,312011,Newspapers books and periodicals E312,11-Apr-2018,000007232487533,Amazon UK Marketplace,5942,Books-school library,9.87,0.00,9.87
Regeneration and Local Services,Spatial Policy Planning Assets & Environment,031200,North Pennines Core,Supplies and Services,340001,Postages E340,11-Apr-2018,000007232487537,THE POST OFFICE,9402,Postages,6.40,0.00,6.40
Children and Young Peoples Services,Head of Childrens Social Care,085801,CDYOS - Support,Supplies and Services,304259,Equipment and Materials,11-Apr-2018,000007232487543,SCREWFIX DIRECT,5211,Equipment-purchase and rental,52.96,8.83,44.13
Regeneration and Local Services,Economic Development and Housing,030749,Employability - Youth Contract,Transport,235057,Public Transport,11-Apr-2018,000007232487551,ARRIVA NORTH EAST,4131,Staff travelling,7.00,0.00,7.00
Regeneration and Local Services,Economic Development and Housing,030749,Employability - Youth Contract,Transport,235057,Public Transport,11-Apr-2018,000007232487559,ARRIVA NORTH EAST,4131,Staff travelling,7.00,0.00,7.00
Regeneration and Local Services,Economic Development and Housing,030749,Employability - Youth Contract,Transport,235057,Public Transport,11-Apr-2018,000007232487565,ARRIVA NORTH EAST,4131,Staff travelling,7.00,0.00,7.00
Regeneration and Local Services,Economic Development and Housing,031576,B& B - Temp Accom,Supplies and Services,364320,Grants to Voluntary Organisations,11-Apr-2018,000007237690455,PREMIER INN,3811,Accommodation assistance,165.50,27.58,137.92
Regeneration and Local Services,Economic Development and Housing,031576,B& B - Temp Accom,Supplies and Services,364320,Grants to Voluntary Organisations,11-Apr-2018,000007237690459,PREMIER INN44023785,5812,Accommodation assistance,100.00,16.67,83.33
Regeneration and Local Services,Direct Services,021242,Catering - County Hall,Supplies and Services,324117,Provisions E324,11-Apr-2018,000007237690507,JR HOLLAND FOODSERVICE,5422,Catering costs - provisions,81.47,0.00,81.47
Regeneration and Local Services,Direct Services,021242,Catering - County Hall,Supplies and Services,324117,Provisions E324,11-Apr-2018,000007237690509,JR HOLLAND FOODSERVICE,5422,Catering costs - provisions,30.14,0.00,30.14
Regeneration and Local Services,Direct Services,021242,Catering - County Hall,Supplies and Services,324117,Provisions E324,11-Apr-2018,000007237690511,JR HOLLAND FOODSERVICE,5422,Catering costs - provisions,16.36,0.00,16.36
Children and Young Peoples Services,"Head of Early Help, Inclusion and Vulnerable Children",085957,Secure Management,Supplies and Services,328041,Clothing uniforms and laundry E328,11-Apr-2018,000007237690565,SPORTSDIRECT.COM,5941,Clothing uniforms and laundry,64.99,0.00,64.99
Regeneration and Local Services,Culture & Sport,011060,Hardwick Park Catering,Supplies and Services,324117,Provisions E324,11-Apr-2018,000007237690599,JR HOLLAND FOODSERVICE,5422,Catering costs - provisions,94.43,0.00,94.43
Regeneration and Local Services,Culture & Sport,011060,Hardwick Park Catering,Supplies and Services,324117,Provisions E324,11-Apr-2018,000007237690601,JR HOLLAND FOODSERVICE,5422,Catering costs - provisions,45.14,0.00,45.14
Regeneration and Local Services,Culture & Sport,011060,Hardwick Park Catering,Supplies and Services,324117,Provisions E324,11-Apr-2018,000007237690603,JR HOLLAND FOODSERVICE,5422,Catering costs - provisions,8.17,0.00,8.17
Regeneration and Local Services,Culture & Sport,011060,Hardwick Park Catering,Supplies and Services,324117,Provisions E324,11-Apr-2018,000007237690605,JR HOLLAND FOODSERVICE,5422,Catering costs - provisions,3.22,0.00,3.22
Regeneration and Local Services,Direct Services,021234,Catering - Locomotion,Supplies and Services,324117,Provisions E324,11-Apr-2018,000007237690621,JR HOLLAND FOODSERVICE,5422,Catering costs - provisions,50.33,0.00,50.33
Regeneration and Local Services,Direct Services,010525,Catering - Green Lane,Supplies and Services,324117,Provisions E324,11-Apr-2018,000007237690631,JR HOLLAND FOODSERVICE,5422,Catering costs - provisions,50.31,0.00,50.31
Regeneration and Local Services,Economic Development and Housing,031576,B& B - Temp Accom,Supplies and Services,364320,Grants to Voluntary Organisations,11-Apr-2018,000007237690659,PREMIER INN,3811,Accommodation assistance,95.00,15.83,79.17
Regeneration and Local Services,Economic Development and Housing,030692,Durham Dales Centre - Management and Admin,Supplies and Services,324117,Provisions E324,11-Apr-2018,000007237690677,JR HOLLAND FOODSERVICE,5422,Catering costs - provisions,42.25,0.00,42.25
Adult and Health Services,Head of Adults,055643,Hawthorn House LD Respite Unit,Supplies and Services,324117,Provisions E324,11-Apr-2018,000007237690679,JR HOLLAND FOODSERVICE,5422,Catering costs - provisions,17.10,0.00,17.10
Adult and Health Services,Head of Adults,055643,Hawthorn House LD Respite Unit,Supplies and Services,324117,Provisions E324,11-Apr-2018,000007237690681,JR HOLLAND FOODSERVICE,5422,Catering costs - provisions,11.80,0.00,11.80
Adult and Health Services,Head of Adults,055643,Hawthorn House LD Respite Unit,Supplies and Services,324117,Provisions E324,11-Apr-2018,000007237690683,JR HOLLAND FOODSERVICE,5422,Catering costs - provisions,2.55,0.00,2.55
Regeneration and Local Services,Culture & Sport,054235,Bishop Auckland Town Hall Cafe,Supplies and Services,324117,Provisions E324,11-Apr-2018,000007237690739,JR HOLLAND FOODSERVICE,5422,Catering costs - provisions,47.55,0.00,47.55
Regeneration and Local Services,Direct Services,021324,Catering - Meadowfield,Supplies and Services,324117,Provisions E324,11-Apr-2018,000007237690743,JR HOLLAND FOODSERVICE,5422,Catering costs - provisions,41.57,0.00,41.57
Regeneration and Local Services,Direct Services,021324,Catering - Meadowfield,Supplies and Services,324117,Provisions E324,11-Apr-2018,000007237690745,JR HOLLAND FOODSERVICE,5422,Catering costs - provisions,13.89,0.00,13.89
Regeneration and Local Services,Economic Development and Housing,031576,B& B - Temp Accom,Supplies and Services,364320,Grants to Voluntary Organisations,11-Apr-2018,000007237690755,PREMIER INN,3811,Accommodation assistance,328.00,54.67,273.33
Regeneration and Local Services,Direct Services,021235,Catering - Wharton Park,Supplies and Services,324117,Provisions E324,11-Apr-2018,000007237690799,JR HOLLAND FOODSERVICE,5422,Catering costs - provisions,46.92,0.00,46.92
Children and Young Peoples Services,Head of Childrens Social Care,085341,High Etherley Satelite Home,Supplies and Services,324117,Provisions E324,12-Apr-2018,000007237690453,TESCO STORES 6329,5411,Catering costs - provisions,202.06,0.00,202.06
Regeneration and Local Services,Economic Development and Housing,031576,B& B - Temp Accom,Supplies and Services,364320,Grants to Voluntary Organisations,12-Apr-2018,000007237690463,HOTEL 52,7011,Accommodation assistance,350.00,58.33,291.67
Regeneration and Local Services,Direct Services,010383,C&G - South Street Cleansing,Supplies and Services,304221,Equipment and Materials,12-Apr-2018,000007237690475,AZTEC CHEMICALS LTD,5169,Direct materials,462.00,77.00,385.00
Regeneration and Local Services,Economic Development and Housing,030737,Durham Works Flexible Fund,Transport,235057,Public Transport,12-Apr-2018,000007237690495,ARRIVA NORTH EAST,4131,Staff travelling,15.20,0.00,15.20
Regeneration and Local Services,Economic Development and Housing,030737,Durham Works Flexible Fund,Transport,235057,Public Transport,12-Apr-2018,000007237690497,ARRIVA NORTH EAST,4131,Staff travelling,5.00,0.00,5.00
Regeneration and Local Services,Economic Development and Housing,030737,Durham Works Flexible Fund,Supplies and Services,324117,Provisions E324,12-Apr-2018,000007237690501,ASDA STORES LTD,5411,Catering costs - provisions,20.05,0.00,20.05
Children and Young Peoples Services,Head of Childrens Social Care,085511,Emergency Duty Team,Supplies and Services,352001,Conference Expenses,12-Apr-2018,000007237690529,TRAVELODGE,3615,Conferencesseminars fees etc,47.25,0.00,47.25
Children and Young Peoples Services,Head of Childrens Social Care,085352,Tow Law CU,Supplies and Services,324117,Provisions E324,12-Apr-2018,000007237690533,TESCO STORES 2371,5411,Catering costs - provisions,162.46,0.00,162.46
Children and Young Peoples Services,Head of Childrens Social Care,085352,Tow Law CU,Supplies and Services,324117,Provisions E324,12-Apr-2018,000007237690535,TESCO STORE 3539,5411,Catering costs - provisions,-4.00,0.00,-4.00
Children and Young Peoples Services,Head of Education and Skills,071732,Dean Bank Childcare,Supplies and Services,324117,Provisions E324,12-Apr-2018,000007237690545,CO-OP GROUP 010503,5411,Catering costs - provisions,18.18,0.00,18.18
Regeneration and Local Services,Culture & Sport,054731,Killhope Lead Mining Centre,Supplies and Services,304403,Equipment and Materials,12-Apr-2018,000007237690549,WWW.GARDENGIFTSHOP.CO.,5261,Other consumables,187.50,0.00,187.50
Regeneration and Local Services,Direct Services,010301,C&G - North Grounds Maintenance,Supplies and Services,304259,Equipment and Materials,12-Apr-2018,000007237690551,TRAVIS PERKINS,5211,Equipment-purchase and rental,434.42,72.40,362.02
Regeneration and Local Services,Economic Development and Housing,030737,Durham Works Flexible Fund,Supplies and Services,348037,Subsistence E348,12-Apr-2018,000007237690553,ARRIVA NORTH EAST,4131,Subsistence,28.00,0.00,28.00
Children and Young Peoples Services,"Head of Early Help, Inclusion and Vulnerable Children",085956,Lumley,Supplies and Services,304649,Equipment and Materials,12-Apr-2018,000007237690557,Amazon UK Marketplace,5942,Toys,77.21,0.00,77.21
Children and Young Peoples Services,"Head of Early Help, Inclusion and Vulnerable Children",085965,Barnard,Supplies and Services,304403,Equipment and Materials,12-Apr-2018,000007237690559,Amazon UK Marketplace,5942,Other consumables,4.99,0.00,4.99
Children and Young Peoples Services,"Head of Early Help, Inclusion and Vulnerable Children",085956,Lumley,Supplies and Services,304649,Equipment and Materials,12-Apr-2018,000007237690561,Amazon UK Marketplace,5942,Toys,107.93,0.00,107.93
Children and Young Peoples Services,"Head of Early Help, Inclusion and Vulnerable Children",085965,Barnard,Supplies and Services,324117,Provisions E324,12-Apr-2018,000007237690567,TESCO STORES 6329,5411,Catering costs - provisions,87.05,0.00,87.05
Regeneration and Local Services,Culture & Sport,054813,Gala Theatre - Technical,Supplies and Services,304259,Equipment and Materials,12-Apr-2018,000007237690571,Amazon Digital Video,5735,Equipment-purchase and rental,4.99,0.00,4.99
Regeneration and Local Services,Culture & Sport,054813,Gala Theatre - Technical,Supplies and Services,312011,Newspapers books and periodicals E312,12-Apr-2018,000007237690573,Amazon EU,5969,Books-school library,46.48,0.00,46.48
Regeneration and Local Services,Culture & Sport,054813,Gala Theatre - Technical,Supplies and Services,312011,Newspapers books and periodicals E312,12-Apr-2018,000007237690577,Amazon EU,5969,Books-school library,46.48,0.00,46.48
Regeneration and Local Services,Culture & Sport,054813,Gala Theatre - Technical,Supplies and Services,312011,Newspapers books and periodicals E312,12-Apr-2018,000007237690581,Amazon EU,5969,Books-school library,46.48,0.00,46.48
Regeneration and Local Services,Culture & Sport,054813,Gala Theatre - Technical,Supplies and Services,312011,Newspapers books and periodicals E312,12-Apr-2018,000007237690583,Amazon EU,5969,Books-school library,46.48,0.00,46.48
Regeneration and Local Services,Direct Services,010367,C&G - South Grounds Maintenance,Supplies and Services,304259,Equipment and Materials,12-Apr-2018,000007237690593,HARELAW SAWMILL,5211,Equipment-purchase and rental,105.16,0.00,105.16
Children and Young Peoples Services,Head of Childrens Social Care,085551,Short Break Services-Park Hse Sher,Supplies and Services,324117,Provisions E324,12-Apr-2018,000007237690609,ALDI 59 774,5411,Catering costs - provisions,39.99,0.00,39.99
Children and Young Peoples Services,Head of Childrens Social Care,085332,Middlestone Moor CU,Supplies and Services,308011,Furniture,12-Apr-2018,000007237690615,WWW.LINTHORPEBEDS.,5712,Furniture repair and replacement,-20.00,0.00,-20.00
Regeneration and Local Services,Economic Development and Housing,030671,Business Space,Supplies and Services,324117,Provisions E324,12-Apr-2018,000007237690627,CO-OP GROUP FOOD,5411,Catering costs - provisions,2.50,0.00,2.50
Children and Young Peoples Services,Head of Childrens Social Care,085352,Tow Law CU,Supplies and Services,324117,Provisions E324,12-Apr-2018,000007237690639,SAINSBURYS 2199,5411,Catering costs - provisions,97.63,0.00,97.63
Children and Young Peoples Services,Head of Childrens Social Care,085626,Families First Shildon/Chilton,Supplies and Services,338045,Services,12-Apr-2018,000007237690649,SUNDERLAND CC,9399,Legal expenses 338045,30.00,0.00,30.00
Children and Young Peoples Services,Head of Childrens Social Care,085626,Families First Shildon/Chilton,Supplies and Services,338045,Services,12-Apr-2018,000007237690651,SUNDERLAND CC,9399,Legal expenses 338045,10.00,0.00,10.00
Children and Young Peoples Services,Head of Childrens Social Care,085626,Families First Shildon/Chilton,Supplies and Services,338045,Services,12-Apr-2018,000007237690653,SUNDERLAND CC,9399,Legal expenses 338045,10.00,0.00,10.00
Children and Young Peoples Services,Head of Childrens Social Care,085623,Families First Bishop Auckland,Supplies and Services,338045,Services,12-Apr-2018,000007237690655,WWW.DURHAM.GOV.UK,9399,Legal expenses 338045,10.00,0.00,10.00
Children and Young Peoples Services,Head of Education and Skills,088037,One Point YEI,Supplies and Services,338045,Services,12-Apr-2018,000007237690657,NEWCASTLE CC INET,9399,Legal expenses 338045,11.00,0.00,11.00
Regeneration and Local Services,Direct Services,010367,C&G - South Grounds Maintenance,Supplies and Services,312011,Newspapers books and periodicals E312,12-Apr-2018,000007237690669,CHARLES DICKENS (SPENN,5251,Books-school library,7.49,0.00,7.49
Regeneration and Local Services,Direct Services,010367,C&G - South Grounds Maintenance,Supplies and Services,312011,Newspapers books and periodicals E312,12-Apr-2018,000007237690671,CHARLES DICKENS (SPENN,5251,Books-school library,5.99,0.00,5.99
Regeneration and Local Services,Direct Services,010367,C&G - South Grounds Maintenance,Supplies and Services,304221,Equipment and Materials,12-Apr-2018,000007237690673,MACHINE MART WEB,7394,Direct materials,83.98,0.00,83.98
Regeneration and Local Services,Spatial Policy Planning Assets & Environment,031228,North Pennines - Fellfoot Forward,Supplies and Services,348037,Subsistence E348,12-Apr-2018,000007237690687,THE OLD VILLAGE BAKERY,5812,Subsistence,10.55,0.00,10.55
Regeneration and Local Services,Spatial Policy Planning Assets & Environment,031228,North Pennines - Fellfoot Forward,Supplies and Services,352001,Conference Expenses,12-Apr-2018,000007237690689,THE BLACKSMITHS ARMS,7011,Conferencesseminars fees etc,52.55,8.76,43.79
Children and Young Peoples Services,Head of Childrens Social Care,085802,CDYOS - Best Practice Group,Supplies and Services,364320,Grants to Voluntary Organisations,12-Apr-2018,000007237690735,HOL INN BIRM CITY,7011,Accommodation assistance,200.00,0.00,200.00
Children and Young Peoples Services,Head of Childrens Social Care,085802,CDYOS - Best Practice Group,Supplies and Services,364320,Grants to Voluntary Organisations,12-Apr-2018,000007237690737,HOL INN BIRM CITY,7011,Accommodation assistance,200.00,0.00,200.00
Children and Young Peoples Services,Head of Childrens Social Care,085363,LAC & Permanence Team 3,Transport,235057,Public Transport,12-Apr-2018,000007237690759,NEWCASTLE CITY COUNCIL,4789,Staff travelling,27.00,0.00,27.00
Regeneration and Local Services,Economic Development and Housing,030554,International Relations,Supplies and Services,304403,Equipment and Materials,12-Apr-2018,000007237690765,MAXWELLS D I Y,5231,Other consumables,17.94,2.99,14.95
Regeneration and Local Services,Economic Development and Housing,030554,International Relations,Supplies and Services,304403,Equipment and Materials,12-Apr-2018,000007237690765 - 1,MAXWELLS D I Y,5231,Other consumables,32.91,,32.91
Children and Young Peoples Services,Head of Childrens Social Care,085331,New Lea Childrens Home,Supplies and Services,312011,Newspapers books and periodicals E312,12-Apr-2018,000007237690775,Amazon UK Marketplace,5942,Books-school library,0.01,0.00,0.01
Children and Young Peoples Services,Head of Childrens Social Care,085331,New Lea Childrens Home,Supplies and Services,312011,Newspapers books and periodicals E312,12-Apr-2018,000007237690777,Amazon UK Marketplace,5942,Books-school library,33.99,0.00,33.99
Children and Young Peoples Services,Head of Childrens Social Care,085100,Strategic Manager Families First Area South,Supplies and Services,332047,Printing Stationery and Gen Off Exps,12-Apr-2018,000007237690789,DARLINGTON BC INTERNET,9399,Stationery,22.00,0.00,22.00
Adult and Health Services,Head of Adults,055306,Spennymoor Pathways,Supplies and Services,324117,Provisions E324,12-Apr-2018,000007237690793,ASDA SUPERSTORE 4987,5411,Catering costs - provisions,4.13,0.00,4.13
Resources,Finance & Transactional Services,065170,Welfare Rights,Supplies and Services,372009,Subscriptions E372,12-Apr-2018,000007237690809,CHILD POVERTY,8398,Subscriptions 372009,80.00,0.00,80.00
Adult and Health Services,Head of Adults,052890,Direct Payments,Supplies and Services,332047,Printing Stationery and Gen Off Exps,12-Apr-2018,000007237690811,POSTURITE (UK) LTD,5021,Stationery,344.09,57.35,286.74
Transformation and Partnerships,Partnerships & Community Engagement Div.,060472,Syrian Vulnerable Persons Scheme,Supplies and Services,308011,Furniture,12-Apr-2018,000007237690817,SP TERRYS FABRICS,5691,Furniture repair and replacement,170.94,28.49,142.45
Transformation and Partnerships,Partnerships & Community Engagement Div.,060472,Syrian Vulnerable Persons Scheme,Supplies and Services,308011,Furniture,12-Apr-2018,000007237690819,WILKO.COM,5722,Furniture repair and replacement,166.00,27.67,138.33
Transformation and Partnerships,Partnerships & Community Engagement Div.,060472,Syrian Vulnerable Persons Scheme,Supplies and Services,308011,Furniture,12-Apr-2018,000007237690821,WILKO.COM,5722,Furniture repair and replacement,891.00,148.50,742.50
Regeneration and Local Services,Spatial Policy Planning Assets & Environment,031200,North Pennines Core,Supplies and Services,312011,Newspapers books and periodicals E312,12-Apr-2018,000007237690823,Amazon UK Marketplace,5942,Books-school library,74.86,0.00,74.86
Regeneration and Local Services,Spatial Policy Planning Assets & Environment,031200,North Pennines Core,Supplies and Services,312011,Newspapers books and periodicals E312,12-Apr-2018,000007237690827,Amazon EU,5969,Books-school library,22.74,0.00,22.74
Regeneration and Local Services,Direct Services,021242,Catering - County Hall,Supplies and Services,324117,Provisions E324,12-Apr-2018,000007243994053,BATLEYS PERTH,5300,Catering costs - provisions,632.16,105.36,526.80
Regeneration and Local Services,Direct Services,021242,Catering - County Hall,Supplies and Services,324117,Provisions E324,12-Apr-2018,000007243994053 - 1,BATLEYS PERTH,5300,Catering costs - provisions,205.82,,205.82
Regeneration and Local Services,Culture & Sport,011060,Hardwick Park Catering,Supplies and Services,324117,Provisions E324,12-Apr-2018,000007243994217,BATLEYS PERTH,5300,Catering costs - provisions,341.22,56.87,284.35
Regeneration and Local Services,Culture & Sport,011060,Hardwick Park Catering,Supplies and Services,324117,Provisions E324,12-Apr-2018,000007243994217 - 1,BATLEYS PERTH,5300,Catering costs - provisions,219.20,,219.20
Regeneration and Local Services,Culture & Sport,011060,Hardwick Park Catering,Supplies and Services,324117,Provisions E324,12-Apr-2018,000007243994225,BATLEYS PERTH,5300,Catering costs - provisions,46.02,7.67,38.35
Regeneration and Local Services,Culture & Sport,011060,Hardwick Park Catering,Supplies and Services,324117,Provisions E324,12-Apr-2018,000007243994225 - 1,BATLEYS PERTH,5300,Catering costs - provisions,7.15,,7.15
Regeneration and Local Services,Direct Services,021234,Catering - Locomotion,Supplies and Services,324117,Provisions E324,12-Apr-2018,000007243994289,BATLEYS PERTH,5300,Catering costs - provisions,102.18,17.03,85.15
Regeneration and Local Services,Direct Services,021234,Catering - Locomotion,Supplies and Services,324117,Provisions E324,12-Apr-2018,000007243994289 - 1,BATLEYS PERTH,5300,Catering costs - provisions,5.47,,5.47
Regeneration and Local Services,Economic Development and Housing,031576,B& B - Temp Accom,Supplies and Services,364320,Grants to Voluntary Organisations,12-Apr-2018,000007243994295,PREMIER INN,3811,Accommodation assistance,521.00,0.00,521.00
Regeneration and Local Services,Economic Development and Housing,031576,B& B - Temp Accom,Supplies and Services,364320,Grants to Voluntary Organisations,12-Apr-2018,000007243994301,PREMIER INN,3811,Accommodation assistance,72.00,0.00,72.00
Regeneration and Local Services,Economic Development and Housing,031576,B& B - Temp Accom,Supplies and Services,364320,Grants to Voluntary Organisations,12-Apr-2018,000007243994305,PREMIER INN,3811,Accommodation assistance,65.00,0.00,65.00
Children and Young Peoples Services,Head of Education and Skills,071801,Selby Cottage Childcare Centre,Supplies and Services,304259,Equipment and Materials,13-Apr-2018,000007243993917,WILKO RETAIL LIMIT,5722,Equipment-purchase and rental,82.40,0.00,82.40
Regeneration and Local Services,Economic Development and Housing,031576,B& B - Temp Accom,Supplies and Services,364320,Grants to Voluntary Organisations,13-Apr-2018,000007243993925,HOTEL 52,7011,Accommodation assistance,195.50,32.58,162.92
Regeneration and Local Services,Economic Development and Housing,031576,B& B - Temp Accom,Supplies and Services,364320,Grants to Voluntary Organisations,13-Apr-2018,000007243993927,PREMIER INN44023785,5812,Accommodation assistance,252.00,42.00,210.00
Regeneration and Local Services,Economic Development and Housing,031576,B& B - Temp Accom,Supplies and Services,364320,Grants to Voluntary Organisations,13-Apr-2018,000007243993929,PREMIER INN44023785,5812,Accommodation assistance,253.00,42.17,210.83
Dedicated Schools Grant,DSG High Needs Block,079063,Partial Hearing-Belmont Comp,Supplies and Services,384999,Miscellaneous Expenses,13-Apr-2018,000007243993967,Amazon UK Marketplace,5942,Other expenses,53.85,0.00,53.85
Children and Young Peoples Services,Head of Childrens Social Care,085342,9 Cedar Drive Aycliffe,Supplies and Services,312011,Newspapers books and periodicals E312,13-Apr-2018,000007243993983,Amazon EU,5969,Books-school library,14.99,0.00,14.99
Regeneration and Local Services,Direct Services,010367,C&G - South Grounds Maintenance,Supplies and Services,304259,Equipment and Materials,13-Apr-2018,000007243994027,SCREWFIX,5211,Equipment-purchase and rental,176.14,29.36,146.78
Children and Young Peoples Services,Head of Childrens Social Care,085624,Families First Crook,Supplies and Services,332047,Printing Stationery and Gen Off Exps,13-Apr-2018,000007243994043,Amazon EU,5969,Stationery,30.55,0.00,30.55
Children and Young Peoples Services,Head of Childrens Social Care,085334,West Rainton Satelite Home,Supplies and Services,324117,Provisions E324,13-Apr-2018,000007243994109,TESCO STORES 2371,5411,Catering costs - provisions,68.49,0.00,68.49
Children and Young Peoples Services,Head of Childrens Social Care,085334,West Rainton Satelite Home,Supplies and Services,324117,Provisions E324,13-Apr-2018,000007243994111,TESCO STORES 2371,5411,Catering costs - provisions,12.00,0.00,12.00
Regeneration and Local Services,Culture & Sport,010664,Freemans Quay Leisure Centre,Supplies and Services,324117,Provisions E324,13-Apr-2018,000007243994123,ASDA SUPERSTORE,5411,Catering costs - provisions,121.39,0.00,121.39
Regeneration and Local Services,Culture & Sport,010664,Freemans Quay Leisure Centre,Supplies and Services,324117,Provisions E324,13-Apr-2018,000007243994129,ASDA SUPERSTORE,5411,Catering costs - provisions,79.39,0.00,79.39
Regeneration and Local Services,Spatial Policy Planning Assets & Environment,031201,Earthworks,Supplies and Services,312011,Newspapers books and periodicals E312,13-Apr-2018,000007243994157,BRITISH GEOLOGICAL SUR,5942,Books-school library,130.00,0.00,130.00
Regeneration and Local Services,Spatial Policy Planning Assets & Environment,031221,North Pennines - Bowlees,Supplies and Services,324117,Provisions E324,13-Apr-2018,000007243994161,TESCO STORES 4358,5411,Catering costs - provisions,14.17,0.00,14.17
Regeneration and Local Services,Spatial Policy Planning Assets & Environment,031221,North Pennines - Bowlees,Supplies and Services,304403,Equipment and Materials,13-Apr-2018,000007243994163,TIMPSON LTD,7251,Other consumables,51.00,0.00,51.00
Regeneration and Local Services,Economic Development and Housing,030737,Durham Works Flexible Fund,Supplies and Services,348037,Subsistence E348,13-Apr-2018,000007243994173,ARRIVA NORTH EAST,4131,Subsistence,25.00,0.00,25.00
Children and Young Peoples Services,"Head of Early Help, Inclusion and Vulnerable Children",085954,Walworth,Supplies and Services,312011,Newspapers books and periodicals E312,13-Apr-2018,000007243994189,Amazon UK Marketplace,5942,Books-school library,2.40,0.00,2.40
Children and Young Peoples Services,"Head of Early Help, Inclusion and Vulnerable Children",085956,Lumley,Supplies and Services,324117,Provisions E324,13-Apr-2018,000007243994193,TESCO STORES 6329,5411,Catering costs - provisions,82.98,0.00,82.98
Regeneration and Local Services,Culture & Sport,054813,Gala Theatre - Technical,Supplies and Services,312011,Newspapers books and periodicals E312,13-Apr-2018,000007243994199,Amazon UK Marketplace,5942,Books-school library,151.84,0.00,151.84
Regeneration and Local Services,Culture & Sport,054813,Gala Theatre - Technical,Supplies and Services,312011,Newspapers books and periodicals E312,13-Apr-2018,000007243994203,"Amazon Svcs Europe,SAR",5942,Books-school library,17.47,0.00,17.47
Regeneration and Local Services,Culture & Sport,054813,Gala Theatre - Technical,Supplies and Services,312011,Newspapers books and periodicals E312,13-Apr-2018,000007243994207,Amazon UK Marketplace,5942,Books-school library,10.99,0.00,10.99
Regeneration and Local Services,Culture & Sport,010919,Countryside Site Management,Supplies and Services,304259,Equipment and Materials,13-Apr-2018,000007243994211,SCREWFIX,5211,Equipment-purchase and rental,12.99,2.17,10.82
Regeneration and Local Services,Economic Development and Housing,030750,Durham Employment & Skills - General,Employees,040149,Recruitment Instruction and Training,13-Apr-2018,000007243994237,CITB,8220,Training-all costs,30.00,5.00,25.00
Children and Young Peoples Services,Head of Childrens Social Care,085332,Middlestone Moor CU,Supplies and Services,324117,Provisions E324,13-Apr-2018,000007243994243,THE MEAT MARKET,5499,Catering costs - provisions,24.00,0.00,24.00
Children and Young Peoples Services,Head of Childrens Social Care,085332,Middlestone Moor CU,Supplies and Services,308011,Furniture,13-Apr-2018,000007243994245,ARGOFIELD LTD,5712,Furniture repair and replacement,25.94,0.00,25.94
Children and Young Peoples Services,Head of Childrens Social Care,085332,Middlestone Moor CU,Supplies and Services,308011,Furniture,13-Apr-2018,000007243994249,DREAMS FURNISHINGS LTD,5712,Furniture repair and replacement,435.00,0.00,435.00
Children and Young Peoples Services,Head of Childrens Social Care,085332,Middlestone Moor CU,Supplies and Services,324117,Provisions E324,13-Apr-2018,000007243994253,ASDA SUPERSTORE 4987,5411,Catering costs - provisions,52.39,0.00,52.39
Children and Young Peoples Services,Head of Childrens Social Care,085332,Middlestone Moor CU,Supplies and Services,324117,Provisions E324,13-Apr-2018,000007243994255,TESCO STORES 2371,5411,Catering costs - provisions,171.07,0.00,171.07
Regeneration and Local Services,Direct Services,021234,Catering - Locomotion,Supplies and Services,324117,Provisions E324,13-Apr-2018,000007243994277,WWW.ADELIEFOODS.CO.UK,5499,Catering costs - provisions,179.20,0.00,179.20
Regeneration and Local Services,Direct Services,021234,Catering - Locomotion,Supplies and Services,324117,Provisions E324,13-Apr-2018,000007243994281,WWW.ADELIEFOODS.CO.UK,5499,Catering costs - provisions,81.34,0.00,81.34
Regeneration and Local Services,Direct Services,021234,Catering - Locomotion,Supplies and Services,324117,Provisions E324,13-Apr-2018,000007243994285,WWW.ADELIEFOODS.CO.UK,5499,Catering costs - provisions,78.59,0.00,78.59
Regeneration and Local Services,Economic Development and Housing,031576,B& B - Temp Accom,Supplies and Services,364320,Grants to Voluntary Organisations,13-Apr-2018,000007243994309,HOTEL 52,7011,Accommodation assistance,300.00,0.00,300.00
Regeneration and Local Services,Economic Development and Housing,031576,B& B - Temp Accom,Supplies and Services,364320,Grants to Voluntary Organisations,13-Apr-2018,000007243994313,PREMIER INN,3811,Accommodation assistance,189.50,0.00,189.50
Regeneration and Local Services,Economic Development and Housing,031576,B& B - Temp Accom,Supplies and Services,364320,Grants to Voluntary Organisations,13-Apr-2018,000007243994317,PREMIER INN44023785,5812,Accommodation assistance,252.00,0.00,252.00
Regeneration and Local Services,Economic Development and Housing,031576,B& B - Temp Accom,Supplies and Services,364320,Grants to Voluntary Organisations,13-Apr-2018,000007243994321,PREMIER INN44023785,5812,Accommodation assistance,253.00,0.00,253.00
Regeneration and Local Services,Economic Development and Housing,030749,Employability - Youth Contract,Transport,235057,Public Transport,13-Apr-2018,000007243994369,ARRIVA NORTH EAST,4131,Staff travelling,23.00,0.00,23.00
Regeneration and Local Services,Economic Development and Housing,030749,Employability - Youth Contract,Transport,235057,Public Transport,13-Apr-2018,000007243994371,ARRIVA NORTH EAST,4131,Staff travelling,25.00,0.00,25.00
Regeneration and Local Services,Direct Services,010367,C&G - South Grounds Maintenance,Supplies and Services,304221,Equipment and Materials,13-Apr-2018,000007243994381,R DEFTY,5200,Direct materials,3.50,0.00,3.50
Regeneration and Local Services,Direct Services,010367,C&G - South Grounds Maintenance,Transport,215995,Running Costs of Vehicles,13-Apr-2018,000007243994385,SNOWBALLS (RAILWAY,5533,Vehicle running expenses,10.56,0.00,10.56
Children and Young Peoples Services,"Head of Early Help, Inclusion and Vulnerable Children",085957,Secure Management,Supplies and Services,328041,Clothing uniforms and laundry E328,13-Apr-2018,000007243994419,SP PALACE SKATEBOARD,5691,Clothing uniforms and laundry,-118.00,0.00,-118.00
Children and Young Peoples Services,Childrens Services Operational Support,052711,CYPS - Development and Learning,Supplies and Services,352001,Conference Expenses,13-Apr-2018,000007243994425,WHITE SWAN,7011,Conferencesseminars fees etc,90.00,0.00,90.00
Children and Young Peoples Services,Childrens Services Operational Support,052986,CYPS - Locality and Operational Support,Supplies and Services,304259,Equipment and Materials,13-Apr-2018,000007243994437,GRO HM PASSPORT OFFICE,9399,Equipment-purchase and rental,23.40,0.00,23.40
Children and Young Peoples Services,Childrens Services Operational Support,052986,CYPS - Locality and Operational Support,Transport,235057,Public Transport,13-Apr-2018,000007243994441,NEWCASTLE CITY COUNCIL,4789,Staff travelling,27.00,0.00,27.00
Regeneration and Local Services,Transport and Contracted Services,031704,Care Connect - CCTV Countywide,Supplies and Services,384956,Miscellaneous Expenses,13-Apr-2018,000007243994445,SECURITY INDUSTRY,7393,Licences,110.00,0.00,110.00
Children and Young Peoples Services,Head of Childrens Social Care,085363,LAC & Permanence Team 3,Transport,235057,Public Transport,13-Apr-2018,000007243994475,NEWCASTLE CITY COUNCIL,4789,Staff travelling,-3.00,0.00,-3.00
Children and Young Peoples Services,Head of Childrens Social Care,085331,New Lea Childrens Home,Supplies and Services,312011,Newspapers books and periodicals E312,13-Apr-2018,000007243994511,Amazon UK Marketplace,5942,Books-school library,0.01,0.00,0.01
Children and Young Peoples Services,"Head of Early Help, Inclusion and Vulnerable Children",071404,Laurel Avenue Childrens Centre,Supplies and Services,312011,Newspapers books and periodicals E312,13-Apr-2018,000007243994541,HOME BARGAINS,5251,Books-school library,8.02,0.00,8.02
Transformation and Partnerships,Partnerships & Community Engagement Div.,060472,Syrian Vulnerable Persons Scheme,Supplies and Services,308011,Furniture,13-Apr-2018,000007243994605,VERTICAL BLINDS DIRECT,5719,Furniture repair and replacement,37.92,6.32,31.60
Transformation and Partnerships,Partnerships & Community Engagement Div.,060472,Syrian Vulnerable Persons Scheme,Supplies and Services,308011,Furniture,13-Apr-2018,000007243994605 - 1,VERTICAL BLINDS DIRECT,5719,Furniture repair and replacement,17.87,,17.87
Transformation and Partnerships,Partnerships & Community Engagement Div.,060472,Syrian Vulnerable Persons Scheme,Supplies and Services,308011,Furniture,13-Apr-2018,000007243994607,WILKO DURHAM 426,5722,Furniture repair and replacement,141.30,23.55,117.75
Transformation and Partnerships,Partnerships & Community Engagement Div.,060472,Syrian Vulnerable Persons Scheme,Supplies and Services,308011,Furniture,13-Apr-2018,000007243994611,ASDA STORES LTD 4313,5411,Furniture repair and replacement,92.60,15.43,77.17
Children and Young Peoples Services,Head of Childrens Social Care,085801,CDYOS - Support,Supplies and Services,312011,Newspapers books and periodicals E312,13-Apr-2018,000007243994647,Amazon EU,5969,Books-school library,17.22,0.00,17.22
Regeneration and Local Services,Economic Development and Housing,030554,International Relations,Supplies and Services,352001,Conference Expenses,13-Apr-2018,000007251712395,Hotel Kaiserhof,7011,Conferencesseminars fees etc,"8,976.75",0.00,8976.75
Regeneration and Local Services,Culture & Sport,011060,Hardwick Park Catering,Supplies and Services,324117,Provisions E324,13-Apr-2018,000007251712931,BATLEYS PERTH,5300,Catering costs - provisions,202.98,33.83,169.15
Regeneration and Local Services,Culture & Sport,011060,Hardwick Park Catering,Supplies and Services,324117,Provisions E324,13-Apr-2018,000007251712931 - 1,BATLEYS PERTH,5300,Catering costs - provisions,146.19,,146.19
Regeneration and Local Services,Culture & Sport,011060,Hardwick Park Catering,Supplies and Services,324117,Provisions E324,13-Apr-2018,000007251712951,BATLEYS PERTH,5300,Catering costs - provisions,27.60,0.00,27.60
Regeneration and Local Services,Direct Services,010525,Catering - Green Lane,Supplies and Services,324117,Provisions E324,13-Apr-2018,000007251713085,BATLEYS PERTH,5300,Catering costs - provisions,51.18,8.53,42.65
Regeneration and Local Services,Direct Services,010525,Catering - Green Lane,Supplies and Services,324117,Provisions E324,13-Apr-2018,000007251713085 - 1,BATLEYS PERTH,5300,Catering costs - provisions,79.99,,79.99
Adult and Health Services,Head of Adults,055643,Hawthorn House LD Respite Unit,Supplies and Services,324117,Provisions E324,13-Apr-2018,000007251713325,BATLEYS PERTH,5300,Catering costs - provisions,17.82,2.97,14.85
Adult and Health Services,Head of Adults,055643,Hawthorn House LD Respite Unit,Supplies and Services,324117,Provisions E324,13-Apr-2018,000007251713325 - 1,BATLEYS PERTH,5300,Catering costs - provisions,30.50,,30.50
Children and Young Peoples Services,Head of Education and Skills,071801,Selby Cottage Childcare Centre,Supplies and Services,324117,Provisions E324,14-Apr-2018,000007243993919,ASDA STORES LTD 4313,5411,Catering costs - provisions,12.05,0.00,12.05
Regeneration and Local Services,Economic Development and Housing,030699,Business Growth and Innovation General,Supplies and Services,342033,Computers and Communications,14-Apr-2018,000007243993975,WATCHFULPAYPAL,7379,Computer hardware,14.05,0.00,14.05
Children and Young Peoples Services,"Head of Early Help, Inclusion and Vulnerable Children",085954,Walworth,Supplies and Services,324117,Provisions E324,14-Apr-2018,000007243994197,TESCO STORES 6329,5411,Catering costs - provisions,100.46,0.00,100.46
Regeneration and Local Services,Economic Development and Housing,031578,Client Travel Reimbursements,Transport,235073,Public Transport,14-Apr-2018,000007243994325,NATIONAL EXPRESS LIMIT,4131,Travel-clients/students/children,26.80,0.00,26.80
Children and Young Peoples Services,Head of Education and Skills,071801,Selby Cottage Childcare Centre,Supplies and Services,324117,Provisions E324,15-Apr-2018,000007243993921,ASDA GROCERIES ONLINE,5411,Catering costs - provisions,5.00,0.00,5.00
Regeneration and Local Services,Economic Development and Housing,030699,Business Growth and Innovation General,Supplies and Services,304999,Equipment and Materials,15-Apr-2018,000007243993971,MOZ,5817,Misc equipment tools and materials,69.60,0.00,69.60
Children and Young Peoples Services,Head of Childrens Social Care,085517,Supporting Solutions Service (Edge of Care),Supplies and Services,312009,Newspapers books and periodicals E312,15-Apr-2018,000007243994047,Amazon EU,5969,Newspapers books and periodicals,45.08,0.00,45.08
Children and Young Peoples Services,Head of Childrens Social Care,085517,Supporting Solutions Service (Edge of Care),Supplies and Services,312009,Newspapers books and periodicals E312,15-Apr-2018,000007243994049,Amazon EU,5969,Newspapers books and periodicals,80.87,0.00,80.87
Children and Young Peoples Services,Head of Childrens Social Care,085511,Emergency Duty Team,Supplies and Services,352001,Conference Expenses,15-Apr-2018,000007243994077,ROADCHEF DURHAM,7011,Conferencesseminars fees etc,39.00,0.00,39.00
Children and Young Peoples Services,Head of Childrens Social Care,085341,High Etherley Satelite Home,Supplies and Services,324117,Provisions E324,15-Apr-2018,000007243994151,TESCO STORES 6329,5411,Catering costs - provisions,46.05,0.00,46.05
Resources,Resources Management,069000,Resources Management,Supplies and Services,324117,Provisions E324,15-Apr-2018,000007243994375,CO-OP GROUP 310016,5411,Catering costs - provisions,9.40,0.00,9.40
Transformation and Partnerships,Comms & Information Management,060270,Communications and Marketing,Supplies and Services,372009,Subscriptions E372,15-Apr-2018,000007243994529,LINKEDIN-303 8616346,5968,Subscriptions 372009,77.05,0.00,77.05
Transformation and Partnerships,Partnerships & Community Engagement Div.,060472,Syrian Vulnerable Persons Scheme,Supplies and Services,308011,Furniture,15-Apr-2018,000007243994615,Argos Durham Arnis,5310,Furniture repair and replacement,15.00,2.50,12.50
Transformation and Partnerships,Partnerships & Community Engagement Div.,060472,Syrian Vulnerable Persons Scheme,Supplies and Services,308011,Furniture,15-Apr-2018,000007243994619,WILKO DURHAM 426,5722,Furniture repair and replacement,30.00,5.00,25.00
Transformation and Partnerships,Partnerships & Community Engagement Div.,060472,Syrian Vulnerable Persons Scheme,Supplies and Services,308011,Furniture,15-Apr-2018,000007243994623,WILKO DURHAM 426,5722,Furniture repair and replacement,243.00,40.50,202.50
Transformation and Partnerships,Partnerships & Community Engagement Div.,060472,Syrian Vulnerable Persons Scheme,Supplies and Services,308011,Furniture,15-Apr-2018,000007243994625,WILKO DURHAM 426,5722,Furniture repair and replacement,154.00,25.67,128.33
Transformation and Partnerships,Partnerships & Community Engagement Div.,060472,Syrian Vulnerable Persons Scheme,Supplies and Services,308011,Furniture,15-Apr-2018,000007243994627,ASDA STORES LTD 4313,5411,Furniture repair and replacement,81.00,13.50,67.50
Transformation and Partnerships,Partnerships & Community Engagement Div.,060472,Syrian Vulnerable Persons Scheme,Supplies and Services,308011,Furniture,15-Apr-2018,000007243994631,ASDA GEORGE COM LEEDS,5411,Furniture repair and replacement,216.50,36.08,180.42
Transformation and Partnerships,Partnerships & Community Engagement Div.,060472,Syrian Vulnerable Persons Scheme,Supplies and Services,308011,Furniture,15-Apr-2018,000007243994635,ASDA GEORGE COM LEEDS,5411,Furniture repair and replacement,157.50,26.25,131.25
Regeneration and Local Services,Economic Development and Housing,030699,Business Growth and Innovation General,Supplies and Services,304999,Equipment and Materials,16-Apr-2018,000007243993977,MOZ,5817,Misc equipment tools and materials,1.91,0.00,1.91
Regeneration and Local Services,Economic Development and Housing,030699,Business Growth and Innovation General,Supplies and Services,342033,Computers and Communications,16-Apr-2018,000007243993979,WATCHFULPAYPAL,7379,Computer hardware,0.39,0.00,0.39
Children and Young Peoples Services,Head of Education and Skills,071801,Selby Cottage Childcare Centre,Supplies and Services,324117,Provisions E324,16-Apr-2018,000007251712421,TESCO STORES 2278,5411,Catering costs - provisions,3.40,0.00,3.40
Dedicated Schools Grant,DSG High Needs Block,079063,Partial Hearing-Belmont Comp,Supplies and Services,304403,Equipment and Materials,16-Apr-2018,000007251712505,PAPERCHASE,5947,Other consumables,18.19,0.00,18.19
Children and Young Peoples Services,Head of Childrens Social Care,085342,9 Cedar Drive Aycliffe,Employees,040149,Recruitment Instruction and Training,16-Apr-2018,000007251712515,PARENTPAY E-COM R,8220,Training-all costs,60.00,0.00,60.00
Regeneration and Local Services,Direct Services,021242,Catering - County Hall,Supplies and Services,324117,Provisions E324,16-Apr-2018,000007251712555,FREEMAN CATERING BUTCH,5422,Catering costs - provisions,156.89,0.00,156.89
Regeneration and Local Services,Direct Services,021242,Catering - County Hall,Supplies and Services,324117,Provisions E324,16-Apr-2018,000007251712561,JR HOLLAND FOODSERVICE,5422,Catering costs - provisions,89.04,0.00,89.04
Regeneration and Local Services,Direct Services,021242,Catering - County Hall,Supplies and Services,324117,Provisions E324,16-Apr-2018,000007251712569,JR HOLLAND FOODSERVICE,5422,Catering costs - provisions,63.35,0.00,63.35
Regeneration and Local Services,Direct Services,021242,Catering - County Hall,Supplies and Services,324117,Provisions E324,16-Apr-2018,000007251712579,JR HOLLAND FOODSERVICE,5422,Catering costs - provisions,50.60,0.00,50.60
Regeneration and Local Services,Direct Services,021242,Catering - County Hall,Supplies and Services,324117,Provisions E324,16-Apr-2018,000007251712585,JR HOLLAND FOODSERVICE,5422,Catering costs - provisions,23.45,0.00,23.45
Regeneration and Local Services,Direct Services,021242,Catering - County Hall,Supplies and Services,324117,Provisions E324,16-Apr-2018,000007251712591,JR HOLLAND FOODSERVICE,5422,Catering costs - provisions,13.54,0.00,13.54
Regeneration and Local Services,Direct Services,021242,Catering - County Hall,Supplies and Services,324117,Provisions E324,16-Apr-2018,000007251712593,JR HOLLAND FOODSERVICE,5422,Catering costs - provisions,13.20,0.00,13.20
Regeneration and Local Services,Direct Services,021242,Catering - County Hall,Supplies and Services,324117,Provisions E324,16-Apr-2018,000007251712599,JR HOLLAND FOODSERVICE,5422,Catering costs - provisions,3.40,0.00,3.40
Regeneration and Local Services,Economic Development and Housing,030544,Rural Employability - Client Engagement,Employees,040149,Recruitment Instruction and Training,16-Apr-2018,000007251712605,ConstructionSupport,8249,Training-all costs,57.98,9.66,48.32
Resources,Digital and Customer Services,065461,Business Support,Supplies and Services,372009,Subscriptions E372,16-Apr-2018,000007251712621,WEB NETWORKSOLUTIONS,5968,Subscriptions 372009,96.95,0.00,96.95
Regeneration and Local Services,Economic Development and Housing,030737,Durham Works Flexible Fund,Transport,235057,Public Transport,16-Apr-2018,000007251712637,ARRIVA NORTH EAST,4131,Staff travelling,28.00,0.00,28.00
Regeneration and Local Services,Culture & Sport,054812,Gala Theatre - Catering etc,Supplies and Services,324117,Provisions E324,16-Apr-2018,000007251712647,FREEMAN CATERING BUTCH,5422,Catering costs - provisions,81.44,0.00,81.44
Regeneration and Local Services,Culture & Sport,054812,Gala Theatre - Catering etc,Supplies and Services,324117,Provisions E324,16-Apr-2018,000007251712653,JR HOLLAND FOODSERVICE,5422,Catering costs - provisions,58.56,0.00,58.56
Regeneration and Local Services,Culture & Sport,054812,Gala Theatre - Catering etc,Supplies and Services,324117,Provisions E324,16-Apr-2018,000007251712661,JR HOLLAND FOODSERVICE,5422,Catering costs - provisions,29.20,0.00,29.20
Regeneration and Local Services,Culture & Sport,054812,Gala Theatre - Catering etc,Supplies and Services,324117,Provisions E324,16-Apr-2018,000007251712667,JR HOLLAND FOODSERVICE,5422,Catering costs - provisions,6.44,0.00,6.44
Regeneration and Local Services,Economic Development and Housing,031576,B& B - Temp Accom,Supplies and Services,364320,Grants to Voluntary Organisations,16-Apr-2018,000007251712673,HOTEL 52,7011,Accommodation assistance,59.50,9.92,49.58
Regeneration and Local Services,Economic Development and Housing,031576,B& B - Temp Accom,Supplies and Services,364320,Grants to Voluntary Organisations,16-Apr-2018,000007251712679,HOTEL 52,7011,Accommodation assistance,300.00,50.00,250.00
